{"text_format":"3","workbook":"xlsx","n_sheets":15,"sheets":["Bu şablon nasıl kullanılır","Öğrenci Listesi","Ağustos","Eylül ","Ekim","Kasım ","Aralık","Ocak","Şubat","Mart","Nisan","Mayıs","Haziran","Temmuz ","Öğrenci Katılım Raporu"],"not_rendered":{"defined_names":16},"read":"whole","date_system":"1900"}

{"sheet":"Bu şablon nasıl kullanılır","index":0,"n_rows":25,"n_cols":5,"rows_kept":25,"merged":[[3,2,3,12],[4,4,4,12],[5,4,5,12],[6,4,6,12],[7,4,7,12],[8,4,8,7],[11,2,11,12],[12,4,12,12],[13,4,13,12],[14,4,14,12],[17,2,17,12],[18,4,18,12],[19,4,19,12],[20,4,20,12],[21,4,21,12],[24,2,24,12]]}
["BU ŞABLON NASIL KULLANILIR"]
[]
[null,"NEREDEN BAŞLAMALIYIM?"]
[null,null,"Öğrencilerinizin katılımını izlemeye başlamadan önce uygulamanız gereken birkaç adım var:"]
[{"$nulls":3},"1.","Öğrencilerinizi ekleyin: Öğrenci Listesi sayfasında, her öğrenciye ait beli adı ve iletişim verileri gibi bilgileri girin. Öğrenci No, her öğrenciye ait benzersiz bir tanımlayıcı olduğundan ve veri girişini kolaylaştırmak için çalışma kitabı genelinde çeşitli Öğrenci No açılır listelerinde kullanıldığından önemli bir giriştir. Öğrenci Listesi'ne girilen bilgiler, Öğrenci Katılım Raporu ve aylık katılım kayıtları gibi diğer sayfalarda da kullanılabilir."]
[{"$nulls":3},"2.","Okul takvim yılını değiştirin: Katılımların Ağustos sayfasında, okul takvim yılını güncelleştirmek için başlığın sağ üst köşesindeki değer değiştirici denetimini tıklatın. Bu değişiklik, bu çalışma kitabı genelindeki tüm aylık katılım kayıtlarında yer alan başlığı güncelleştirir. (Değer değiştirici düğmesinin yazdırılmadığını unutmayın.)"]
[{"$nulls":3},"3.","(İsteğe Bağlı) Çalışma kitabı genelinde renkleri değiştirin:  Öncelikle son sayfaya, Öğrenci Katılım Raporu'na gidin ve Gözden Geçir sekmesinin Değişiklikler grubunda, Sayfa Korumasını Kaldır öğesini tıklatın. Ardından, Sayfa Düzeni sekmesinin Temalar grubunda, Renkler'i tıklatın ve renk galerisinden başka bir tema rengi kümesi seçin. Renk değişikliklerinizi ve diğer tema değişikliklerini yaptıktan sonra Öğrenci Katılım Raporu sayfasına dönün ve Gözden Geçir sekmesinin Değişiklikler grubunda Sayfayı Koru öğesini ve ardından Tamam'ı tıklatın."]
[{"$nulls":4},"İpucu: Okul renklerinize uyan yeni özel bir tema rengi kümesi oluşturun! Sayfa Düzeni sekmesinin Temalar grubunda Renkler'i ve renk galerisinin altındaki Yeni Tema Rengi Oluştur'u tıklatın. Özel renk kümesi oluşturma hakkında daha fazla bilgi için, şu Yardım başlığını görüntüleyin: "]
[{"$nulls":4},"Belge temasını özelleştirin."]
[]
[null,"ÖĞRENCİLERİMİ EKLEDİM, ŞİMDİ NE YAPMALIYIM?"]
[null,null,"Öğrencileriniz Öğrenci Listesi sayfasına girildikten sonra, şu adımları kullanarak okul yılı boyunca derse katılımlarını izlemeye başlayabilirsiniz:"]
[{"$nulls":3},"1.","Katılım kaydına öğrenci eklemek için, Öğrenci No sütunu altındaki bir hücreyi tıklatın ve listeden bir numara seçin. Numara seçildikten sonra öğrencinin adı otomatik olarak görüntülenir. "]
[{"$nulls":4},"İpucu: Veri girişi adımlarını kaydedebilirsiniz! Öğrencilerinizi bir aya ekledikten sonra kalan sütunlar için, girilen Öğrenci No.'larını seçin, kopyalayın ve Öğrenci No sütununa yapıştırın. "]
[{"$nulls":3},"2.","Renk Tuşu'nda verilen katılım türlerini kullanarak ayın her gününe ait katılım kayıtlarını girin. Öğrenci katılımı, Toplam sütununda her öğrenci için katılım türüne göre otomatik olarak hesaplanır. Her gün için toplam gelmeyen sayısı, tablonun altındaki Toplam satırında otomatik olarak hesaplanır."]
[]
[null,"AYLIK KATILIM KAYDINA NASIL DAHA FAZLA ÖĞRENCİ EKLEYEBİLİRİM?"]
[null,null,"Aylık katılım kayıtları sayfaları ve Öğrenci Listesi Excel tablolarıdır. Bir Excel tablosuna yeni satırlar eklemek için şunları yapın:"]
[{"$nulls":3},"● ","Tabloda bir Toplam satırı yoksa tablonun altına yazmaya başlayın, Enter veya Tab tuşuna bastığınızda otomatik olarak genişleyecektir."]
[{"$nulls":3},"● ","Hücre işaretçinizi, son öğrencinin Gelmediği Günler hücresi gibi, Toplam satırının bir üstündeki hücreye getirin ve Tab tuşuna basın."]
[{"$nulls":3},"● ","Tabloyu sağ tıklatın ve açılır menüde, Ekle öğesinin üstüne gelin, ardından Yukarıdaki Tablo Satırları ya da Aşağıdaki Tablo Satırları öğesini tıklatın. "]
[{"$nulls":3},"● ","Tablonun sağ alt köşesinde, farenizi tablo boyutlandırma tutamacının üzerine getirin ve kullanılabilir tablo satırlarının sayısını artırmak için aşağı sürükleyin."]
[]
[null,"BİR ÖĞRENİN TÜM YIL BOYUNCA DERSE KATILIM KAYDINI GÖREBİLİR MİYİM?"]
[null,null,"Bu çalışma kitabındaki son sayfa olan Öğrenci Katılım Raporu, bugüne kadarki derse katılımları izler. Belirli bir öğrenciye ait raporu görüntülemek için, Öğrenci No altındaki hücreyi tıklatın ve açılır listeden bir numara seçin. Seçili öğrenci için Öğrenci Listesi sayfasına daha önceden girdiğiniz bilgiler otomatik olarak görüntülenir. Öğrenci Katılım Raporu'nu ilk kullanışınızda, Okul, Not, Öğretmen ve Sınıf gibi bilgileri girmeniz gerektiğini unutmayın. Bu bilgiler başka bir öğrenci seçerseniz değişmeyecektir. "]

{"sheet":"Öğrenci Listesi","index":1,"n_rows":8,"n_cols":19,"rows_kept":8}
["ÖĞRENCİ LİSTESİ"]
[]
[null,"Öğrenci No","Öğrenci Adı","Öğrenci Soyadı","Cinsiyet","Doğum Tarihi","Ebeveyn ya da Veli 1","Ebeveyn/Veli 1 Yakınlık Durumu","Ebeveyn/Veli 1 İş Telefonu","Ebeveyn/Veli 1 Ev Telefonu","Ebeveyn/Veli 2","Ebeveyn/Veli 2 Yakınlık Durumu","Ebeveyn/Veli 2 İş Telefonu","Ebeveyn/Veli 2 Ev Telefonu","Acil Durumda Aranacak Kişi","Acil Durumda Aranacak Kişi Yakınlık Durumu","Acil Durumda Aranacak Kişi İş Telefonu","Acil Durumda Aranacak Kişi Ev Telefonu","Öğrencinin Tam Adı"]
[null,"Ö001","Ali","Yılmaz","E","1997-03-28","Melek","Yılmaz",1235550134,2345550134,"Mehmet Yılmaz","Babası",1235550134,2345550134,"Rıfat Koç","Dedesi",7895550189,7895550134,{"$f":"ÖğrenciListesi[[#This Row],[Öğrenci Adı]]&\" \" &ÖğrenciListesi[[#This Row],[Öğrenci Soyadı]]","v":"Ali Yılmaz"}]
[null,"Ö002","Öğrenci",2,{"$nulls":14},{"$f":"ÖğrenciListesi[[#This Row],[Öğrenci Adı]]&\" \" &ÖğrenciListesi[[#This Row],[Öğrenci Soyadı]]","v":"Öğrenci 2"}]
[null,"Ö003","Öğrenci",3,{"$nulls":14},{"$f":"ÖğrenciListesi[[#This Row],[Öğrenci Adı]]&\" \" &ÖğrenciListesi[[#This Row],[Öğrenci Soyadı]]","v":"Öğrenci 3"}]
[null,"Ö004","Öğrenci",4,{"$nulls":14},{"$f":"ÖğrenciListesi[[#This Row],[Öğrenci Adı]]&\" \" &ÖğrenciListesi[[#This Row],[Öğrenci Soyadı]]","v":"Öğrenci 4"}]
[null,"Ö005","Öğrenci",5,{"$nulls":14},{"$f":"ÖğrenciListesi[[#This Row],[Öğrenci Adı]]&\" \" &ÖğrenciListesi[[#This Row],[Öğrenci Soyadı]]","v":"Öğrenci 5"}]

{"sheet":"Ağustos","index":2,"n_rows":12,"n_cols":39,"rows_kept":12,"merged":[[4,34,4,38]]}
["ÖĞRENCİ KATILIM KAYDI",{"$nulls":36},"Okul Yılı Başlangıcı:",2012]
[]
[null,null,"RENK TUŞU ","G","Geç",null,null,"Mzl.","Mazeretli",null,null,"Mzs.","Mazeretsiz",null,null,"B","Burada",null,null,"OY","Okul Yok"]
[]
[null,{"$f":"DATE(TakvimYılı,8,1)","v":"2012-08-01"},null,{"$f":"TEXT(WEEKDAY(DATE(TakvimYılı,8,1),1),\"ggg\")","v":"Çar"},{"$f":"TEXT(WEEKDAY(DATE(TakvimYılı,8,2),1),\"ggg\")","v":"Per"},{"$f":"TEXT(WEEKDAY(DATE(TakvimYılı,8,3),1),\"ggg\")","v":"Cum"},{"$f":"TEXT(WEEKDAY(DATE(TakvimYılı,8,4),1),\"ggg\")","v":"Cmt"},{"$f":"TEXT(WEEKDAY(DATE(TakvimYılı,8,5),1),\"ggg\")","v":"Paz"},{"$f":"TEXT(WEEKDAY(DATE(TakvimYılı,8,6),1),\"ggg\")","v":"Pzt"},{"$f":"TEXT(WEEKDAY(DATE(TakvimYılı,8,7),1),\"ggg\")","v":"Sal"},{"$f":"TEXT(WEEKDAY(DATE(TakvimYılı,8,8),1),\"ggg\")","v":"Çar"},{"$f":"TEXT(WEEKDAY(DATE(TakvimYılı,8,9),1),\"ggg\")","v":"Per"},{"$f":"TEXT(WEEKDAY(DATE(TakvimYılı,8,10),1),\"ggg\")","v":"Cum"},{"$f":"TEXT(WEEKDAY(DATE(TakvimYılı,8,11),1),\"ggg\")","v":"Cmt"},{"$f":"TEXT(WEEKDAY(DATE(TakvimYılı,8,12),1),\"ggg\")","v":"Paz"},{"$f":"TEXT(WEEKDAY(DATE(TakvimYılı,8,13),1),\"ggg\")","v":"Pzt"},{"$f":"TEXT(WEEKDAY(DATE(TakvimYılı,8,14),1),\"ggg\")","v":"Sal"},{"$f":"TEXT(WEEKDAY(DATE(TakvimYılı,8,15),1),\"ggg\")","v":"Çar"},{"$f":"TEXT(WEEKDAY(DATE(TakvimYılı,8,16),1),\"ggg\")","v":"Per"},{"$f":"TEXT(WEEKDAY(DATE(TakvimYılı,8,17),1),\"ggg\")","v":"Cum"},{"$f":"TEXT(WEEKDAY(DATE(TakvimYılı,8,18),1),\"ggg\")","v":"Cmt"},{"$f":"TEXT(WEEKDAY(DATE(TakvimYılı,8,19),1),\"ggg\")","v":"Paz"},{"$f":"TEXT(WEEKDAY(DATE(TakvimYılı,8,20),1),\"ggg\")","v":"Pzt"},{"$f":"TEXT(WEEKDAY(DATE(TakvimYılı,8,21),1),\"ggg\")","v":"Sal"},{"$f":"TEXT(WEEKDAY(DATE(TakvimYılı,8,22),1),\"ggg\")","v":"Çar"},{"$f":"TEXT(WEEKDAY(DATE(TakvimYılı,8,23),1),\"ggg\")","v":"Per"},{"$f":"TEXT(WEEKDAY(DATE(TakvimYılı,8,24),1),\"ggg\")","v":"Cum"},{"$f":"TEXT(WEEKDAY(DATE(TakvimYılı,8,25),1),\"ggg\")","v":"Cmt"},{"$f":"TEXT(WEEKDAY(DATE(TakvimYılı,8,26),1),\"ggg\")","v":"Paz"},{"$f":"TEXT(WEEKDAY(DATE(TakvimYılı,8,27),1),\"ggg\")","v":"Pzt"},{"$f":"TEXT(WEEKDAY(DATE(TakvimYılı,8,28),1),\"ggg\")","v":"Sal"},{"$f":"TEXT(WEEKDAY(DATE(TakvimYılı,8,29),1),\"ggg\")","v":"Çar"},{"$f":"TEXT(WEEKDAY(DATE(TakvimYılı,8,30),1),\"ggg\")","v":"Per"},{"$f":"TEXT(WEEKDAY(DATE(TakvimYılı,8,31),1),\"ggg\")","v":"Cum"},"Toplam"]
[null,"Öğrenci No","Öğrenci Adı","1","2","3","4","5","6","7","8","9","10","11","12","13","14","15","16","17","18","19","20","21","22","23","24","25","26","27","28","29","30","31","G","Mzl.","Mzs.","B","Gelmediği Günler"]
[null,"Ö001",{"$f":"IFERROR(VLOOKUP(AğustosDevamlılığı[[#This Row],[Öğrenci No]],ÖğrenciListesi[],18,FALSE),\"\")","v":"Ali Yılmaz"},"B","B","G","G","B","OY","OY","B","B","Mzl.","B","B","OY","OY","B","B","B","B","B","OY","OY","B","B","B","B","B","OY","OY","B","B","B",{"$f":"COUNTIF(AğustosDevamlılığı[[#This Row],[1]:[31]],KOD1)","v":0},{"$f":"COUNTIF(AğustosDevamlılığı[[#This Row],[1]:[31]],KOD2)","v":0},{"$f":"COUNTIF(AğustosDevamlılığı[[#This Row],[1]:[31]],KOD3)","v":0},{"$f":"COUNTIF(AğustosDevamlılığı[[#This Row],[1]:[31]],KOD4)","v":0},{"$f":"SUM(AğustosDevamlılığı[[#This Row],[Mzl.]:[Mzs.]])","v":0}]
[null,"Ö002",{"$f":"IFERROR(VLOOKUP(AğustosDevamlılığı[[#This Row],[Öğrenci No]],ÖğrenciListesi[],18,FALSE),\"\")","v":"Öğrenci 2"},"B","Mzs.","B","B","B","OY","OY","B","Mzl.","Mzl.","Mzl.","Mzl.","OY","OY","B","B","B","B","B","OY","OY","B","B","B","G","G","OY","OY","B","B","B",{"$f":"COUNTIF(AğustosDevamlılığı[[#This Row],[1]:[31]],KOD1)","v":0},{"$f":"COUNTIF(AğustosDevamlılığı[[#This Row],[1]:[31]],KOD2)","v":0},{"$f":"COUNTIF(AğustosDevamlılığı[[#This Row],[1]:[31]],KOD3)","v":0},{"$f":"COUNTIF(AğustosDevamlılığı[[#This Row],[1]:[31]],KOD4)","v":0},{"$f":"SUM(AğustosDevamlılığı[[#This Row],[Mzl.]:[Mzs.]])","v":0}]
[null,"Ö003",{"$f":"IFERROR(VLOOKUP(AğustosDevamlılığı[[#This Row],[Öğrenci No]],ÖğrenciListesi[],18,FALSE),\"\")","v":"Öğrenci 3"},"B","Mzl.","B","B","B","OY","OY","B","B","Mzs.","B","B","OY","OY","B","B","B","B","B","OY","OY","B","B","Mzl.","Mzl.","B","OY","OY","B","B","B",{"$f":"COUNTIF(AğustosDevamlılığı[[#This Row],[1]:[31]],KOD1)","v":0},{"$f":"COUNTIF(AğustosDevamlılığı[[#This Row],[1]:[31]],KOD2)","v":0},{"$f":"COUNTIF(AğustosDevamlılığı[[#This Row],[1]:[31]],KOD3)","v":0},{"$f":"COUNTIF(AğustosDevamlılığı[[#This Row],[1]:[31]],KOD4)","v":0},{"$f":"SUM(AğustosDevamlılığı[[#This Row],[Mzl.]:[Mzs.]])","v":0}]
[null,"Ö004",{"$f":"IFERROR(VLOOKUP(AğustosDevamlılığı[[#This Row],[Öğrenci No]],ÖğrenciListesi[],18,FALSE),\"\")","v":"Öğrenci 4"},"B","B","B","B","B","OY","OY","B","B","B","B","B","OY","OY","B","B","B","B","B","OY","OY","B","Mzs.","B","B","Mzl.","OY","OY","B","Mzl.","B",{"$f":"COUNTIF(AğustosDevamlılığı[[#This Row],[1]:[31]],KOD1)","v":0},{"$f":"COUNTIF(AğustosDevamlılığı[[#This Row],[1]:[31]],KOD2)","v":0},{"$f":"COUNTIF(AğustosDevamlılığı[[#This Row],[1]:[31]],KOD3)","v":0},{"$f":"COUNTIF(AğustosDevamlılığı[[#This Row],[1]:[31]],KOD4)","v":0},{"$f":"SUM(AğustosDevamlılığı[[#This Row],[Mzl.]:[Mzs.]])","v":0}]
[null,"Ö005",{"$f":"IFERROR(VLOOKUP(AğustosDevamlılığı[[#This Row],[Öğrenci No]],ÖğrenciListesi[],18,FALSE),\"\")","v":"Öğrenci 5"},"B","B","B","B","B","OY","OY","B","B","B","B","B","OY","OY","B","B","B","B","B","OY","OY","B","B","B","B","B","OY","OY","B","B","B",{"$f":"COUNTIF(AğustosDevamlılığı[[#This Row],[1]:[31]],KOD1)","v":0},{"$f":"COUNTIF(AğustosDevamlılığı[[#This Row],[1]:[31]],KOD2)","v":0},{"$f":"COUNTIF(AğustosDevamlılığı[[#This Row],[1]:[31]],KOD3)","v":0},{"$f":"COUNTIF(AğustosDevamlılığı[[#This Row],[1]:[31]],KOD4)","v":0},{"$f":"SUM(AğustosDevamlılığı[[#This Row],[Mzl.]:[Mzs.]])","v":0}]
[null,null,"Toplam gelmediği gün",{"$f":"COUNTIF(AğustosDevamlılığı[1],\"Mzs.\")+COUNTIF(AğustosDevamlılığı[1],\"Mzl.\")","v":0},{"$f":"COUNTIF(AğustosDevamlılığı[2],\"Mzs.\")+COUNTIF(AğustosDevamlılığı[2],\"Mzl.\")","v":2},{"$f":"COUNTIF(AğustosDevamlılığı[3],\"Mzs.\")+COUNTIF(AğustosDevamlılığı[3],\"Mzl.\")","v":0},{"$f":"COUNTIF(AğustosDevamlılığı[4],\"Mzs.\")+COUNTIF(AğustosDevamlılığı[4],\"Mzl.\")","v":0},{"$f":"COUNTIF(AğustosDevamlılığı[5],\"Mzs.\")+COUNTIF(AğustosDevamlılığı[5],\"Mzl.\")","v":0},{"$f":"COUNTIF(AğustosDevamlılığı[6],\"Mzs.\")+COUNTIF(AğustosDevamlılığı[6],\"Mzl.\")","v":0},{"$f":"COUNTIF(AğustosDevamlılığı[7],\"Mzs.\")+COUNTIF(AğustosDevamlılığı[7],\"Mzl.\")","v":0},{"$f":"COUNTIF(AğustosDevamlılığı[8],\"Mzs.\")+COUNTIF(AğustosDevamlılığı[8],\"Mzl.\")","v":0},{"$f":"COUNTIF(AğustosDevamlılığı[9],\"Mzs.\")+COUNTIF(AğustosDevamlılığı[9],\"Mzl.\")","v":1},{"$f":"COUNTIF(AğustosDevamlılığı[10],\"Mzs.\")+COUNTIF(AğustosDevamlılığı[10],\"Mzl.\")","v":3},{"$f":"COUNTIF(AğustosDevamlılığı[11],\"Mzs.\")+COUNTIF(AğustosDevamlılığı[11],\"Mzl.\")","v":1},{"$f":"COUNTIF(AğustosDevamlılığı[12],\"Mzs.\")+COUNTIF(AğustosDevamlılığı[12],\"Mzl.\")","v":1},{"$f":"COUNTIF(AğustosDevamlılığı[13],\"Mzs.\")+COUNTIF(AğustosDevamlılığı[13],\"Mzl.\")","v":0},{"$f":"COUNTIF(AğustosDevamlılığı[14],\"Mzs.\")+COUNTIF(AğustosDevamlılığı[14],\"Mzl.\")","v":0},{"$f":"COUNTIF(AğustosDevamlılığı[15],\"Mzs.\")+COUNTIF(AğustosDevamlılığı[15],\"Mzl.\")","v":0},{"$f":"COUNTIF(AğustosDevamlılığı[16],\"Mzs.\")+COUNTIF(AğustosDevamlılığı[16],\"Mzl.\")","v":0},{"$f":"COUNTIF(AğustosDevamlılığı[17],\"Mzs.\")+COUNTIF(AğustosDevamlılığı[17],\"Mzl.\")","v":0},{"$f":"COUNTIF(AğustosDevamlılığı[18],\"Mzs.\")+COUNTIF(AğustosDevamlılığı[18],\"Mzl.\")","v":0},{"$f":"COUNTIF(AğustosDevamlılığı[19],\"Mzs.\")+COUNTIF(AğustosDevamlılığı[19],\"Mzl.\")","v":0},{"$f":"COUNTIF(AğustosDevamlılığı[20],\"Mzs.\")+COUNTIF(AğustosDevamlılığı[20],\"Mzl.\")","v":0},{"$f":"COUNTIF(AğustosDevamlılığı[21],\"Mzs.\")+COUNTIF(AğustosDevamlılığı[21],\"Mzl.\")","v":0},{"$f":"COUNTIF(AğustosDevamlılığı[22],\"Mzs.\")+COUNTIF(AğustosDevamlılığı[22],\"Mzl.\")","v":0},{"$f":"COUNTIF(AğustosDevamlılığı[23],\"Mzs.\")+COUNTIF(AğustosDevamlılığı[23],\"Mzl.\")","v":1},{"$f":"COUNTIF(AğustosDevamlılığı[24],\"Mzs.\")+COUNTIF(AğustosDevamlılığı[24],\"Mzl.\")","v":1},{"$f":"COUNTIF(AğustosDevamlılığı[25],\"Mzs.\")+COUNTIF(AğustosDevamlılığı[25],\"Mzl.\")","v":1},{"$f":"COUNTIF(AğustosDevamlılığı[26],\"Mzs.\")+COUNTIF(AğustosDevamlılığı[26],\"Mzl.\")","v":1},{"$f":"COUNTIF(AğustosDevamlılığı[27],\"Mzs.\")+COUNTIF(AğustosDevamlılığı[27],\"Mzl.\")","v":0},{"$f":"COUNTIF(AğustosDevamlılığı[28],\"Mzs.\")+COUNTIF(AğustosDevamlılığı[28],\"Mzl.\")","v":0},{"$f":"COUNTIF(AğustosDevamlılığı[29],\"Mzs.\")+COUNTIF(AğustosDevamlılığı[29],\"Mzl.\")","v":0},{"$f":"COUNTIF(AğustosDevamlılığı[30],\"Mzs.\")+COUNTIF(AğustosDevamlılığı[30],\"Mzl.\")","v":1},{"$f":"COUNTIF(AğustosDevamlılığı[31],\"Mzs.\")+COUNTIF(AğustosDevamlılığı[31],\"Mzl.\")","v":0},{"$f":"SUBTOTAL(109,AğustosDevamlılığı[G])","v":0},{"$f":"SUBTOTAL(109,AğustosDevamlılığı[Mzl.])","v":0},{"$f":"SUBTOTAL(109,AğustosDevamlılığı[Mzs.])","v":0},{"$f":"SUBTOTAL(109,AğustosDevamlılığı[B])","v":0},{"$f":"SUBTOTAL(109,AğustosDevamlılığı[Gelmediği Günler])","v":0}]

{"sheet":"Eylül ","index":3,"n_rows":12,"n_cols":39,"rows_kept":12,"merged":[[4,34,4,38]]}
["ÖĞRENCİ KATILIM KAYDI",{"$nulls":36},"Okul Yılı Başlangıcı:",{"$f":"TakvimYılı","v":2012}]
[]
[null,null,{"$f":"RenkAnahtarıMetni","v":"RENK TUŞU "},{"$f":"KOD1","v":"G"},{"$f":"Kod1Metin","v":"Geç"},null,null,{"$f":"KOD2","v":"Mzl."},{"$f":"Kod2Metin","v":"Mazeretli"},null,null,{"$f":"KOD3","v":"Mzs."},{"$f":"Kod3Metin","v":"Mazeretsiz"},null,null,{"$f":"KOD4","v":"B"},{"$f":"Kod4Metin","v":"Burada"},null,null,{"$f":"KOD5","v":"OY"},{"$f":"Kod5Metin","v":"Okul Yok"}]
[]
[null,{"$f":"DATE(TakvimYılı,9,1)","v":"2012-09-01"},null,{"$f":"TEXT(WEEKDAY(DATE(TakvimYılı,9,1),1),\"ggg\")","v":"Cmt"},{"$f":"TEXT(WEEKDAY(DATE(TakvimYılı,9,2),1),\"ggg\")","v":"Paz"},{"$f":"TEXT(WEEKDAY(DATE(TakvimYılı,9,3),1),\"ggg\")","v":"Pzt"},{"$f":"TEXT(WEEKDAY(DATE(TakvimYılı,9,4),1),\"ggg\")","v":"Sal"},{"$f":"TEXT(WEEKDAY(DATE(TakvimYılı,9,5),1),\"ggg\")","v":"Çar"},{"$f":"TEXT(WEEKDAY(DATE(TakvimYılı,9,6),1),\"ggg\")","v":"Per"},{"$f":"TEXT(WEEKDAY(DATE(TakvimYılı,9,7),1),\"ggg\")","v":"Cum"},{"$f":"TEXT(WEEKDAY(DATE(TakvimYılı,9,8),1),\"ggg\")","v":"Cmt"},{"$f":"TEXT(WEEKDAY(DATE(TakvimYılı,9,9),1),\"ggg\")","v":"Paz"},{"$f":"TEXT(WEEKDAY(DATE(TakvimYılı,9,10),1),\"ggg\")","v":"Pzt"},{"$f":"TEXT(WEEKDAY(DATE(TakvimYılı,9,11),1),\"ggg\")","v":"Sal"},{"$f":"TEXT(WEEKDAY(DATE(TakvimYılı,9,12),1),\"ggg\")","v":"Çar"},{"$f":"TEXT(WEEKDAY(DATE(TakvimYılı,9,13),1),\"ggg\")","v":"Per"},{"$f":"TEXT(WEEKDAY(DATE(TakvimYılı,9,14),1),\"ggg\")","v":"Cum"},{"$f":"TEXT(WEEKDAY(DATE(TakvimYılı,9,15),1),\"ggg\")","v":"Cmt"},{"$f":"TEXT(WEEKDAY(DATE(TakvimYılı,9,16),1),\"ggg\")","v":"Paz"},{"$f":"TEXT(WEEKDAY(DATE(TakvimYılı,9,17),1),\"ggg\")","v":"Pzt"},{"$f":"TEXT(WEEKDAY(DATE(TakvimYılı,9,18),1),\"ggg\")","v":"Sal"},{"$f":"TEXT(WEEKDAY(DATE(TakvimYılı,9,19),1),\"ggg\")","v":"Çar"},{"$f":"TEXT(WEEKDAY(DATE(TakvimYılı,9,20),1),\"ggg\")","v":"Per"},{"$f":"TEXT(WEEKDAY(DATE(TakvimYılı,9,21),1),\"ggg\")","v":"Cum"},{"$f":"TEXT(WEEKDAY(DATE(TakvimYılı,9,22),1),\"ggg\")","v":"Cmt"},{"$f":"TEXT(WEEKDAY(DATE(TakvimYılı,9,23),1),\"ggg\")","v":"Paz"},{"$f":"TEXT(WEEKDAY(DATE(TakvimYılı,9,24),1),\"ggg\")","v":"Pzt"},{"$f":"TEXT(WEEKDAY(DATE(TakvimYılı,9,25),1),\"ggg\")","v":"Sal"},{"$f":"TEXT(WEEKDAY(DATE(TakvimYılı,9,26),1),\"ggg\")","v":"Çar"},{"$f":"TEXT(WEEKDAY(DATE(TakvimYılı,9,27),1),\"ggg\")","v":"Per"},{"$f":"TEXT(WEEKDAY(DATE(TakvimYılı,9,28),1),\"ggg\")","v":"Cum"},{"$f":"TEXT(WEEKDAY(DATE(TakvimYılı,9,29),1),\"ggg\")","v":"Cmt"},{"$f":"TEXT(WEEKDAY(DATE(TakvimYılı,9,30),1),\"ggg\")","v":"Paz"},null,"Toplam"]
[null,"Öğrenci No","Öğrenci Adı","1","2","3","4","5","6","7","8","9","10","11","12","13","14","15","16","17","18","19","20","21","22","23","24","25","26","27","28","29","30"," ","G","Mzl.","Mzs.","B","Gelmediği Günler"]
[null,null,{"$f":"IFERROR(VLOOKUP(EylülDevamlılığı[[#This Row],[Öğrenci No]],ÖğrenciListesi[],18,FALSE),\"\")","v":""},{"$nulls":31},{"$f":"COUNTIF(EylülDevamlılığı[[#This Row],[1]:[ ]],KOD1)","v":0},{"$f":"COUNTIF(EylülDevamlılığı[[#This Row],[1]:[ ]],KOD2)","v":0},{"$f":"COUNTIF(EylülDevamlılığı[[#This Row],[1]:[ ]],KOD3)","v":0},{"$f":"COUNTIF(EylülDevamlılığı[[#This Row],[1]:[ ]],KOD4)","v":0},{"$f":"SUM(EylülDevamlılığı[[#This Row],[Mzl.]:[Mzs.]])","v":0}]
[null,null,{"$f":"IFERROR(VLOOKUP(EylülDevamlılığı[[#This Row],[Öğrenci No]],ÖğrenciListesi[],18,FALSE),\"\")","v":""},{"$nulls":31},{"$f":"COUNTIF(EylülDevamlılığı[[#This Row],[1]:[ ]],KOD1)","v":0},{"$f":"COUNTIF(EylülDevamlılığı[[#This Row],[1]:[ ]],KOD2)","v":0},{"$f":"COUNTIF(EylülDevamlılığı[[#This Row],[1]:[ ]],KOD3)","v":0},{"$f":"COUNTIF(EylülDevamlılığı[[#This Row],[1]:[ ]],KOD4)","v":0},{"$f":"SUM(EylülDevamlılığı[[#This Row],[Mzl.]:[Mzs.]])","v":0}]
[null,null,{"$f":"IFERROR(VLOOKUP(EylülDevamlılığı[[#This Row],[Öğrenci No]],ÖğrenciListesi[],18,FALSE),\"\")","v":""},{"$nulls":31},{"$f":"COUNTIF(EylülDevamlılığı[[#This Row],[1]:[ ]],KOD1)","v":0},{"$f":"COUNTIF(EylülDevamlılığı[[#This Row],[1]:[ ]],KOD2)","v":0},{"$f":"COUNTIF(EylülDevamlılığı[[#This Row],[1]:[ ]],KOD3)","v":0},{"$f":"COUNTIF(EylülDevamlılığı[[#This Row],[1]:[ ]],KOD4)","v":0},{"$f":"SUM(EylülDevamlılığı[[#This Row],[Mzl.]:[Mzs.]])","v":0}]
[null,null,{"$f":"IFERROR(VLOOKUP(EylülDevamlılığı[[#This Row],[Öğrenci No]],ÖğrenciListesi[],18,FALSE),\"\")","v":""},{"$nulls":31},{"$f":"COUNTIF(EylülDevamlılığı[[#This Row],[1]:[ ]],KOD1)","v":0},{"$f":"COUNTIF(EylülDevamlılığı[[#This Row],[1]:[ ]],KOD2)","v":0},{"$f":"COUNTIF(EylülDevamlılığı[[#This Row],[1]:[ ]],KOD3)","v":0},{"$f":"COUNTIF(EylülDevamlılığı[[#This Row],[1]:[ ]],KOD4)","v":0},{"$f":"SUM(EylülDevamlılığı[[#This Row],[Mzl.]:[Mzs.]])","v":0}]
[null,null,{"$f":"IFERROR(VLOOKUP(EylülDevamlılığı[[#This Row],[Öğrenci No]],ÖğrenciListesi[],18,FALSE),\"\")","v":""},{"$nulls":31},{"$f":"COUNTIF(EylülDevamlılığı[[#This Row],[1]:[ ]],KOD1)","v":0},{"$f":"COUNTIF(EylülDevamlılığı[[#This Row],[1]:[ ]],KOD2)","v":0},{"$f":"COUNTIF(EylülDevamlılığı[[#This Row],[1]:[ ]],KOD3)","v":0},{"$f":"COUNTIF(EylülDevamlılığı[[#This Row],[1]:[ ]],KOD4)","v":0},{"$f":"SUM(EylülDevamlılığı[[#This Row],[Mzl.]:[Mzs.]])","v":0}]
[null,null,"Toplam gelmediği gün",{"$f":"COUNTIF(EylülDevamlılığı[1],\"Mzs.\")+COUNTIF(EylülDevamlılığı[1],\"Mzl.\")","v":0},{"$f":"COUNTIF(EylülDevamlılığı[2],\"Mzs.\")+COUNTIF(EylülDevamlılığı[2],\"Mzl.\")","v":0},{"$f":"COUNTIF(EylülDevamlılığı[3],\"Mzs.\")+COUNTIF(EylülDevamlılığı[3],\"Mzl.\")","v":0},{"$f":"COUNTIF(EylülDevamlılığı[4],\"Mzs.\")+COUNTIF(EylülDevamlılığı[4],\"Mzl.\")","v":0},{"$f":"COUNTIF(EylülDevamlılığı[5],\"Mzs.\")+COUNTIF(EylülDevamlılığı[5],\"Mzl.\")","v":0},{"$f":"COUNTIF(EylülDevamlılığı[6],\"Mzs.\")+COUNTIF(EylülDevamlılığı[6],\"Mzl.\")","v":0},{"$f":"COUNTIF(EylülDevamlılığı[7],\"Mzs.\")+COUNTIF(EylülDevamlılığı[7],\"Mzl.\")","v":0},{"$f":"COUNTIF(EylülDevamlılığı[8],\"Mzs.\")+COUNTIF(EylülDevamlılığı[8],\"Mzl.\")","v":0},{"$f":"COUNTIF(EylülDevamlılığı[9],\"Mzs.\")+COUNTIF(EylülDevamlılığı[9],\"Mzl.\")","v":0},{"$f":"COUNTIF(EylülDevamlılığı[10],\"Mzs.\")+COUNTIF(EylülDevamlılığı[10],\"Mzl.\")","v":0},{"$f":"COUNTIF(EylülDevamlılığı[11],\"Mzs.\")+COUNTIF(EylülDevamlılığı[11],\"Mzl.\")","v":0},{"$f":"COUNTIF(EylülDevamlılığı[12],\"Mzs.\")+COUNTIF(EylülDevamlılığı[12],\"Mzl.\")","v":0},{"$f":"COUNTIF(EylülDevamlılığı[13],\"Mzs.\")+COUNTIF(EylülDevamlılığı[13],\"Mzl.\")","v":0},{"$f":"COUNTIF(EylülDevamlılığı[14],\"Mzs.\")+COUNTIF(EylülDevamlılığı[14],\"Mzl.\")","v":0},{"$f":"COUNTIF(EylülDevamlılığı[15],\"Mzs.\")+COUNTIF(EylülDevamlılığı[15],\"Mzl.\")","v":0},{"$f":"COUNTIF(EylülDevamlılığı[16],\"Mzs.\")+COUNTIF(EylülDevamlılığı[16],\"Mzl.\")","v":0},{"$f":"COUNTIF(EylülDevamlılığı[17],\"Mzs.\")+COUNTIF(EylülDevamlılığı[17],\"Mzl.\")","v":0},{"$f":"COUNTIF(EylülDevamlılığı[18],\"Mzs.\")+COUNTIF(EylülDevamlılığı[18],\"Mzl.\")","v":0},{"$f":"COUNTIF(EylülDevamlılığı[19],\"Mzs.\")+COUNTIF(EylülDevamlılığı[19],\"Mzl.\")","v":0},{"$f":"COUNTIF(EylülDevamlılığı[20],\"Mzs.\")+COUNTIF(EylülDevamlılığı[20],\"Mzl.\")","v":0},{"$f":"COUNTIF(EylülDevamlılığı[21],\"Mzs.\")+COUNTIF(EylülDevamlılığı[21],\"Mzl.\")","v":0},{"$f":"COUNTIF(EylülDevamlılığı[22],\"Mzs.\")+COUNTIF(EylülDevamlılığı[22],\"Mzl.\")","v":0},{"$f":"COUNTIF(EylülDevamlılığı[23],\"Mzs.\")+COUNTIF(EylülDevamlılığı[23],\"Mzl.\")","v":0},{"$f":"COUNTIF(EylülDevamlılığı[24],\"Mzs.\")+COUNTIF(EylülDevamlılığı[24],\"Mzl.\")","v":0},{"$f":"COUNTIF(EylülDevamlılığı[25],\"Mzs.\")+COUNTIF(EylülDevamlılığı[25],\"Mzl.\")","v":0},{"$f":"COUNTIF(EylülDevamlılığı[26],\"Mzs.\")+COUNTIF(EylülDevamlılığı[26],\"Mzl.\")","v":0},{"$f":"COUNTIF(EylülDevamlılığı[27],\"Mzs.\")+COUNTIF(EylülDevamlılığı[27],\"Mzl.\")","v":0},{"$f":"COUNTIF(EylülDevamlılığı[28],\"Mzs.\")+COUNTIF(EylülDevamlılığı[28],\"Mzl.\")","v":0},{"$f":"COUNTIF(EylülDevamlılığı[29],\"Mzs.\")+COUNTIF(EylülDevamlılığı[29],\"Mzl.\")","v":0},{"$f":"COUNTIF(EylülDevamlılığı[30],\"Mzs.\")+COUNTIF(EylülDevamlılığı[30],\"Mzl.\")","v":0},{"$f":"COUNTIF(EylülDevamlılığı[[ ]],\"Mzs.\")+COUNTIF(EylülDevamlılığı[[ ]],\"Mzl.\")","v":0},{"$f":"SUBTOTAL(109,EylülDevamlılığı[G])","v":0},{"$f":"SUBTOTAL(109,EylülDevamlılığı[Mzl.])","v":0},{"$f":"SUBTOTAL(109,EylülDevamlılığı[Mzs.])","v":0},{"$f":"SUBTOTAL(109,EylülDevamlılığı[B])","v":0},{"$f":"SUBTOTAL(109,EylülDevamlılığı[Gelmediği Günler])","v":0}]

{"sheet":"Ekim","index":4,"n_rows":12,"n_cols":39,"rows_kept":12,"merged":[[4,34,4,38]]}
["ÖĞRENCİ KATILIM KAYDI",{"$nulls":36},"Okul Yılı Başlangıcı:",{"$f":"TakvimYılı","v":2012}]
[]
[null,null,{"$f":"RenkAnahtarıMetni","v":"RENK TUŞU "},{"$f":"KOD1","v":"G"},{"$f":"Kod1Metin","v":"Geç"},null,null,{"$f":"KOD2","v":"Mzl."},{"$f":"Kod2Metin","v":"Mazeretli"},null,null,{"$f":"KOD3","v":"Mzs."},{"$f":"Kod3Metin","v":"Mazeretsiz"},null,null,{"$f":"KOD4","v":"B"},{"$f":"Kod4Metin","v":"Burada"},null,null,{"$f":"KOD5","v":"OY"},{"$f":"Kod5Metin","v":"Okul Yok"}]
[]
[null,{"$f":"DATE(TakvimYılı,10,1)","v":"2012-10-01"},null,{"$f":"TEXT(WEEKDAY(DATE(TakvimYılı,10,1),1),\"ggg\")","v":"Pzt"},{"$f":"TEXT(WEEKDAY(DATE(TakvimYılı,10,2),1),\"ggg\")","v":"Sal"},{"$f":"TEXT(WEEKDAY(DATE(TakvimYılı,10,3),1),\"ggg\")","v":"Çar"},{"$f":"TEXT(WEEKDAY(DATE(TakvimYılı,10,4),1),\"ggg\")","v":"Per"},{"$f":"TEXT(WEEKDAY(DATE(TakvimYılı,10,5),1),\"ggg\")","v":"Cum"},{"$f":"TEXT(WEEKDAY(DATE(TakvimYılı,10,6),1),\"ggg\")","v":"Cmt"},{"$f":"TEXT(WEEKDAY(DATE(TakvimYılı,10,7),1),\"ggg\")","v":"Paz"},{"$f":"TEXT(WEEKDAY(DATE(TakvimYılı,10,8),1),\"ggg\")","v":"Pzt"},{"$f":"TEXT(WEEKDAY(DATE(TakvimYılı,10,9),1),\"ggg\")","v":"Sal"},{"$f":"TEXT(WEEKDAY(DATE(TakvimYılı,10,10),1),\"ggg\")","v":"Çar"},{"$f":"TEXT(WEEKDAY(DATE(TakvimYılı,10,11),1),\"ggg\")","v":"Per"},{"$f":"TEXT(WEEKDAY(DATE(TakvimYılı,10,12),1),\"ggg\")","v":"Cum"},{"$f":"TEXT(WEEKDAY(DATE(TakvimYılı,10,13),1),\"ggg\")","v":"Cmt"},{"$f":"TEXT(WEEKDAY(DATE(TakvimYılı,10,14),1),\"ggg\")","v":"Paz"},{"$f":"TEXT(WEEKDAY(DATE(TakvimYılı,10,15),1),\"ggg\")","v":"Pzt"},{"$f":"TEXT(WEEKDAY(DATE(TakvimYılı,10,16),1),\"ggg\")","v":"Sal"},{"$f":"TEXT(WEEKDAY(DATE(TakvimYılı,10,17),1),\"ggg\")","v":"Çar"},{"$f":"TEXT(WEEKDAY(DATE(TakvimYılı,10,18),1),\"ggg\")","v":"Per"},{"$f":"TEXT(WEEKDAY(DATE(TakvimYılı,10,19),1),\"ggg\")","v":"Cum"},{"$f":"TEXT(WEEKDAY(DATE(TakvimYılı,10,20),1),\"ggg\")","v":"Cmt"},{"$f":"TEXT(WEEKDAY(DATE(TakvimYılı,10,21),1),\"ggg\")","v":"Paz"},{"$f":"TEXT(WEEKDAY(DATE(TakvimYılı,10,22),1),\"ggg\")","v":"Pzt"},{"$f":"TEXT(WEEKDAY(DATE(TakvimYılı,10,23),1),\"ggg\")","v":"Sal"},{"$f":"TEXT(WEEKDAY(DATE(TakvimYılı,10,24),1),\"ggg\")","v":"Çar"},{"$f":"TEXT(WEEKDAY(DATE(TakvimYılı,10,25),1),\"ggg\")","v":"Per"},{"$f":"TEXT(WEEKDAY(DATE(TakvimYılı,10,26),1),\"ggg\")","v":"Cum"},{"$f":"TEXT(WEEKDAY(DATE(TakvimYılı,10,27),1),\"ggg\")","v":"Cmt"},{"$f":"TEXT(WEEKDAY(DATE(TakvimYılı,10,28),1),\"ggg\")","v":"Paz"},{"$f":"TEXT(WEEKDAY(DATE(TakvimYılı,10,29),1),\"ggg\")","v":"Pzt"},{"$f":"TEXT(WEEKDAY(DATE(TakvimYılı,10,30),1),\"ggg\")","v":"Sal"},{"$f":"TEXT(WEEKDAY(DATE(TakvimYılı,10,31),1),\"ggg\")","v":"Çar"},"Toplam"]
[null,"Öğrenci No","Öğrenci Adı","1","2","3","4","5","6","7","8","9","10","11","12","13","14","15","16","17","18","19","20","21","22","23","24","25","26","27","28","29","30","31","G","Mzl.","Mzs.","B","Gelmediği Günler"]
[null,null,{"$f":"IFERROR(VLOOKUP(EkimDevamlılığı[[#This Row],[Öğrenci No]],ÖğrenciListesi[],18,FALSE),\"\")","v":""},{"$nulls":31},{"$f":"COUNTIF(EkimDevamlılığı[[#This Row],[1]:[31]],KOD1)","v":0},{"$f":"COUNTIF(EkimDevamlılığı[[#This Row],[1]:[31]],KOD2)","v":0},{"$f":"COUNTIF(EkimDevamlılığı[[#This Row],[1]:[31]],KOD3)","v":0},{"$f":"COUNTIF(EkimDevamlılığı[[#This Row],[1]:[31]],KOD4)","v":0},{"$f":"SUM(EkimDevamlılığı[[#This Row],[Mzl.]:[Mzs.]])","v":0}]
[null,null,{"$f":"IFERROR(VLOOKUP(EkimDevamlılığı[[#This Row],[Öğrenci No]],ÖğrenciListesi[],18,FALSE),\"\")","v":""},{"$nulls":31},{"$f":"COUNTIF(EkimDevamlılığı[[#This Row],[1]:[31]],KOD1)","v":0},{"$f":"COUNTIF(EkimDevamlılığı[[#This Row],[1]:[31]],KOD2)","v":0},{"$f":"COUNTIF(EkimDevamlılığı[[#This Row],[1]:[31]],KOD3)","v":0},{"$f":"COUNTIF(EkimDevamlılığı[[#This Row],[1]:[31]],KOD4)","v":0},{"$f":"SUM(EkimDevamlılığı[[#This Row],[Mzl.]:[Mzs.]])","v":0}]
[null,null,{"$f":"IFERROR(VLOOKUP(EkimDevamlılığı[[#This Row],[Öğrenci No]],ÖğrenciListesi[],18,FALSE),\"\")","v":""},{"$nulls":31},{"$f":"COUNTIF(EkimDevamlılığı[[#This Row],[1]:[31]],KOD1)","v":0},{"$f":"COUNTIF(EkimDevamlılığı[[#This Row],[1]:[31]],KOD2)","v":0},{"$f":"COUNTIF(EkimDevamlılığı[[#This Row],[1]:[31]],KOD3)","v":0},{"$f":"COUNTIF(EkimDevamlılığı[[#This Row],[1]:[31]],KOD4)","v":0},{"$f":"SUM(EkimDevamlılığı[[#This Row],[Mzl.]:[Mzs.]])","v":0}]
[null,null,{"$f":"IFERROR(VLOOKUP(EkimDevamlılığı[[#This Row],[Öğrenci No]],ÖğrenciListesi[],18,FALSE),\"\")","v":""},{"$nulls":31},{"$f":"COUNTIF(EkimDevamlılığı[[#This Row],[1]:[31]],KOD1)","v":0},{"$f":"COUNTIF(EkimDevamlılığı[[#This Row],[1]:[31]],KOD2)","v":0},{"$f":"COUNTIF(EkimDevamlılığı[[#This Row],[1]:[31]],KOD3)","v":0},{"$f":"COUNTIF(EkimDevamlılığı[[#This Row],[1]:[31]],KOD4)","v":0},{"$f":"SUM(EkimDevamlılığı[[#This Row],[Mzl.]:[Mzs.]])","v":0}]
[null,null,{"$f":"IFERROR(VLOOKUP(EkimDevamlılığı[[#This Row],[Öğrenci No]],ÖğrenciListesi[],18,FALSE),\"\")","v":""},{"$nulls":31},{"$f":"COUNTIF(EkimDevamlılığı[[#This Row],[1]:[31]],KOD1)","v":0},{"$f":"COUNTIF(EkimDevamlılığı[[#This Row],[1]:[31]],KOD2)","v":0},{"$f":"COUNTIF(EkimDevamlılığı[[#This Row],[1]:[31]],KOD3)","v":0},{"$f":"COUNTIF(EkimDevamlılığı[[#This Row],[1]:[31]],KOD4)","v":0},{"$f":"SUM(EkimDevamlılığı[[#This Row],[Mzl.]:[Mzs.]])","v":0}]
[null,null,"Toplam gelmediği gün",{"$f":"COUNTIF(EkimDevamlılığı[1],\"Mzs.\")+COUNTIF(EkimDevamlılığı[1],\"Mzl.\")","v":0},{"$f":"COUNTIF(EkimDevamlılığı[2],\"Mzs.\")+COUNTIF(EkimDevamlılığı[2],\"Mzl.\")","v":0},{"$f":"COUNTIF(EkimDevamlılığı[3],\"Mzs.\")+COUNTIF(EkimDevamlılığı[3],\"Mzl.\")","v":0},{"$f":"COUNTIF(EkimDevamlılığı[4],\"Mzs.\")+COUNTIF(EkimDevamlılığı[4],\"Mzl.\")","v":0},{"$f":"COUNTIF(EkimDevamlılığı[5],\"Mzs.\")+COUNTIF(EkimDevamlılığı[5],\"Mzl.\")","v":0},{"$f":"COUNTIF(EkimDevamlılığı[6],\"Mzs.\")+COUNTIF(EkimDevamlılığı[6],\"Mzl.\")","v":0},{"$f":"COUNTIF(EkimDevamlılığı[7],\"Mzs.\")+COUNTIF(EkimDevamlılığı[7],\"Mzl.\")","v":0},{"$f":"COUNTIF(EkimDevamlılığı[8],\"Mzs.\")+COUNTIF(EkimDevamlılığı[8],\"Mzl.\")","v":0},{"$f":"COUNTIF(EkimDevamlılığı[9],\"Mzs.\")+COUNTIF(EkimDevamlılığı[9],\"Mzl.\")","v":0},{"$f":"COUNTIF(EkimDevamlılığı[10],\"Mzs.\")+COUNTIF(EkimDevamlılığı[10],\"Mzl.\")","v":0},{"$f":"COUNTIF(EkimDevamlılığı[11],\"Mzs.\")+COUNTIF(EkimDevamlılığı[11],\"Mzl.\")","v":0},{"$f":"COUNTIF(EkimDevamlılığı[12],\"Mzs.\")+COUNTIF(EkimDevamlılığı[12],\"Mzl.\")","v":0},{"$f":"COUNTIF(EkimDevamlılığı[13],\"Mzs.\")+COUNTIF(EkimDevamlılığı[13],\"Mzl.\")","v":0},{"$f":"COUNTIF(EkimDevamlılığı[14],\"Mzs.\")+COUNTIF(EkimDevamlılığı[14],\"Mzl.\")","v":0},{"$f":"COUNTIF(EkimDevamlılığı[15],\"Mzs.\")+COUNTIF(EkimDevamlılığı[15],\"Mzl.\")","v":0},{"$f":"COUNTIF(EkimDevamlılığı[16],\"Mzs.\")+COUNTIF(EkimDevamlılığı[16],\"Mzl.\")","v":0},{"$f":"COUNTIF(EkimDevamlılığı[17],\"Mzs.\")+COUNTIF(EkimDevamlılığı[17],\"Mzl.\")","v":0},{"$f":"COUNTIF(EkimDevamlılığı[18],\"Mzs.\")+COUNTIF(EkimDevamlılığı[18],\"Mzl.\")","v":0},{"$f":"COUNTIF(EkimDevamlılığı[19],\"Mzs.\")+COUNTIF(EkimDevamlılığı[19],\"Mzl.\")","v":0},{"$f":"COUNTIF(EkimDevamlılığı[20],\"Mzs.\")+COUNTIF(EkimDevamlılığı[20],\"Mzl.\")","v":0},{"$f":"COUNTIF(EkimDevamlılığı[21],\"Mzs.\")+COUNTIF(EkimDevamlılığı[21],\"Mzl.\")","v":0},{"$f":"COUNTIF(EkimDevamlılığı[22],\"Mzs.\")+COUNTIF(EkimDevamlılığı[22],\"Mzl.\")","v":0},{"$f":"COUNTIF(EkimDevamlılığı[23],\"Mzs.\")+COUNTIF(EkimDevamlılığı[23],\"Mzl.\")","v":0},{"$f":"COUNTIF(EkimDevamlılığı[24],\"Mzs.\")+COUNTIF(EkimDevamlılığı[24],\"Mzl.\")","v":0},{"$f":"COUNTIF(EkimDevamlılığı[25],\"Mzs.\")+COUNTIF(EkimDevamlılığı[25],\"Mzl.\")","v":0},{"$f":"COUNTIF(EkimDevamlılığı[26],\"Mzs.\")+COUNTIF(EkimDevamlılığı[26],\"Mzl.\")","v":0},{"$f":"COUNTIF(EkimDevamlılığı[27],\"Mzs.\")+COUNTIF(EkimDevamlılığı[27],\"Mzl.\")","v":0},{"$f":"COUNTIF(EkimDevamlılığı[28],\"Mzs.\")+COUNTIF(EkimDevamlılığı[28],\"Mzl.\")","v":0},{"$f":"COUNTIF(EkimDevamlılığı[29],\"Mzs.\")+COUNTIF(EkimDevamlılığı[29],\"Mzl.\")","v":0},{"$f":"COUNTIF(EkimDevamlılığı[30],\"Mzs.\")+COUNTIF(EkimDevamlılığı[30],\"Mzl.\")","v":0},{"$f":"COUNTIF(EkimDevamlılığı[31],\"Mzs.\")+COUNTIF(EkimDevamlılığı[31],\"Mzl.\")","v":0},{"$f":"SUBTOTAL(109,EkimDevamlılığı[G])","v":0},{"$f":"SUBTOTAL(109,EkimDevamlılığı[Mzl.])","v":0},{"$f":"SUBTOTAL(109,EkimDevamlılığı[Mzs.])","v":0},{"$f":"SUBTOTAL(109,EkimDevamlılığı[B])","v":0},{"$f":"SUBTOTAL(109,EkimDevamlılığı[Gelmediği Günler])","v":0}]

{"sheet":"Kasım ","index":5,"n_rows":12,"n_cols":39,"rows_kept":12,"merged":[[4,34,4,38]]}
["ÖĞRENCİ KATILIM KAYDI",{"$nulls":36},"Okul Yılı Başlangıcı:",{"$f":"TakvimYılı","v":2012}]
[]
[null,null,{"$f":"RenkAnahtarıMetni","v":"RENK TUŞU "},{"$f":"KOD1","v":"G"},{"$f":"Kod1Metin","v":"Geç"},null,null,{"$f":"KOD2","v":"Mzl."},{"$f":"Kod2Metin","v":"Mazeretli"},null,null,{"$f":"KOD3","v":"Mzs."},{"$f":"Kod3Metin","v":"Mazeretsiz"},null,null,{"$f":"KOD4","v":"B"},{"$f":"Kod4Metin","v":"Burada"},null,null,{"$f":"KOD5","v":"OY"},{"$f":"Kod5Metin","v":"Okul Yok"}]
[]
[null,{"$f":"DATE(TakvimYılı,11,1)","v":"2012-11-01"},null,{"$f":"TEXT(WEEKDAY(DATE(TakvimYılı,11,1),1),\"ggg\")","v":"Per"},{"$f":"TEXT(WEEKDAY(DATE(TakvimYılı,11,2),1),\"ggg\")","v":"Cum"},{"$f":"TEXT(WEEKDAY(DATE(TakvimYılı,11,3),1),\"ggg\")","v":"Cmt"},{"$f":"TEXT(WEEKDAY(DATE(TakvimYılı,11,4),1),\"ggg\")","v":"Paz"},{"$f":"TEXT(WEEKDAY(DATE(TakvimYılı,11,5),1),\"ggg\")","v":"Pzt"},{"$f":"TEXT(WEEKDAY(DATE(TakvimYılı,11,6),1),\"ggg\")","v":"Sal"},{"$f":"TEXT(WEEKDAY(DATE(TakvimYılı,11,7),1),\"ggg\")","v":"Çar"},{"$f":"TEXT(WEEKDAY(DATE(TakvimYılı,11,8),1),\"ggg\")","v":"Per"},{"$f":"TEXT(WEEKDAY(DATE(TakvimYılı,11,9),1),\"ggg\")","v":"Cum"},{"$f":"TEXT(WEEKDAY(DATE(TakvimYılı,11,10),1),\"ggg\")","v":"Cmt"},{"$f":"TEXT(WEEKDAY(DATE(TakvimYılı,11,11),1),\"ggg\")","v":"Paz"},{"$f":"TEXT(WEEKDAY(DATE(TakvimYılı,11,12),1),\"ggg\")","v":"Pzt"},{"$f":"TEXT(WEEKDAY(DATE(TakvimYılı,11,13),1),\"ggg\")","v":"Sal"},{"$f":"TEXT(WEEKDAY(DATE(TakvimYılı,11,14),1),\"ggg\")","v":"Çar"},{"$f":"TEXT(WEEKDAY(DATE(TakvimYılı,11,15),1),\"ggg\")","v":"Per"},{"$f":"TEXT(WEEKDAY(DATE(TakvimYılı,11,16),1),\"ggg\")","v":"Cum"},{"$f":"TEXT(WEEKDAY(DATE(TakvimYılı,11,17),1),\"ggg\")","v":"Cmt"},{"$f":"TEXT(WEEKDAY(DATE(TakvimYılı,11,18),1),\"ggg\")","v":"Paz"},{"$f":"TEXT(WEEKDAY(DATE(TakvimYılı,11,19),1),\"ggg\")","v":"Pzt"},{"$f":"TEXT(WEEKDAY(DATE(TakvimYılı,11,20),1),\"ggg\")","v":"Sal"},{"$f":"TEXT(WEEKDAY(DATE(TakvimYılı,11,21),1),\"ggg\")","v":"Çar"},{"$f":"TEXT(WEEKDAY(DATE(TakvimYılı,11,22),1),\"ggg\")","v":"Per"},{"$f":"TEXT(WEEKDAY(DATE(TakvimYılı,11,23),1),\"ggg\")","v":"Cum"},{"$f":"TEXT(WEEKDAY(DATE(TakvimYılı,11,24),1),\"ggg\")","v":"Cmt"},{"$f":"TEXT(WEEKDAY(DATE(TakvimYılı,11,25),1),\"ggg\")","v":"Paz"},{"$f":"TEXT(WEEKDAY(DATE(TakvimYılı,11,26),1),\"ggg\")","v":"Pzt"},{"$f":"TEXT(WEEKDAY(DATE(TakvimYılı,11,27),1),\"ggg\")","v":"Sal"},{"$f":"TEXT(WEEKDAY(DATE(TakvimYılı,11,28),1),\"ggg\")","v":"Çar"},{"$f":"TEXT(WEEKDAY(DATE(TakvimYılı,11,29),1),\"ggg\")","v":"Per"},{"$f":"TEXT(WEEKDAY(DATE(TakvimYılı,11,30),1),\"ggg\")","v":"Cum"},null,"Toplam"]
[null,"Öğrenci No","Öğrenci Adı","1","2","3","4","5","6","7","8","9","10","11","12","13","14","15","16","17","18","19","20","21","22","23","24","25","26","27","28","29","30"," ","G","Mzl.","Mzs.","B","Gelmediği Günler"]
[null,null,{"$f":"IFERROR(VLOOKUP(KasımDevamlılığı[[#This Row],[Öğrenci No]],ÖğrenciListesi[],18,FALSE),\"\")","v":""},{"$nulls":31},{"$f":"COUNTIF(KasımDevamlılığı[[#This Row],[1]:[ ]],KOD1)","v":0},{"$f":"COUNTIF(KasımDevamlılığı[[#This Row],[1]:[ ]],KOD2)","v":0},{"$f":"COUNTIF(KasımDevamlılığı[[#This Row],[1]:[ ]],KOD3)","v":0},{"$f":"COUNTIF(KasımDevamlılığı[[#This Row],[1]:[ ]],KOD4)","v":0},{"$f":"SUM(KasımDevamlılığı[[#This Row],[Mzl.]:[Mzs.]])","v":0}]
[null,null,{"$f":"IFERROR(VLOOKUP(KasımDevamlılığı[[#This Row],[Öğrenci No]],ÖğrenciListesi[],18,FALSE),\"\")","v":""},{"$nulls":31},{"$f":"COUNTIF(KasımDevamlılığı[[#This Row],[1]:[ ]],KOD1)","v":0},{"$f":"COUNTIF(KasımDevamlılığı[[#This Row],[1]:[ ]],KOD2)","v":0},{"$f":"COUNTIF(KasımDevamlılığı[[#This Row],[1]:[ ]],KOD3)","v":0},{"$f":"COUNTIF(KasımDevamlılığı[[#This Row],[1]:[ ]],KOD4)","v":0},{"$f":"SUM(KasımDevamlılığı[[#This Row],[Mzl.]:[Mzs.]])","v":0}]
[null,null,{"$f":"IFERROR(VLOOKUP(KasımDevamlılığı[[#This Row],[Öğrenci No]],ÖğrenciListesi[],18,FALSE),\"\")","v":""},{"$nulls":31},{"$f":"COUNTIF(KasımDevamlılığı[[#This Row],[1]:[ ]],KOD1)","v":0},{"$f":"COUNTIF(KasımDevamlılığı[[#This Row],[1]:[ ]],KOD2)","v":0},{"$f":"COUNTIF(KasımDevamlılığı[[#This Row],[1]:[ ]],KOD3)","v":0},{"$f":"COUNTIF(KasımDevamlılığı[[#This Row],[1]:[ ]],KOD4)","v":0},{"$f":"SUM(KasımDevamlılığı[[#This Row],[Mzl.]:[Mzs.]])","v":0}]
[null,null,{"$f":"IFERROR(VLOOKUP(KasımDevamlılığı[[#This Row],[Öğrenci No]],ÖğrenciListesi[],18,FALSE),\"\")","v":""},{"$nulls":31},{"$f":"COUNTIF(KasımDevamlılığı[[#This Row],[1]:[ ]],KOD1)","v":0},{"$f":"COUNTIF(KasımDevamlılığı[[#This Row],[1]:[ ]],KOD2)","v":0},{"$f":"COUNTIF(KasımDevamlılığı[[#This Row],[1]:[ ]],KOD3)","v":0},{"$f":"COUNTIF(KasımDevamlılığı[[#This Row],[1]:[ ]],KOD4)","v":0},{"$f":"SUM(KasımDevamlılığı[[#This Row],[Mzl.]:[Mzs.]])","v":0}]
[null,null,{"$f":"IFERROR(VLOOKUP(KasımDevamlılığı[[#This Row],[Öğrenci No]],ÖğrenciListesi[],18,FALSE),\"\")","v":""},{"$nulls":31},{"$f":"COUNTIF(KasımDevamlılığı[[#This Row],[1]:[ ]],KOD1)","v":0},{"$f":"COUNTIF(KasımDevamlılığı[[#This Row],[1]:[ ]],KOD2)","v":0},{"$f":"COUNTIF(KasımDevamlılığı[[#This Row],[1]:[ ]],KOD3)","v":0},{"$f":"COUNTIF(KasımDevamlılığı[[#This Row],[1]:[ ]],KOD4)","v":0},{"$f":"SUM(KasımDevamlılığı[[#This Row],[Mzl.]:[Mzs.]])","v":0}]
[null,null,"Toplam gelmediği gün",{"$f":"COUNTIF(KasımDevamlılığı[1],\"Mzs.\")+COUNTIF(KasımDevamlılığı[1],\"Mzl.\")","v":0},{"$f":"COUNTIF(KasımDevamlılığı[2],\"Mzs.\")+COUNTIF(KasımDevamlılığı[2],\"Mzl.\")","v":0},{"$f":"COUNTIF(KasımDevamlılığı[3],\"Mzs.\")+COUNTIF(KasımDevamlılığı[3],\"Mzl.\")","v":0},{"$f":"COUNTIF(KasımDevamlılığı[4],\"Mzs.\")+COUNTIF(KasımDevamlılığı[4],\"Mzl.\")","v":0},{"$f":"COUNTIF(KasımDevamlılığı[5],\"Mzs.\")+COUNTIF(KasımDevamlılığı[5],\"Mzl.\")","v":0},{"$f":"COUNTIF(KasımDevamlılığı[6],\"Mzs.\")+COUNTIF(KasımDevamlılığı[6],\"Mzl.\")","v":0},{"$f":"COUNTIF(KasımDevamlılığı[7],\"Mzs.\")+COUNTIF(KasımDevamlılığı[7],\"Mzl.\")","v":0},{"$f":"COUNTIF(KasımDevamlılığı[8],\"Mzs.\")+COUNTIF(KasımDevamlılığı[8],\"Mzl.\")","v":0},{"$f":"COUNTIF(KasımDevamlılığı[9],\"Mzs.\")+COUNTIF(KasımDevamlılığı[9],\"Mzl.\")","v":0},{"$f":"COUNTIF(KasımDevamlılığı[10],\"Mzs.\")+COUNTIF(KasımDevamlılığı[10],\"Mzl.\")","v":0},{"$f":"COUNTIF(KasımDevamlılığı[11],\"Mzs.\")+COUNTIF(KasımDevamlılığı[11],\"Mzl.\")","v":0},{"$f":"COUNTIF(KasımDevamlılığı[12],\"Mzs.\")+COUNTIF(KasımDevamlılığı[12],\"Mzl.\")","v":0},{"$f":"COUNTIF(KasımDevamlılığı[13],\"Mzs.\")+COUNTIF(KasımDevamlılığı[13],\"Mzl.\")","v":0},{"$f":"COUNTIF(KasımDevamlılığı[14],\"Mzs.\")+COUNTIF(KasımDevamlılığı[14],\"Mzl.\")","v":0},{"$f":"COUNTIF(KasımDevamlılığı[15],\"Mzs.\")+COUNTIF(KasımDevamlılığı[15],\"Mzl.\")","v":0},{"$f":"COUNTIF(KasımDevamlılığı[16],\"Mzs.\")+COUNTIF(KasımDevamlılığı[16],\"Mzl.\")","v":0},{"$f":"COUNTIF(KasımDevamlılığı[17],\"Mzs.\")+COUNTIF(KasımDevamlılığı[17],\"Mzl.\")","v":0},{"$f":"COUNTIF(KasımDevamlılığı[18],\"Mzs.\")+COUNTIF(KasımDevamlılığı[18],\"Mzl.\")","v":0},{"$f":"COUNTIF(KasımDevamlılığı[19],\"Mzs.\")+COUNTIF(KasımDevamlılığı[19],\"Mzl.\")","v":0},{"$f":"COUNTIF(KasımDevamlılığı[20],\"Mzs.\")+COUNTIF(KasımDevamlılığı[20],\"Mzl.\")","v":0},{"$f":"COUNTIF(KasımDevamlılığı[21],\"Mzs.\")+COUNTIF(KasımDevamlılığı[21],\"Mzl.\")","v":0},{"$f":"COUNTIF(KasımDevamlılığı[22],\"Mzs.\")+COUNTIF(KasımDevamlılığı[22],\"Mzl.\")","v":0},{"$f":"COUNTIF(KasımDevamlılığı[23],\"Mzs.\")+COUNTIF(KasımDevamlılığı[23],\"Mzl.\")","v":0},{"$f":"COUNTIF(KasımDevamlılığı[24],\"Mzs.\")+COUNTIF(KasımDevamlılığı[24],\"Mzl.\")","v":0},{"$f":"COUNTIF(KasımDevamlılığı[25],\"Mzs.\")+COUNTIF(KasımDevamlılığı[25],\"Mzl.\")","v":0},{"$f":"COUNTIF(KasımDevamlılığı[26],\"Mzs.\")+COUNTIF(KasımDevamlılığı[26],\"Mzl.\")","v":0},{"$f":"COUNTIF(KasımDevamlılığı[27],\"Mzs.\")+COUNTIF(KasımDevamlılığı[27],\"Mzl.\")","v":0},{"$f":"COUNTIF(KasımDevamlılığı[28],\"Mzs.\")+COUNTIF(KasımDevamlılığı[28],\"Mzl.\")","v":0},{"$f":"COUNTIF(KasımDevamlılığı[29],\"Mzs.\")+COUNTIF(KasımDevamlılığı[29],\"Mzl.\")","v":0},{"$f":"COUNTIF(KasımDevamlılığı[30],\"Mzs.\")+COUNTIF(KasımDevamlılığı[30],\"Mzl.\")","v":0},{"$f":"COUNTIF(KasımDevamlılığı[[ ]],\"Mzs.\")+COUNTIF(KasımDevamlılığı[[ ]],\"Mzl.\")","v":0},{"$f":"SUBTOTAL(109,KasımDevamlılığı[G])","v":0},{"$f":"SUBTOTAL(109,KasımDevamlılığı[Mzl.])","v":0},{"$f":"SUBTOTAL(109,KasımDevamlılığı[Mzs.])","v":0},{"$f":"SUBTOTAL(109,KasımDevamlılığı[B])","v":0},{"$f":"SUBTOTAL(109,KasımDevamlılığı[Gelmediği Günler])","v":0}]

{"sheet":"Aralık","index":6,"n_rows":12,"n_cols":39,"rows_kept":12,"merged":[[4,34,4,38]]}
["ÖĞRENCİ KATILIM KAYDI",{"$nulls":36},"Okul Yılı Başlangıcı:",{"$f":"TakvimYılı","v":2012}]
[]
[null,null,{"$f":"RenkAnahtarıMetni","v":"RENK TUŞU "},{"$f":"KOD1","v":"G"},{"$f":"Kod1Metin","v":"Geç"},null,null,{"$f":"KOD2","v":"Mzl."},{"$f":"Kod2Metin","v":"Mazeretli"},null,null,{"$f":"KOD3","v":"Mzs."},{"$f":"Kod3Metin","v":"Mazeretsiz"},null,null,{"$f":"KOD4","v":"B"},{"$f":"Kod4Metin","v":"Burada"},null,null,{"$f":"KOD5","v":"OY"},{"$f":"Kod5Metin","v":"Okul Yok"}]
[]
[null,{"$f":"DATE(TakvimYılı,12,1)","v":"2012-12-01"},null,{"$f":"TEXT(WEEKDAY(DATE(TakvimYılı,12,1),1),\"ggg\")","v":"Cmt"},{"$f":"TEXT(WEEKDAY(DATE(TakvimYılı,12,2),1),\"ggg\")","v":"Paz"},{"$f":"TEXT(WEEKDAY(DATE(TakvimYılı,12,3),1),\"ggg\")","v":"Pzt"},{"$f":"TEXT(WEEKDAY(DATE(TakvimYılı,12,4),1),\"ggg\")","v":"Sal"},{"$f":"TEXT(WEEKDAY(DATE(TakvimYılı,12,5),1),\"ggg\")","v":"Çar"},{"$f":"TEXT(WEEKDAY(DATE(TakvimYılı,12,6),1),\"ggg\")","v":"Per"},{"$f":"TEXT(WEEKDAY(DATE(TakvimYılı,12,7),1),\"ggg\")","v":"Cum"},{"$f":"TEXT(WEEKDAY(DATE(TakvimYılı,12,8),1),\"ggg\")","v":"Cmt"},{"$f":"TEXT(WEEKDAY(DATE(TakvimYılı,12,9),1),\"ggg\")","v":"Paz"},{"$f":"TEXT(WEEKDAY(DATE(TakvimYılı,12,10),1),\"ggg\")","v":"Pzt"},{"$f":"TEXT(WEEKDAY(DATE(TakvimYılı,12,11),1),\"ggg\")","v":"Sal"},{"$f":"TEXT(WEEKDAY(DATE(TakvimYılı,12,12),1),\"ggg\")","v":"Çar"},{"$f":"TEXT(WEEKDAY(DATE(TakvimYılı,12,13),1),\"ggg\")","v":"Per"},{"$f":"TEXT(WEEKDAY(DATE(TakvimYılı,12,14),1),\"ggg\")","v":"Cum"},{"$f":"TEXT(WEEKDAY(DATE(TakvimYılı,12,15),1),\"ggg\")","v":"Cmt"},{"$f":"TEXT(WEEKDAY(DATE(TakvimYılı,12,16),1),\"ggg\")","v":"Paz"},{"$f":"TEXT(WEEKDAY(DATE(TakvimYılı,12,17),1),\"ggg\")","v":"Pzt"},{"$f":"TEXT(WEEKDAY(DATE(TakvimYılı,12,18),1),\"ggg\")","v":"Sal"},{"$f":"TEXT(WEEKDAY(DATE(TakvimYılı,12,19),1),\"ggg\")","v":"Çar"},{"$f":"TEXT(WEEKDAY(DATE(TakvimYılı,12,20),1),\"ggg\")","v":"Per"},{"$f":"TEXT(WEEKDAY(DATE(TakvimYılı,12,21),1),\"ggg\")","v":"Cum"},{"$f":"TEXT(WEEKDAY(DATE(TakvimYılı,12,22),1),\"ggg\")","v":"Cmt"},{"$f":"TEXT(WEEKDAY(DATE(TakvimYılı,12,23),1),\"ggg\")","v":"Paz"},{"$f":"TEXT(WEEKDAY(DATE(TakvimYılı,12,24),1),\"ggg\")","v":"Pzt"},{"$f":"TEXT(WEEKDAY(DATE(TakvimYılı,12,25),1),\"ggg\")","v":"Sal"},{"$f":"TEXT(WEEKDAY(DATE(TakvimYılı,12,26),1),\"ggg\")","v":"Çar"},{"$f":"TEXT(WEEKDAY(DATE(TakvimYılı,12,27),1),\"ggg\")","v":"Per"},{"$f":"TEXT(WEEKDAY(DATE(TakvimYılı,12,28),1),\"ggg\")","v":"Cum"},{"$f":"TEXT(WEEKDAY(DATE(TakvimYılı,12,29),1),\"ggg\")","v":"Cmt"},{"$f":"TEXT(WEEKDAY(DATE(TakvimYılı,12,30),1),\"ggg\")","v":"Paz"},{"$f":"TEXT(WEEKDAY(DATE(TakvimYılı,12,31),1),\"ggg\")","v":"Pzt"},"Toplam"]
[null,"Öğrenci No","Öğrenci Adı","1","2","3","4","5","6","7","8","9","10","11","12","13","14","15","16","17","18","19","20","21","22","23","24","25","26","27","28","29","30","31","G","Mzl.","Mzs.","B","Gelmediği Günler"]
[null,null,{"$f":"IFERROR(VLOOKUP(AralıkDevamlılığı[[#This Row],[Öğrenci No]],ÖğrenciListesi[],18,FALSE),\"\")","v":""},{"$nulls":31},{"$f":"COUNTIF(AralıkDevamlılığı[[#This Row],[1]:[31]],KOD1)","v":0},{"$f":"COUNTIF(AralıkDevamlılığı[[#This Row],[1]:[31]],KOD2)","v":0},{"$f":"COUNTIF(AralıkDevamlılığı[[#This Row],[1]:[31]],KOD3)","v":0},{"$f":"COUNTIF(AralıkDevamlılığı[[#This Row],[1]:[31]],KOD4)","v":0},{"$f":"SUM(AralıkDevamlılığı[[#This Row],[Mzl.]:[Mzs.]])","v":0}]
[null,null,{"$f":"IFERROR(VLOOKUP(AralıkDevamlılığı[[#This Row],[Öğrenci No]],ÖğrenciListesi[],18,FALSE),\"\")","v":""},{"$nulls":31},{"$f":"COUNTIF(AralıkDevamlılığı[[#This Row],[1]:[31]],KOD1)","v":0},{"$f":"COUNTIF(AralıkDevamlılığı[[#This Row],[1]:[31]],KOD2)","v":0},{"$f":"COUNTIF(AralıkDevamlılığı[[#This Row],[1]:[31]],KOD3)","v":0},{"$f":"COUNTIF(AralıkDevamlılığı[[#This Row],[1]:[31]],KOD4)","v":0},{"$f":"SUM(AralıkDevamlılığı[[#This Row],[Mzl.]:[Mzs.]])","v":0}]
[null,null,{"$f":"IFERROR(VLOOKUP(AralıkDevamlılığı[[#This Row],[Öğrenci No]],ÖğrenciListesi[],18,FALSE),\"\")","v":""},{"$nulls":31},{"$f":"COUNTIF(AralıkDevamlılığı[[#This Row],[1]:[31]],KOD1)","v":0},{"$f":"COUNTIF(AralıkDevamlılığı[[#This Row],[1]:[31]],KOD2)","v":0},{"$f":"COUNTIF(AralıkDevamlılığı[[#This Row],[1]:[31]],KOD3)","v":0},{"$f":"COUNTIF(AralıkDevamlılığı[[#This Row],[1]:[31]],KOD4)","v":0},{"$f":"SUM(AralıkDevamlılığı[[#This Row],[Mzl.]:[Mzs.]])","v":0}]
[null,null,{"$f":"IFERROR(VLOOKUP(AralıkDevamlılığı[[#This Row],[Öğrenci No]],ÖğrenciListesi[],18,FALSE),\"\")","v":""},{"$nulls":31},{"$f":"COUNTIF(AralıkDevamlılığı[[#This Row],[1]:[31]],KOD1)","v":0},{"$f":"COUNTIF(AralıkDevamlılığı[[#This Row],[1]:[31]],KOD2)","v":0},{"$f":"COUNTIF(AralıkDevamlılığı[[#This Row],[1]:[31]],KOD3)","v":0},{"$f":"COUNTIF(AralıkDevamlılığı[[#This Row],[1]:[31]],KOD4)","v":0},{"$f":"SUM(AralıkDevamlılığı[[#This Row],[Mzl.]:[Mzs.]])","v":0}]
[null,null,{"$f":"IFERROR(VLOOKUP(AralıkDevamlılığı[[#This Row],[Öğrenci No]],ÖğrenciListesi[],18,FALSE),\"\")","v":""},{"$nulls":31},{"$f":"COUNTIF(AralıkDevamlılığı[[#This Row],[1]:[31]],KOD1)","v":0},{"$f":"COUNTIF(AralıkDevamlılığı[[#This Row],[1]:[31]],KOD2)","v":0},{"$f":"COUNTIF(AralıkDevamlılığı[[#This Row],[1]:[31]],KOD3)","v":0},{"$f":"COUNTIF(AralıkDevamlılığı[[#This Row],[1]:[31]],KOD4)","v":0},{"$f":"SUM(AralıkDevamlılığı[[#This Row],[Mzl.]:[Mzs.]])","v":0}]
[null,null,"Toplam gelmediği gün",{"$f":"COUNTIF(AralıkDevamlılığı[1],\"Mzs.\")+COUNTIF(AralıkDevamlılığı[1],\"Mzl.\")","v":0},{"$f":"COUNTIF(AralıkDevamlılığı[2],\"Mzs.\")+COUNTIF(AralıkDevamlılığı[2],\"Mzl.\")","v":0},{"$f":"COUNTIF(AralıkDevamlılığı[3],\"Mzs.\")+COUNTIF(AralıkDevamlılığı[3],\"Mzl.\")","v":0},{"$f":"COUNTIF(AralıkDevamlılığı[4],\"Mzs.\")+COUNTIF(AralıkDevamlılığı[4],\"Mzl.\")","v":0},{"$f":"COUNTIF(AralıkDevamlılığı[5],\"Mzs.\")+COUNTIF(AralıkDevamlılığı[5],\"Mzl.\")","v":0},{"$f":"COUNTIF(AralıkDevamlılığı[6],\"Mzs.\")+COUNTIF(AralıkDevamlılığı[6],\"Mzl.\")","v":0},{"$f":"COUNTIF(AralıkDevamlılığı[7],\"Mzs.\")+COUNTIF(AralıkDevamlılığı[7],\"Mzl.\")","v":0},{"$f":"COUNTIF(AralıkDevamlılığı[8],\"Mzs.\")+COUNTIF(AralıkDevamlılığı[8],\"Mzl.\")","v":0},{"$f":"COUNTIF(AralıkDevamlılığı[9],\"Mzs.\")+COUNTIF(AralıkDevamlılığı[9],\"Mzl.\")","v":0},{"$f":"COUNTIF(AralıkDevamlılığı[10],\"Mzs.\")+COUNTIF(AralıkDevamlılığı[10],\"Mzl.\")","v":0},{"$f":"COUNTIF(AralıkDevamlılığı[11],\"Mzs.\")+COUNTIF(AralıkDevamlılığı[11],\"Mzl.\")","v":0},{"$f":"COUNTIF(AralıkDevamlılığı[12],\"Mzs.\")+COUNTIF(AralıkDevamlılığı[12],\"Mzl.\")","v":0},{"$f":"COUNTIF(AralıkDevamlılığı[13],\"Mzs.\")+COUNTIF(AralıkDevamlılığı[13],\"Mzl.\")","v":0},{"$f":"COUNTIF(AralıkDevamlılığı[14],\"Mzs.\")+COUNTIF(AralıkDevamlılığı[14],\"Mzl.\")","v":0},{"$f":"COUNTIF(AralıkDevamlılığı[15],\"Mzs.\")+COUNTIF(AralıkDevamlılığı[15],\"Mzl.\")","v":0},{"$f":"COUNTIF(AralıkDevamlılığı[16],\"Mzs.\")+COUNTIF(AralıkDevamlılığı[16],\"Mzl.\")","v":0},{"$f":"COUNTIF(AralıkDevamlılığı[17],\"Mzs.\")+COUNTIF(AralıkDevamlılığı[17],\"Mzl.\")","v":0},{"$f":"COUNTIF(AralıkDevamlılığı[18],\"Mzs.\")+COUNTIF(AralıkDevamlılığı[18],\"Mzl.\")","v":0},{"$f":"COUNTIF(AralıkDevamlılığı[19],\"Mzs.\")+COUNTIF(AralıkDevamlılığı[19],\"Mzl.\")","v":0},{"$f":"COUNTIF(AralıkDevamlılığı[20],\"Mzs.\")+COUNTIF(AralıkDevamlılığı[20],\"Mzl.\")","v":0},{"$f":"COUNTIF(AralıkDevamlılığı[21],\"Mzs.\")+COUNTIF(AralıkDevamlılığı[21],\"Mzl.\")","v":0},{"$f":"COUNTIF(AralıkDevamlılığı[22],\"Mzs.\")+COUNTIF(AralıkDevamlılığı[22],\"Mzl.\")","v":0},{"$f":"COUNTIF(AralıkDevamlılığı[23],\"Mzs.\")+COUNTIF(AralıkDevamlılığı[23],\"Mzl.\")","v":0},{"$f":"COUNTIF(AralıkDevamlılığı[24],\"Mzs.\")+COUNTIF(AralıkDevamlılığı[24],\"Mzl.\")","v":0},{"$f":"COUNTIF(AralıkDevamlılığı[25],\"Mzs.\")+COUNTIF(AralıkDevamlılığı[25],\"Mzl.\")","v":0},{"$f":"COUNTIF(AralıkDevamlılığı[26],\"Mzs.\")+COUNTIF(AralıkDevamlılığı[26],\"Mzl.\")","v":0},{"$f":"COUNTIF(AralıkDevamlılığı[27],\"Mzs.\")+COUNTIF(AralıkDevamlılığı[27],\"Mzl.\")","v":0},{"$f":"COUNTIF(AralıkDevamlılığı[28],\"Mzs.\")+COUNTIF(AralıkDevamlılığı[28],\"Mzl.\")","v":0},{"$f":"COUNTIF(AralıkDevamlılığı[29],\"Mzs.\")+COUNTIF(AralıkDevamlılığı[29],\"Mzl.\")","v":0},{"$f":"COUNTIF(AralıkDevamlılığı[30],\"Mzs.\")+COUNTIF(AralıkDevamlılığı[30],\"Mzl.\")","v":0},{"$f":"COUNTIF(AralıkDevamlılığı[31],\"Mzs.\")+COUNTIF(AralıkDevamlılığı[31],\"Mzl.\")","v":0},{"$f":"SUBTOTAL(109,AralıkDevamlılığı[G])","v":0},{"$f":"SUBTOTAL(109,AralıkDevamlılığı[Mzl.])","v":0},{"$f":"SUBTOTAL(109,AralıkDevamlılığı[Mzs.])","v":0},{"$f":"SUBTOTAL(109,AralıkDevamlılığı[B])","v":0},{"$f":"SUBTOTAL(109,AralıkDevamlılığı[Gelmediği Günler])","v":0}]

{"sheet":"Ocak","index":7,"n_rows":12,"n_cols":39,"rows_kept":12,"merged":[[4,34,4,38]]}
["ÖĞRENCİ KATILIM KAYDI",{"$nulls":36},"Okul Yılı Başlangıcı:",{"$f":"TakvimYılı","v":2012}]
[]
[null,null,{"$f":"RenkAnahtarıMetni","v":"RENK TUŞU "},{"$f":"KOD1","v":"G"},{"$f":"Kod1Metin","v":"Geç"},null,null,{"$f":"KOD2","v":"Mzl."},{"$f":"Kod2Metin","v":"Mazeretli"},null,null,{"$f":"KOD3","v":"Mzs."},{"$f":"Kod3Metin","v":"Mazeretsiz"},null,null,{"$f":"KOD4","v":"B"},{"$f":"Kod4Metin","v":"Burada"},null,null,{"$f":"KOD5","v":"OY"},{"$f":"Kod5Metin","v":"Okul Yok"}]
[]
[null,{"$f":"DATE(TakvimYılı+1,1,1)","v":"2013-01-01"},null,{"$f":"TEXT(WEEKDAY(DATE(TakvimYılı+1,1,1),1),\"ggg\")","v":"Sal"},{"$f":"TEXT(WEEKDAY(DATE(TakvimYılı+1,1,2),1),\"ggg\")","v":"Çar"},{"$f":"TEXT(WEEKDAY(DATE(TakvimYılı+1,1,3),1),\"ggg\")","v":"Per"},{"$f":"TEXT(WEEKDAY(DATE(TakvimYılı+1,1,4),1),\"ggg\")","v":"Cum"},{"$f":"TEXT(WEEKDAY(DATE(TakvimYılı+1,1,5),1),\"ggg\")","v":"Cmt"},{"$f":"TEXT(WEEKDAY(DATE(TakvimYılı+1,1,6),1),\"ggg\")","v":"Paz"},{"$f":"TEXT(WEEKDAY(DATE(TakvimYılı+1,1,7),1),\"ggg\")","v":"Pzt"},{"$f":"TEXT(WEEKDAY(DATE(TakvimYılı+1,1,8),1),\"ggg\")","v":"Sal"},{"$f":"TEXT(WEEKDAY(DATE(TakvimYılı+1,1,9),1),\"ggg\")","v":"Çar"},{"$f":"TEXT(WEEKDAY(DATE(TakvimYılı+1,1,10),1),\"ggg\")","v":"Per"},{"$f":"TEXT(WEEKDAY(DATE(TakvimYılı+1,1,11),1),\"ggg\")","v":"Cum"},{"$f":"TEXT(WEEKDAY(DATE(TakvimYılı+1,1,12),1),\"ggg\")","v":"Cmt"},{"$f":"TEXT(WEEKDAY(DATE(TakvimYılı+1,1,13),1),\"ggg\")","v":"Paz"},{"$f":"TEXT(WEEKDAY(DATE(TakvimYılı+1,1,14),1),\"ggg\")","v":"Pzt"},{"$f":"TEXT(WEEKDAY(DATE(TakvimYılı+1,1,15),1),\"ggg\")","v":"Sal"},{"$f":"TEXT(WEEKDAY(DATE(TakvimYılı+1,1,16),1),\"ggg\")","v":"Çar"},{"$f":"TEXT(WEEKDAY(DATE(TakvimYılı+1,1,17),1),\"ggg\")","v":"Per"},{"$f":"TEXT(WEEKDAY(DATE(TakvimYılı+1,1,18),1),\"ggg\")","v":"Cum"},{"$f":"TEXT(WEEKDAY(DATE(TakvimYılı+1,1,19),1),\"ggg\")","v":"Cmt"},{"$f":"TEXT(WEEKDAY(DATE(TakvimYılı+1,1,20),1),\"ggg\")","v":"Paz"},{"$f":"TEXT(WEEKDAY(DATE(TakvimYılı+1,1,21),1),\"ggg\")","v":"Pzt"},{"$f":"TEXT(WEEKDAY(DATE(TakvimYılı+1,1,22),1),\"ggg\")","v":"Sal"},{"$f":"TEXT(WEEKDAY(DATE(TakvimYılı+1,1,23),1),\"ggg\")","v":"Çar"},{"$f":"TEXT(WEEKDAY(DATE(TakvimYılı+1,1,24),1),\"ggg\")","v":"Per"},{"$f":"TEXT(WEEKDAY(DATE(TakvimYılı+1,1,25),1),\"ggg\")","v":"Cum"},{"$f":"TEXT(WEEKDAY(DATE(TakvimYılı+1,1,26),1),\"ggg\")","v":"Cmt"},{"$f":"TEXT(WEEKDAY(DATE(TakvimYılı+1,1,27),1),\"ggg\")","v":"Paz"},{"$f":"TEXT(WEEKDAY(DATE(TakvimYılı+1,1,28),1),\"ggg\")","v":"Pzt"},{"$f":"TEXT(WEEKDAY(DATE(TakvimYılı+1,1,29),1),\"ggg\")","v":"Sal"},{"$f":"TEXT(WEEKDAY(DATE(TakvimYılı+1,1,30),1),\"ggg\")","v":"Çar"},{"$f":"TEXT(WEEKDAY(DATE(TakvimYılı+1,1,31),1),\"ggg\")","v":"Per"},"Toplam"]
[null,"Öğrenci No","Öğrenci Adı","1","2","3","4","5","6","7","8","9","10","11","12","13","14","15","16","17","18","19","20","21","22","23","24","25","26","27","28","29","30","31","G","Mzl.","Mzs.","B","Gelmediği Günler"]
[null,null,{"$f":"IFERROR(VLOOKUP(OcakDevamlılığı[[#This Row],[Öğrenci No]],ÖğrenciListesi[],18,FALSE),\"\")","v":""},{"$nulls":31},{"$f":"COUNTIF(OcakDevamlılığı[[#This Row],[1]:[31]],KOD1)","v":0},{"$f":"COUNTIF(OcakDevamlılığı[[#This Row],[1]:[31]],KOD2)","v":0},{"$f":"COUNTIF(OcakDevamlılığı[[#This Row],[1]:[31]],KOD3)","v":0},{"$f":"COUNTIF(OcakDevamlılığı[[#This Row],[1]:[31]],KOD4)","v":0},{"$f":"SUM(OcakDevamlılığı[[#This Row],[Mzl.]:[Mzs.]])","v":0}]
[null,null,{"$f":"IFERROR(VLOOKUP(OcakDevamlılığı[[#This Row],[Öğrenci No]],ÖğrenciListesi[],18,FALSE),\"\")","v":""},{"$nulls":31},{"$f":"COUNTIF(OcakDevamlılığı[[#This Row],[1]:[31]],KOD1)","v":0},{"$f":"COUNTIF(OcakDevamlılığı[[#This Row],[1]:[31]],KOD2)","v":0},{"$f":"COUNTIF(OcakDevamlılığı[[#This Row],[1]:[31]],KOD3)","v":0},{"$f":"COUNTIF(OcakDevamlılığı[[#This Row],[1]:[31]],KOD4)","v":0},{"$f":"SUM(OcakDevamlılığı[[#This Row],[Mzl.]:[Mzs.]])","v":0}]
[null,null,{"$f":"IFERROR(VLOOKUP(OcakDevamlılığı[[#This Row],[Öğrenci No]],ÖğrenciListesi[],18,FALSE),\"\")","v":""},{"$nulls":31},{"$f":"COUNTIF(OcakDevamlılığı[[#This Row],[1]:[31]],KOD1)","v":0},{"$f":"COUNTIF(OcakDevamlılığı[[#This Row],[1]:[31]],KOD2)","v":0},{"$f":"COUNTIF(OcakDevamlılığı[[#This Row],[1]:[31]],KOD3)","v":0},{"$f":"COUNTIF(OcakDevamlılığı[[#This Row],[1]:[31]],KOD4)","v":0},{"$f":"SUM(OcakDevamlılığı[[#This Row],[Mzl.]:[Mzs.]])","v":0}]
[null,null,{"$f":"IFERROR(VLOOKUP(OcakDevamlılığı[[#This Row],[Öğrenci No]],ÖğrenciListesi[],18,FALSE),\"\")","v":""},{"$nulls":31},{"$f":"COUNTIF(OcakDevamlılığı[[#This Row],[1]:[31]],KOD1)","v":0},{"$f":"COUNTIF(OcakDevamlılığı[[#This Row],[1]:[31]],KOD2)","v":0},{"$f":"COUNTIF(OcakDevamlılığı[[#This Row],[1]:[31]],KOD3)","v":0},{"$f":"COUNTIF(OcakDevamlılığı[[#This Row],[1]:[31]],KOD4)","v":0},{"$f":"SUM(OcakDevamlılığı[[#This Row],[Mzl.]:[Mzs.]])","v":0}]
[null,null,{"$f":"IFERROR(VLOOKUP(OcakDevamlılığı[[#This Row],[Öğrenci No]],ÖğrenciListesi[],18,FALSE),\"\")","v":""},{"$nulls":31},{"$f":"COUNTIF(OcakDevamlılığı[[#This Row],[1]:[31]],KOD1)","v":0},{"$f":"COUNTIF(OcakDevamlılığı[[#This Row],[1]:[31]],KOD2)","v":0},{"$f":"COUNTIF(OcakDevamlılığı[[#This Row],[1]:[31]],KOD3)","v":0},{"$f":"COUNTIF(OcakDevamlılığı[[#This Row],[1]:[31]],KOD4)","v":0},{"$f":"SUM(OcakDevamlılığı[[#This Row],[Mzl.]:[Mzs.]])","v":0}]
[null,null,"Toplam gelmediği gün",{"$f":"COUNTIF(OcakDevamlılığı[1],\"Mzs.\")+COUNTIF(OcakDevamlılığı[1],\"Mzl.\")","v":0},{"$f":"COUNTIF(OcakDevamlılığı[2],\"Mzs.\")+COUNTIF(OcakDevamlılığı[2],\"Mzl.\")","v":0},{"$f":"COUNTIF(OcakDevamlılığı[3],\"Mzs.\")+COUNTIF(OcakDevamlılığı[3],\"Mzl.\")","v":0},{"$f":"COUNTIF(OcakDevamlılığı[4],\"Mzs.\")+COUNTIF(OcakDevamlılığı[4],\"Mzl.\")","v":0},{"$f":"COUNTIF(OcakDevamlılığı[5],\"Mzs.\")+COUNTIF(OcakDevamlılığı[5],\"Mzl.\")","v":0},{"$f":"COUNTIF(OcakDevamlılığı[6],\"Mzs.\")+COUNTIF(OcakDevamlılığı[6],\"Mzl.\")","v":0},{"$f":"COUNTIF(OcakDevamlılığı[7],\"Mzs.\")+COUNTIF(OcakDevamlılığı[7],\"Mzl.\")","v":0},{"$f":"COUNTIF(OcakDevamlılığı[8],\"Mzs.\")+COUNTIF(OcakDevamlılığı[8],\"Mzl.\")","v":0},{"$f":"COUNTIF(OcakDevamlılığı[9],\"Mzs.\")+COUNTIF(OcakDevamlılığı[9],\"Mzl.\")","v":0},{"$f":"COUNTIF(OcakDevamlılığı[10],\"Mzs.\")+COUNTIF(OcakDevamlılığı[10],\"Mzl.\")","v":0},{"$f":"COUNTIF(OcakDevamlılığı[11],\"Mzs.\")+COUNTIF(OcakDevamlılığı[11],\"Mzl.\")","v":0},{"$f":"COUNTIF(OcakDevamlılığı[12],\"Mzs.\")+COUNTIF(OcakDevamlılığı[12],\"Mzl.\")","v":0},{"$f":"COUNTIF(OcakDevamlılığı[13],\"Mzs.\")+COUNTIF(OcakDevamlılığı[13],\"Mzl.\")","v":0},{"$f":"COUNTIF(OcakDevamlılığı[14],\"Mzs.\")+COUNTIF(OcakDevamlılığı[14],\"Mzl.\")","v":0},{"$f":"COUNTIF(OcakDevamlılığı[15],\"Mzs.\")+COUNTIF(OcakDevamlılığı[15],\"Mzl.\")","v":0},{"$f":"COUNTIF(OcakDevamlılığı[16],\"Mzs.\")+COUNTIF(OcakDevamlılığı[16],\"Mzl.\")","v":0},{"$f":"COUNTIF(OcakDevamlılığı[17],\"Mzs.\")+COUNTIF(OcakDevamlılığı[17],\"Mzl.\")","v":0},{"$f":"COUNTIF(OcakDevamlılığı[18],\"Mzs.\")+COUNTIF(OcakDevamlılığı[18],\"Mzl.\")","v":0},{"$f":"COUNTIF(OcakDevamlılığı[19],\"Mzs.\")+COUNTIF(OcakDevamlılığı[19],\"Mzl.\")","v":0},{"$f":"COUNTIF(OcakDevamlılığı[20],\"Mzs.\")+COUNTIF(OcakDevamlılığı[20],\"Mzl.\")","v":0},{"$f":"COUNTIF(OcakDevamlılığı[21],\"Mzs.\")+COUNTIF(OcakDevamlılığı[21],\"Mzl.\")","v":0},{"$f":"COUNTIF(OcakDevamlılığı[22],\"Mzs.\")+COUNTIF(OcakDevamlılığı[22],\"Mzl.\")","v":0},{"$f":"COUNTIF(OcakDevamlılığı[23],\"Mzs.\")+COUNTIF(OcakDevamlılığı[23],\"Mzl.\")","v":0},{"$f":"COUNTIF(OcakDevamlılığı[24],\"Mzs.\")+COUNTIF(OcakDevamlılığı[24],\"Mzl.\")","v":0},{"$f":"COUNTIF(OcakDevamlılığı[25],\"Mzs.\")+COUNTIF(OcakDevamlılığı[25],\"Mzl.\")","v":0},{"$f":"COUNTIF(OcakDevamlılığı[26],\"Mzs.\")+COUNTIF(OcakDevamlılığı[26],\"Mzl.\")","v":0},{"$f":"COUNTIF(OcakDevamlılığı[27],\"Mzs.\")+COUNTIF(OcakDevamlılığı[27],\"Mzl.\")","v":0},{"$f":"COUNTIF(OcakDevamlılığı[28],\"Mzs.\")+COUNTIF(OcakDevamlılığı[28],\"Mzl.\")","v":0},{"$f":"COUNTIF(OcakDevamlılığı[29],\"Mzs.\")+COUNTIF(OcakDevamlılığı[29],\"Mzl.\")","v":0},null,null,{"$f":"SUBTOTAL(109,OcakDevamlılığı[G])","v":0},{"$f":"SUBTOTAL(109,OcakDevamlılığı[Mzl.])","v":0},{"$f":"SUBTOTAL(109,OcakDevamlılığı[Mzs.])","v":0},{"$f":"SUBTOTAL(109,OcakDevamlılığı[B])","v":0},{"$f":"SUBTOTAL(109,OcakDevamlılığı[Gelmediği Günler])","v":0}]

{"sheet":"Şubat","index":8,"n_rows":12,"n_cols":39,"rows_kept":12,"merged":[[4,34,4,38]]}
["ÖĞRENCİ KATILIM KAYDI",{"$nulls":36},"Okul Yılı Başlangıcı:",{"$f":"TakvimYılı","v":2012}]
[]
[null,null,{"$f":"RenkAnahtarıMetni","v":"RENK TUŞU "},{"$f":"KOD1","v":"G"},{"$f":"Kod1Metin","v":"Geç"},null,null,{"$f":"KOD2","v":"Mzl."},{"$f":"Kod2Metin","v":"Mazeretli"},null,null,{"$f":"KOD3","v":"Mzs."},{"$f":"Kod3Metin","v":"Mazeretsiz"},null,null,{"$f":"KOD4","v":"B"},{"$f":"Kod4Metin","v":"Burada"},null,null,{"$f":"KOD5","v":"OY"},{"$f":"Kod5Metin","v":"Okul Yok"}]
[]
[null,{"$f":"DATE(TakvimYılı+1,2,1)","v":"2013-02-01"},null,{"$f":"TEXT(WEEKDAY(DATE(TakvimYılı+1,2,1),1),\"ggg\")","v":"Cum"},{"$f":"TEXT(WEEKDAY(DATE(TakvimYılı+1,2,2),1),\"ggg\")","v":"Cmt"},{"$f":"TEXT(WEEKDAY(DATE(TakvimYılı+1,2,3),1),\"ggg\")","v":"Paz"},{"$f":"TEXT(WEEKDAY(DATE(TakvimYılı+1,2,4),1),\"ggg\")","v":"Pzt"},{"$f":"TEXT(WEEKDAY(DATE(TakvimYılı+1,2,5),1),\"ggg\")","v":"Sal"},{"$f":"TEXT(WEEKDAY(DATE(TakvimYılı+1,2,6),1),\"ggg\")","v":"Çar"},{"$f":"TEXT(WEEKDAY(DATE(TakvimYılı+1,2,7),1),\"ggg\")","v":"Per"},{"$f":"TEXT(WEEKDAY(DATE(TakvimYılı+1,2,8),1),\"ggg\")","v":"Cum"},{"$f":"TEXT(WEEKDAY(DATE(TakvimYılı+1,2,9),1),\"ggg\")","v":"Cmt"},{"$f":"TEXT(WEEKDAY(DATE(TakvimYılı+1,2,10),1),\"ggg\")","v":"Paz"},{"$f":"TEXT(WEEKDAY(DATE(TakvimYılı+1,2,11),1),\"ggg\")","v":"Pzt"},{"$f":"TEXT(WEEKDAY(DATE(TakvimYılı+1,2,12),1),\"ggg\")","v":"Sal"},{"$f":"TEXT(WEEKDAY(DATE(TakvimYılı+1,2,13),1),\"ggg\")","v":"Çar"},{"$f":"TEXT(WEEKDAY(DATE(TakvimYılı+1,2,14),1),\"ggg\")","v":"Per"},{"$f":"TEXT(WEEKDAY(DATE(TakvimYılı+1,2,15),1),\"ggg\")","v":"Cum"},{"$f":"TEXT(WEEKDAY(DATE(TakvimYılı+1,2,16),1),\"ggg\")","v":"Cmt"},{"$f":"TEXT(WEEKDAY(DATE(TakvimYılı+1,2,17),1),\"ggg\")","v":"Paz"},{"$f":"TEXT(WEEKDAY(DATE(TakvimYılı+1,2,18),1),\"ggg\")","v":"Pzt"},{"$f":"TEXT(WEEKDAY(DATE(TakvimYılı+1,2,19),1),\"ggg\")","v":"Sal"},{"$f":"TEXT(WEEKDAY(DATE(TakvimYılı+1,2,20),1),\"ggg\")","v":"Çar"},{"$f":"TEXT(WEEKDAY(DATE(TakvimYılı+1,2,21),1),\"ggg\")","v":"Per"},{"$f":"TEXT(WEEKDAY(DATE(TakvimYılı+1,2,22),1),\"ggg\")","v":"Cum"},{"$f":"TEXT(WEEKDAY(DATE(TakvimYılı+1,2,23),1),\"ggg\")","v":"Cmt"},{"$f":"TEXT(WEEKDAY(DATE(TakvimYılı+1,2,24),1),\"ggg\")","v":"Paz"},{"$f":"TEXT(WEEKDAY(DATE(TakvimYılı+1,2,25),1),\"ggg\")","v":"Pzt"},{"$f":"TEXT(WEEKDAY(DATE(TakvimYılı+1,2,26),1),\"ggg\")","v":"Sal"},{"$f":"TEXT(WEEKDAY(DATE(TakvimYılı+1,2,27),1),\"ggg\")","v":"Çar"},{"$f":"TEXT(WEEKDAY(DATE(TakvimYılı+1,2,28),1),\"ggg\")","v":"Per"},{"$f":"TEXT(WEEKDAY(DATE(TakvimYılı+1,2,29),1),\"ggg\")","v":"Cum"},null,null,"Toplam"]
[null,"Öğrenci No","Öğrenci Adı","1","2","3","4","5","6","7","8","9","10","11","12","13","14","15","16","17","18","19","20","21","22","23","24","25","26","27","28","29","30","31","G","Mzl.","Mzs.","B","Gelmediği Günler"]
[null,null,{"$f":"IFERROR(VLOOKUP(ŞubatDevamlılığı[[#This Row],[Öğrenci No]],ÖğrenciListesi[],18,FALSE),\"\")","v":""},{"$nulls":31},{"$f":"COUNTIF(ŞubatDevamlılığı[[#This Row],[1]:[31]],KOD1)","v":0},{"$f":"COUNTIF(ŞubatDevamlılığı[[#This Row],[1]:[31]],KOD2)","v":0},{"$f":"COUNTIF(ŞubatDevamlılığı[[#This Row],[1]:[31]],KOD3)","v":0},{"$f":"COUNTIF(ŞubatDevamlılığı[[#This Row],[1]:[31]],KOD4)","v":0},{"$f":"SUM(ŞubatDevamlılığı[[#This Row],[Mzl.]:[Mzs.]])","v":0}]
[null,null,{"$f":"IFERROR(VLOOKUP(ŞubatDevamlılığı[[#This Row],[Öğrenci No]],ÖğrenciListesi[],18,FALSE),\"\")","v":""},{"$nulls":31},{"$f":"COUNTIF(ŞubatDevamlılığı[[#This Row],[1]:[31]],KOD1)","v":0},{"$f":"COUNTIF(ŞubatDevamlılığı[[#This Row],[1]:[31]],KOD2)","v":0},{"$f":"COUNTIF(ŞubatDevamlılığı[[#This Row],[1]:[31]],KOD3)","v":0},{"$f":"COUNTIF(ŞubatDevamlılığı[[#This Row],[1]:[31]],KOD4)","v":0},{"$f":"SUM(ŞubatDevamlılığı[[#This Row],[Mzl.]:[Mzs.]])","v":0}]
[null,null,{"$f":"IFERROR(VLOOKUP(ŞubatDevamlılığı[[#This Row],[Öğrenci No]],ÖğrenciListesi[],18,FALSE),\"\")","v":""},{"$nulls":31},{"$f":"COUNTIF(ŞubatDevamlılığı[[#This Row],[1]:[31]],KOD1)","v":0},{"$f":"COUNTIF(ŞubatDevamlılığı[[#This Row],[1]:[31]],KOD2)","v":0},{"$f":"COUNTIF(ŞubatDevamlılığı[[#This Row],[1]:[31]],KOD3)","v":0},{"$f":"COUNTIF(ŞubatDevamlılığı[[#This Row],[1]:[31]],KOD4)","v":0},{"$f":"SUM(ŞubatDevamlılığı[[#This Row],[Mzl.]:[Mzs.]])","v":0}]
[null,null,{"$f":"IFERROR(VLOOKUP(ŞubatDevamlılığı[[#This Row],[Öğrenci No]],ÖğrenciListesi[],18,FALSE),\"\")","v":""},{"$nulls":31},{"$f":"COUNTIF(ŞubatDevamlılığı[[#This Row],[1]:[31]],KOD1)","v":0},{"$f":"COUNTIF(ŞubatDevamlılığı[[#This Row],[1]:[31]],KOD2)","v":0},{"$f":"COUNTIF(ŞubatDevamlılığı[[#This Row],[1]:[31]],KOD3)","v":0},{"$f":"COUNTIF(ŞubatDevamlılığı[[#This Row],[1]:[31]],KOD4)","v":0},{"$f":"SUM(ŞubatDevamlılığı[[#This Row],[Mzl.]:[Mzs.]])","v":0}]
[null,null,{"$f":"IFERROR(VLOOKUP(ŞubatDevamlılığı[[#This Row],[Öğrenci No]],ÖğrenciListesi[],18,FALSE),\"\")","v":""},{"$nulls":31},{"$f":"COUNTIF(ŞubatDevamlılığı[[#This Row],[1]:[31]],KOD1)","v":0},{"$f":"COUNTIF(ŞubatDevamlılığı[[#This Row],[1]:[31]],KOD2)","v":0},{"$f":"COUNTIF(ŞubatDevamlılığı[[#This Row],[1]:[31]],KOD3)","v":0},{"$f":"COUNTIF(ŞubatDevamlılığı[[#This Row],[1]:[31]],KOD4)","v":0},{"$f":"SUM(ŞubatDevamlılığı[[#This Row],[Mzl.]:[Mzs.]])","v":0}]
[null,null,"Toplam gelmediği gün",{"$f":"COUNTIF(ŞubatDevamlılığı[1],\"Mzs.\")+COUNTIF(ŞubatDevamlılığı[1],\"Mzl.\")","v":0},{"$f":"COUNTIF(ŞubatDevamlılığı[2],\"Mzs.\")+COUNTIF(ŞubatDevamlılığı[2],\"Mzl.\")","v":0},{"$f":"COUNTIF(ŞubatDevamlılığı[3],\"Mzs.\")+COUNTIF(ŞubatDevamlılığı[3],\"Mzl.\")","v":0},{"$f":"COUNTIF(ŞubatDevamlılığı[4],\"Mzs.\")+COUNTIF(ŞubatDevamlılığı[4],\"Mzl.\")","v":0},{"$f":"COUNTIF(ŞubatDevamlılığı[5],\"Mzs.\")+COUNTIF(ŞubatDevamlılığı[5],\"Mzl.\")","v":0},{"$f":"COUNTIF(ŞubatDevamlılığı[6],\"Mzs.\")+COUNTIF(ŞubatDevamlılığı[6],\"Mzl.\")","v":0},{"$f":"COUNTIF(ŞubatDevamlılığı[7],\"Mzs.\")+COUNTIF(ŞubatDevamlılığı[7],\"Mzl.\")","v":0},{"$f":"COUNTIF(ŞubatDevamlılığı[8],\"Mzs.\")+COUNTIF(ŞubatDevamlılığı[8],\"Mzl.\")","v":0},{"$f":"COUNTIF(ŞubatDevamlılığı[9],\"Mzs.\")+COUNTIF(ŞubatDevamlılığı[9],\"Mzl.\")","v":0},{"$f":"COUNTIF(ŞubatDevamlılığı[10],\"Mzs.\")+COUNTIF(ŞubatDevamlılığı[10],\"Mzl.\")","v":0},{"$f":"COUNTIF(ŞubatDevamlılığı[11],\"Mzs.\")+COUNTIF(ŞubatDevamlılığı[11],\"Mzl.\")","v":0},{"$f":"COUNTIF(ŞubatDevamlılığı[12],\"Mzs.\")+COUNTIF(ŞubatDevamlılığı[12],\"Mzl.\")","v":0},{"$f":"COUNTIF(ŞubatDevamlılığı[13],\"Mzs.\")+COUNTIF(ŞubatDevamlılığı[13],\"Mzl.\")","v":0},{"$f":"COUNTIF(ŞubatDevamlılığı[14],\"Mzs.\")+COUNTIF(ŞubatDevamlılığı[14],\"Mzl.\")","v":0},{"$f":"COUNTIF(ŞubatDevamlılığı[15],\"Mzs.\")+COUNTIF(ŞubatDevamlılığı[15],\"Mzl.\")","v":0},{"$f":"COUNTIF(ŞubatDevamlılığı[16],\"Mzs.\")+COUNTIF(ŞubatDevamlılığı[16],\"Mzl.\")","v":0},{"$f":"COUNTIF(ŞubatDevamlılığı[17],\"Mzs.\")+COUNTIF(ŞubatDevamlılığı[17],\"Mzl.\")","v":0},{"$f":"COUNTIF(ŞubatDevamlılığı[18],\"Mzs.\")+COUNTIF(ŞubatDevamlılığı[18],\"Mzl.\")","v":0},{"$f":"COUNTIF(ŞubatDevamlılığı[19],\"Mzs.\")+COUNTIF(ŞubatDevamlılığı[19],\"Mzl.\")","v":0},{"$f":"COUNTIF(ŞubatDevamlılığı[20],\"Mzs.\")+COUNTIF(ŞubatDevamlılığı[20],\"Mzl.\")","v":0},{"$f":"COUNTIF(ŞubatDevamlılığı[21],\"Mzs.\")+COUNTIF(ŞubatDevamlılığı[21],\"Mzl.\")","v":0},{"$f":"COUNTIF(ŞubatDevamlılığı[22],\"Mzs.\")+COUNTIF(ŞubatDevamlılığı[22],\"Mzl.\")","v":0},{"$f":"COUNTIF(ŞubatDevamlılığı[23],\"Mzs.\")+COUNTIF(ŞubatDevamlılığı[23],\"Mzl.\")","v":0},{"$f":"COUNTIF(ŞubatDevamlılığı[24],\"Mzs.\")+COUNTIF(ŞubatDevamlılığı[24],\"Mzl.\")","v":0},{"$f":"COUNTIF(ŞubatDevamlılığı[25],\"Mzs.\")+COUNTIF(ŞubatDevamlılığı[25],\"Mzl.\")","v":0},{"$f":"COUNTIF(ŞubatDevamlılığı[26],\"Mzs.\")+COUNTIF(ŞubatDevamlılığı[26],\"Mzl.\")","v":0},{"$f":"COUNTIF(ŞubatDevamlılığı[27],\"Mzs.\")+COUNTIF(ŞubatDevamlılığı[27],\"Mzl.\")","v":0},{"$f":"COUNTIF(ŞubatDevamlılığı[28],\"Mzs.\")+COUNTIF(ŞubatDevamlılığı[28],\"Mzl.\")","v":0},{"$f":"COUNTIF(ŞubatDevamlılığı[29],\"Mzs.\")+COUNTIF(ŞubatDevamlılığı[29],\"Mzl.\")","v":0},null,null,{"$f":"SUBTOTAL(109,ŞubatDevamlılığı[G])","v":0},{"$f":"SUBTOTAL(109,ŞubatDevamlılığı[Mzl.])","v":0},{"$f":"SUBTOTAL(109,ŞubatDevamlılığı[Mzs.])","v":0},{"$f":"SUBTOTAL(109,ŞubatDevamlılığı[B])","v":0},{"$f":"SUBTOTAL(109,ŞubatDevamlılığı[Gelmediği Günler])","v":0}]

{"sheet":"Mart","index":9,"n_rows":12,"n_cols":39,"rows_kept":12,"merged":[[4,34,4,38]]}
["ÖĞRENCİ KATILIM KAYDI",{"$nulls":36},"Okul Yılı Başlangıcı:",{"$f":"TakvimYılı","v":2012}]
[]
[null,null,{"$f":"RenkAnahtarıMetni","v":"RENK TUŞU "},{"$f":"KOD1","v":"G"},{"$f":"Kod1Metin","v":"Geç"},null,null,{"$f":"KOD2","v":"Mzl."},{"$f":"Kod2Metin","v":"Mazeretli"},null,null,{"$f":"KOD3","v":"Mzs."},{"$f":"Kod3Metin","v":"Mazeretsiz"},null,null,{"$f":"KOD4","v":"B"},{"$f":"Kod4Metin","v":"Burada"},null,null,{"$f":"KOD5","v":"OY"},{"$f":"Kod5Metin","v":"Okul Yok"}]
[]
[null,{"$f":"DATE(TakvimYılı+1,3,1)","v":"2013-03-01"},null,{"$f":"TEXT(WEEKDAY(DATE(TakvimYılı+1,3,1),1),\"ggg\")","v":"Cum"},{"$f":"TEXT(WEEKDAY(DATE(TakvimYılı+1,3,2),1),\"ggg\")","v":"Cmt"},{"$f":"TEXT(WEEKDAY(DATE(TakvimYılı+1,3,3),1),\"ggg\")","v":"Paz"},{"$f":"TEXT(WEEKDAY(DATE(TakvimYılı+1,3,4),1),\"ggg\")","v":"Pzt"},{"$f":"TEXT(WEEKDAY(DATE(TakvimYılı+1,3,5),1),\"ggg\")","v":"Sal"},{"$f":"TEXT(WEEKDAY(DATE(TakvimYılı+1,3,6),1),\"ggg\")","v":"Çar"},{"$f":"TEXT(WEEKDAY(DATE(TakvimYılı+1,3,7),1),\"ggg\")","v":"Per"},{"$f":"TEXT(WEEKDAY(DATE(TakvimYılı+1,3,8),1),\"ggg\")","v":"Cum"},{"$f":"TEXT(WEEKDAY(DATE(TakvimYılı+1,3,9),1),\"ggg\")","v":"Cmt"},{"$f":"TEXT(WEEKDAY(DATE(TakvimYılı+1,3,10),1),\"ggg\")","v":"Paz"},{"$f":"TEXT(WEEKDAY(DATE(TakvimYılı+1,3,11),1),\"ggg\")","v":"Pzt"},{"$f":"TEXT(WEEKDAY(DATE(TakvimYılı+1,3,12),1),\"ggg\")","v":"Sal"},{"$f":"TEXT(WEEKDAY(DATE(TakvimYılı+1,3,13),1),\"ggg\")","v":"Çar"},{"$f":"TEXT(WEEKDAY(DATE(TakvimYılı+1,3,14),1),\"ggg\")","v":"Per"},{"$f":"TEXT(WEEKDAY(DATE(TakvimYılı+1,3,15),1),\"ggg\")","v":"Cum"},{"$f":"TEXT(WEEKDAY(DATE(TakvimYılı+1,3,16),1),\"ggg\")","v":"Cmt"},{"$f":"TEXT(WEEKDAY(DATE(TakvimYılı+1,3,17),1),\"ggg\")","v":"Paz"},{"$f":"TEXT(WEEKDAY(DATE(TakvimYılı+1,3,18),1),\"ggg\")","v":"Pzt"},{"$f":"TEXT(WEEKDAY(DATE(TakvimYılı+1,3,19),1),\"ggg\")","v":"Sal"},{"$f":"TEXT(WEEKDAY(DATE(TakvimYılı+1,3,20),1),\"ggg\")","v":"Çar"},{"$f":"TEXT(WEEKDAY(DATE(TakvimYılı+1,3,21),1),\"ggg\")","v":"Per"},{"$f":"TEXT(WEEKDAY(DATE(TakvimYılı+1,3,22),1),\"ggg\")","v":"Cum"},{"$f":"TEXT(WEEKDAY(DATE(TakvimYılı+1,3,23),1),\"ggg\")","v":"Cmt"},{"$f":"TEXT(WEEKDAY(DATE(TakvimYılı+1,3,24),1),\"ggg\")","v":"Paz"},{"$f":"TEXT(WEEKDAY(DATE(TakvimYılı+1,3,25),1),\"ggg\")","v":"Pzt"},{"$f":"TEXT(WEEKDAY(DATE(TakvimYılı+1,3,26),1),\"ggg\")","v":"Sal"},{"$f":"TEXT(WEEKDAY(DATE(TakvimYılı+1,3,27),1),\"ggg\")","v":"Çar"},{"$f":"TEXT(WEEKDAY(DATE(TakvimYılı+1,3,28),1),\"ggg\")","v":"Per"},{"$f":"TEXT(WEEKDAY(DATE(TakvimYılı+1,3,29),1),\"ggg\")","v":"Cum"},{"$f":"TEXT(WEEKDAY(DATE(TakvimYılı+1,3,30),1),\"ggg\")","v":"Cmt"},{"$f":"TEXT(WEEKDAY(DATE(TakvimYılı+1,3,31),1),\"ggg\")","v":"Paz"},"Toplam"]
[null,"Öğrenci No","Öğrenci Adı","1","2","3","4","5","6","7","8","9","10","11","12","13","14","15","16","17","18","19","20","21","22","23","24","25","26","27","28","29","30","31","G","Mzl.","Mzs.","B","Gelmediği Günler"]
[null,null,{"$f":"IFERROR(VLOOKUP(MartDevamlılığı[[#This Row],[Öğrenci No]],ÖğrenciListesi[],18,FALSE),\"\")","v":""},{"$nulls":31},{"$f":"COUNTIF(MartDevamlılığı[[#This Row],[1]:[31]],KOD1)","v":0},{"$f":"COUNTIF(MartDevamlılığı[[#This Row],[1]:[31]],KOD2)","v":0},{"$f":"COUNTIF(MartDevamlılığı[[#This Row],[1]:[31]],KOD3)","v":0},{"$f":"COUNTIF(MartDevamlılığı[[#This Row],[1]:[31]],KOD4)","v":0},{"$f":"SUM(MartDevamlılığı[[#This Row],[Mzl.]:[Mzs.]])","v":0}]
[null,null,{"$f":"IFERROR(VLOOKUP(MartDevamlılığı[[#This Row],[Öğrenci No]],ÖğrenciListesi[],18,FALSE),\"\")","v":""},{"$nulls":31},{"$f":"COUNTIF(MartDevamlılığı[[#This Row],[1]:[31]],KOD1)","v":0},{"$f":"COUNTIF(MartDevamlılığı[[#This Row],[1]:[31]],KOD2)","v":0},{"$f":"COUNTIF(MartDevamlılığı[[#This Row],[1]:[31]],KOD3)","v":0},{"$f":"COUNTIF(MartDevamlılığı[[#This Row],[1]:[31]],KOD4)","v":0},{"$f":"SUM(MartDevamlılığı[[#This Row],[Mzl.]:[Mzs.]])","v":0}]
[null,null,{"$f":"IFERROR(VLOOKUP(MartDevamlılığı[[#This Row],[Öğrenci No]],ÖğrenciListesi[],18,FALSE),\"\")","v":""},{"$nulls":31},{"$f":"COUNTIF(MartDevamlılığı[[#This Row],[1]:[31]],KOD1)","v":0},{"$f":"COUNTIF(MartDevamlılığı[[#This Row],[1]:[31]],KOD2)","v":0},{"$f":"COUNTIF(MartDevamlılığı[[#This Row],[1]:[31]],KOD3)","v":0},{"$f":"COUNTIF(MartDevamlılığı[[#This Row],[1]:[31]],KOD4)","v":0},{"$f":"SUM(MartDevamlılığı[[#This Row],[Mzl.]:[Mzs.]])","v":0}]
[null,null,{"$f":"IFERROR(VLOOKUP(MartDevamlılığı[[#This Row],[Öğrenci No]],ÖğrenciListesi[],18,FALSE),\"\")","v":""},{"$nulls":31},{"$f":"COUNTIF(MartDevamlılığı[[#This Row],[1]:[31]],KOD1)","v":0},{"$f":"COUNTIF(MartDevamlılığı[[#This Row],[1]:[31]],KOD2)","v":0},{"$f":"COUNTIF(MartDevamlılığı[[#This Row],[1]:[31]],KOD3)","v":0},{"$f":"COUNTIF(MartDevamlılığı[[#This Row],[1]:[31]],KOD4)","v":0},{"$f":"SUM(MartDevamlılığı[[#This Row],[Mzl.]:[Mzs.]])","v":0}]
[null,null,{"$f":"IFERROR(VLOOKUP(MartDevamlılığı[[#This Row],[Öğrenci No]],ÖğrenciListesi[],18,FALSE),\"\")","v":""},{"$nulls":31},{"$f":"COUNTIF(MartDevamlılığı[[#This Row],[1]:[31]],KOD1)","v":0},{"$f":"COUNTIF(MartDevamlılığı[[#This Row],[1]:[31]],KOD2)","v":0},{"$f":"COUNTIF(MartDevamlılığı[[#This Row],[1]:[31]],KOD3)","v":0},{"$f":"COUNTIF(MartDevamlılığı[[#This Row],[1]:[31]],KOD4)","v":0},{"$f":"SUM(MartDevamlılığı[[#This Row],[Mzl.]:[Mzs.]])","v":0}]
[null,null,"Toplam gelmediği gün",{"$f":"COUNTIF(MartDevamlılığı[1],\"Mzs.\")+COUNTIF(MartDevamlılığı[1],\"Mzl.\")","v":0},{"$f":"COUNTIF(MartDevamlılığı[2],\"Mzs.\")+COUNTIF(MartDevamlılığı[2],\"Mzl.\")","v":0},{"$f":"COUNTIF(MartDevamlılığı[3],\"Mzs.\")+COUNTIF(MartDevamlılığı[3],\"Mzl.\")","v":0},{"$f":"COUNTIF(MartDevamlılığı[4],\"Mzs.\")+COUNTIF(MartDevamlılığı[4],\"Mzl.\")","v":0},{"$f":"COUNTIF(MartDevamlılığı[5],\"Mzs.\")+COUNTIF(MartDevamlılığı[5],\"Mzl.\")","v":0},{"$f":"COUNTIF(MartDevamlılığı[6],\"Mzs.\")+COUNTIF(MartDevamlılığı[6],\"Mzl.\")","v":0},{"$f":"COUNTIF(MartDevamlılığı[7],\"Mzs.\")+COUNTIF(MartDevamlılığı[7],\"Mzl.\")","v":0},{"$f":"COUNTIF(MartDevamlılığı[8],\"Mzs.\")+COUNTIF(MartDevamlılığı[8],\"Mzl.\")","v":0},{"$f":"COUNTIF(MartDevamlılığı[9],\"Mzs.\")+COUNTIF(MartDevamlılığı[9],\"Mzl.\")","v":0},{"$f":"COUNTIF(MartDevamlılığı[10],\"Mzs.\")+COUNTIF(MartDevamlılığı[10],\"Mzl.\")","v":0},{"$f":"COUNTIF(MartDevamlılığı[11],\"Mzs.\")+COUNTIF(MartDevamlılığı[11],\"Mzl.\")","v":0},{"$f":"COUNTIF(MartDevamlılığı[12],\"Mzs.\")+COUNTIF(MartDevamlılığı[12],\"Mzl.\")","v":0},{"$f":"COUNTIF(MartDevamlılığı[13],\"Mzs.\")+COUNTIF(MartDevamlılığı[13],\"Mzl.\")","v":0},{"$f":"COUNTIF(MartDevamlılığı[14],\"Mzs.\")+COUNTIF(MartDevamlılığı[14],\"Mzl.\")","v":0},{"$f":"COUNTIF(MartDevamlılığı[15],\"Mzs.\")+COUNTIF(MartDevamlılığı[15],\"Mzl.\")","v":0},{"$f":"COUNTIF(MartDevamlılığı[16],\"Mzs.\")+COUNTIF(MartDevamlılığı[16],\"Mzl.\")","v":0},{"$f":"COUNTIF(MartDevamlılığı[17],\"Mzs.\")+COUNTIF(MartDevamlılığı[17],\"Mzl.\")","v":0},{"$f":"COUNTIF(MartDevamlılığı[18],\"Mzs.\")+COUNTIF(MartDevamlılığı[18],\"Mzl.\")","v":0},{"$f":"COUNTIF(MartDevamlılığı[19],\"Mzs.\")+COUNTIF(MartDevamlılığı[19],\"Mzl.\")","v":0},{"$f":"COUNTIF(MartDevamlılığı[20],\"Mzs.\")+COUNTIF(MartDevamlılığı[20],\"Mzl.\")","v":0},{"$f":"COUNTIF(MartDevamlılığı[21],\"Mzs.\")+COUNTIF(MartDevamlılığı[21],\"Mzl.\")","v":0},{"$f":"COUNTIF(MartDevamlılığı[22],\"Mzs.\")+COUNTIF(MartDevamlılığı[22],\"Mzl.\")","v":0},{"$f":"COUNTIF(MartDevamlılığı[23],\"Mzs.\")+COUNTIF(MartDevamlılığı[23],\"Mzl.\")","v":0},{"$f":"COUNTIF(MartDevamlılığı[24],\"Mzs.\")+COUNTIF(MartDevamlılığı[24],\"Mzl.\")","v":0},{"$f":"COUNTIF(MartDevamlılığı[25],\"Mzs.\")+COUNTIF(MartDevamlılığı[25],\"Mzl.\")","v":0},{"$f":"COUNTIF(MartDevamlılığı[26],\"Mzs.\")+COUNTIF(MartDevamlılığı[26],\"Mzl.\")","v":0},{"$f":"COUNTIF(MartDevamlılığı[27],\"Mzs.\")+COUNTIF(MartDevamlılığı[27],\"Mzl.\")","v":0},{"$f":"COUNTIF(MartDevamlılığı[28],\"Mzs.\")+COUNTIF(MartDevamlılığı[28],\"Mzl.\")","v":0},{"$f":"COUNTIF(MartDevamlılığı[29],\"Mzs.\")+COUNTIF(MartDevamlılığı[29],\"Mzl.\")","v":0},null,null,{"$f":"SUBTOTAL(109,MartDevamlılığı[G])","v":0},{"$f":"SUBTOTAL(109,MartDevamlılığı[Mzl.])","v":0},{"$f":"SUBTOTAL(109,MartDevamlılığı[Mzs.])","v":0},{"$f":"SUBTOTAL(109,MartDevamlılığı[B])","v":0},{"$f":"SUBTOTAL(109,MartDevamlılığı[Gelmediği Günler])","v":0}]

{"sheet":"Nisan","index":10,"n_rows":12,"n_cols":39,"rows_kept":12,"merged":[[4,34,4,38]]}
["ÖĞRENCİ KATILIM KAYDI",{"$nulls":36},"Okul Yılı Başlangıcı:",{"$f":"TakvimYılı","v":2012}]
[]
[null,null,{"$f":"RenkAnahtarıMetni","v":"RENK TUŞU "},{"$f":"KOD1","v":"G"},{"$f":"Kod1Metin","v":"Geç"},null,null,{"$f":"KOD2","v":"Mzl."},{"$f":"Kod2Metin","v":"Mazeretli"},null,null,{"$f":"KOD3","v":"Mzs."},{"$f":"Kod3Metin","v":"Mazeretsiz"},null,null,{"$f":"KOD4","v":"B"},{"$f":"Kod4Metin","v":"Burada"},null,null,{"$f":"KOD5","v":"OY"},{"$f":"Kod5Metin","v":"Okul Yok"}]
[]
[null,{"$f":"DATE(TakvimYılı+1,4,1)","v":"2013-04-01"},null,{"$f":"TEXT(WEEKDAY(DATE(TakvimYılı+1,4,1),1),\"ggg\")","v":"Pzt"},{"$f":"TEXT(WEEKDAY(DATE(TakvimYılı+1,4,2),1),\"ggg\")","v":"Sal"},{"$f":"TEXT(WEEKDAY(DATE(TakvimYılı+1,4,3),1),\"ggg\")","v":"Çar"},{"$f":"TEXT(WEEKDAY(DATE(TakvimYılı+1,4,4),1),\"ggg\")","v":"Per"},{"$f":"TEXT(WEEKDAY(DATE(TakvimYılı+1,4,5),1),\"ggg\")","v":"Cum"},{"$f":"TEXT(WEEKDAY(DATE(TakvimYılı+1,4,6),1),\"ggg\")","v":"Cmt"},{"$f":"TEXT(WEEKDAY(DATE(TakvimYılı+1,4,7),1),\"ggg\")","v":"Paz"},{"$f":"TEXT(WEEKDAY(DATE(TakvimYılı+1,4,8),1),\"ggg\")","v":"Pzt"},{"$f":"TEXT(WEEKDAY(DATE(TakvimYılı+1,4,9),1),\"ggg\")","v":"Sal"},{"$f":"TEXT(WEEKDAY(DATE(TakvimYılı+1,4,10),1),\"ggg\")","v":"Çar"},{"$f":"TEXT(WEEKDAY(DATE(TakvimYılı+1,4,11),1),\"ggg\")","v":"Per"},{"$f":"TEXT(WEEKDAY(DATE(TakvimYılı+1,4,12),1),\"ggg\")","v":"Cum"},{"$f":"TEXT(WEEKDAY(DATE(TakvimYılı+1,4,13),1),\"ggg\")","v":"Cmt"},{"$f":"TEXT(WEEKDAY(DATE(TakvimYılı+1,4,14),1),\"ggg\")","v":"Paz"},{"$f":"TEXT(WEEKDAY(DATE(TakvimYılı+1,4,15),1),\"ggg\")","v":"Pzt"},{"$f":"TEXT(WEEKDAY(DATE(TakvimYılı+1,4,16),1),\"ggg\")","v":"Sal"},{"$f":"TEXT(WEEKDAY(DATE(TakvimYılı+1,4,17),1),\"ggg\")","v":"Çar"},{"$f":"TEXT(WEEKDAY(DATE(TakvimYılı+1,4,18),1),\"ggg\")","v":"Per"},{"$f":"TEXT(WEEKDAY(DATE(TakvimYılı+1,4,19),1),\"ggg\")","v":"Cum"},{"$f":"TEXT(WEEKDAY(DATE(TakvimYılı+1,4,20),1),\"ggg\")","v":"Cmt"},{"$f":"TEXT(WEEKDAY(DATE(TakvimYılı+1,4,21),1),\"ggg\")","v":"Paz"},{"$f":"TEXT(WEEKDAY(DATE(TakvimYılı+1,4,22),1),\"ggg\")","v":"Pzt"},{"$f":"TEXT(WEEKDAY(DATE(TakvimYılı+1,4,23),1),\"ggg\")","v":"Sal"},{"$f":"TEXT(WEEKDAY(DATE(TakvimYılı+1,4,24),1),\"ggg\")","v":"Çar"},{"$f":"TEXT(WEEKDAY(DATE(TakvimYılı+1,4,25),1),\"ggg\")","v":"Per"},{"$f":"TEXT(WEEKDAY(DATE(TakvimYılı+1,4,26),1),\"ggg\")","v":"Cum"},{"$f":"TEXT(WEEKDAY(DATE(TakvimYılı+1,4,27),1),\"ggg\")","v":"Cmt"},{"$f":"TEXT(WEEKDAY(DATE(TakvimYılı+1,4,28),1),\"ggg\")","v":"Paz"},{"$f":"TEXT(WEEKDAY(DATE(TakvimYılı+1,4,29),1),\"ggg\")","v":"Pzt"},{"$f":"TEXT(WEEKDAY(DATE(TakvimYılı+1,4,30),1),\"ggg\")","v":"Sal"},null,"Toplam"]
[null,"Öğrenci No","Öğrenci Adı","1","2","3","4","5","6","7","8","9","10","11","12","13","14","15","16","17","18","19","20","21","22","23","24","25","26","27","28","29","30"," ","G","Mzl.","Mzs.","B","Gelmediği Günler"]
[null,null,{"$f":"IFERROR(VLOOKUP(NisanDevamlılığı[[#This Row],[Öğrenci No]],ÖğrenciListesi[],18,FALSE),\"\")","v":""},{"$nulls":31},{"$f":"COUNTIF(NisanDevamlılığı[[#This Row],[1]:[ ]],KOD1)","v":0},{"$f":"COUNTIF(NisanDevamlılığı[[#This Row],[1]:[ ]],KOD2)","v":0},{"$f":"COUNTIF(NisanDevamlılığı[[#This Row],[1]:[ ]],KOD3)","v":0},{"$f":"COUNTIF(NisanDevamlılığı[[#This Row],[1]:[ ]],KOD4)","v":0},{"$f":"SUM(NisanDevamlılığı[[#This Row],[Mzl.]:[Mzs.]])","v":0}]
[null,null,{"$f":"IFERROR(VLOOKUP(NisanDevamlılığı[[#This Row],[Öğrenci No]],ÖğrenciListesi[],18,FALSE),\"\")","v":""},{"$nulls":31},{"$f":"COUNTIF(NisanDevamlılığı[[#This Row],[1]:[ ]],KOD1)","v":0},{"$f":"COUNTIF(NisanDevamlılığı[[#This Row],[1]:[ ]],KOD2)","v":0},{"$f":"COUNTIF(NisanDevamlılığı[[#This Row],[1]:[ ]],KOD3)","v":0},{"$f":"COUNTIF(NisanDevamlılığı[[#This Row],[1]:[ ]],KOD4)","v":0},{"$f":"SUM(NisanDevamlılığı[[#This Row],[Mzl.]:[Mzs.]])","v":0}]
[null,null,{"$f":"IFERROR(VLOOKUP(NisanDevamlılığı[[#This Row],[Öğrenci No]],ÖğrenciListesi[],18,FALSE),\"\")","v":""},{"$nulls":31},{"$f":"COUNTIF(NisanDevamlılığı[[#This Row],[1]:[ ]],KOD1)","v":0},{"$f":"COUNTIF(NisanDevamlılığı[[#This Row],[1]:[ ]],KOD2)","v":0},{"$f":"COUNTIF(NisanDevamlılığı[[#This Row],[1]:[ ]],KOD3)","v":0},{"$f":"COUNTIF(NisanDevamlılığı[[#This Row],[1]:[ ]],KOD4)","v":0},{"$f":"SUM(NisanDevamlılığı[[#This Row],[Mzl.]:[Mzs.]])","v":0}]
[null,null,{"$f":"IFERROR(VLOOKUP(NisanDevamlılığı[[#This Row],[Öğrenci No]],ÖğrenciListesi[],18,FALSE),\"\")","v":""},{"$nulls":31},{"$f":"COUNTIF(NisanDevamlılığı[[#This Row],[1]:[ ]],KOD1)","v":0},{"$f":"COUNTIF(NisanDevamlılığı[[#This Row],[1]:[ ]],KOD2)","v":0},{"$f":"COUNTIF(NisanDevamlılığı[[#This Row],[1]:[ ]],KOD3)","v":0},{"$f":"COUNTIF(NisanDevamlılığı[[#This Row],[1]:[ ]],KOD4)","v":0},{"$f":"SUM(NisanDevamlılığı[[#This Row],[Mzl.]:[Mzs.]])","v":0}]
[null,null,{"$f":"IFERROR(VLOOKUP(NisanDevamlılığı[[#This Row],[Öğrenci No]],ÖğrenciListesi[],18,FALSE),\"\")","v":""},{"$nulls":31},{"$f":"COUNTIF(NisanDevamlılığı[[#This Row],[1]:[ ]],KOD1)","v":0},{"$f":"COUNTIF(NisanDevamlılığı[[#This Row],[1]:[ ]],KOD2)","v":0},{"$f":"COUNTIF(NisanDevamlılığı[[#This Row],[1]:[ ]],KOD3)","v":0},{"$f":"COUNTIF(NisanDevamlılığı[[#This Row],[1]:[ ]],KOD4)","v":0},{"$f":"SUM(NisanDevamlılığı[[#This Row],[Mzl.]:[Mzs.]])","v":0}]
[null,null,"Toplam gelmediği gün",{"$f":"COUNTIF(NisanDevamlılığı[1],\"Mzs.\")+COUNTIF(NisanDevamlılığı[1],\"Mzl.\")","v":0},{"$f":"COUNTIF(NisanDevamlılığı[2],\"Mzs.\")+COUNTIF(NisanDevamlılığı[2],\"Mzl.\")","v":0},{"$f":"COUNTIF(NisanDevamlılığı[3],\"Mzs.\")+COUNTIF(NisanDevamlılığı[3],\"Mzl.\")","v":0},{"$f":"COUNTIF(NisanDevamlılığı[4],\"Mzs.\")+COUNTIF(NisanDevamlılığı[4],\"Mzl.\")","v":0},{"$f":"COUNTIF(NisanDevamlılığı[5],\"Mzs.\")+COUNTIF(NisanDevamlılığı[5],\"Mzl.\")","v":0},{"$f":"COUNTIF(NisanDevamlılığı[6],\"Mzs.\")+COUNTIF(NisanDevamlılığı[6],\"Mzl.\")","v":0},{"$f":"COUNTIF(NisanDevamlılığı[7],\"Mzs.\")+COUNTIF(NisanDevamlılığı[7],\"Mzl.\")","v":0},{"$f":"COUNTIF(NisanDevamlılığı[8],\"Mzs.\")+COUNTIF(NisanDevamlılığı[8],\"Mzl.\")","v":0},{"$f":"COUNTIF(NisanDevamlılığı[9],\"Mzs.\")+COUNTIF(NisanDevamlılığı[9],\"Mzl.\")","v":0},{"$f":"COUNTIF(NisanDevamlılığı[10],\"Mzs.\")+COUNTIF(NisanDevamlılığı[10],\"Mzl.\")","v":0},{"$f":"COUNTIF(NisanDevamlılığı[11],\"Mzs.\")+COUNTIF(NisanDevamlılığı[11],\"Mzl.\")","v":0},{"$f":"COUNTIF(NisanDevamlılığı[12],\"Mzs.\")+COUNTIF(NisanDevamlılığı[12],\"Mzl.\")","v":0},{"$f":"COUNTIF(NisanDevamlılığı[13],\"Mzs.\")+COUNTIF(NisanDevamlılığı[13],\"Mzl.\")","v":0},{"$f":"COUNTIF(NisanDevamlılığı[14],\"Mzs.\")+COUNTIF(NisanDevamlılığı[14],\"Mzl.\")","v":0},{"$f":"COUNTIF(NisanDevamlılığı[15],\"Mzs.\")+COUNTIF(NisanDevamlılığı[15],\"Mzl.\")","v":0},{"$f":"COUNTIF(NisanDevamlılığı[16],\"Mzs.\")+COUNTIF(NisanDevamlılığı[16],\"Mzl.\")","v":0},{"$f":"COUNTIF(NisanDevamlılığı[17],\"Mzs.\")+COUNTIF(NisanDevamlılığı[17],\"Mzl.\")","v":0},{"$f":"COUNTIF(NisanDevamlılığı[18],\"Mzs.\")+COUNTIF(NisanDevamlılığı[18],\"Mzl.\")","v":0},{"$f":"COUNTIF(NisanDevamlılığı[19],\"Mzs.\")+COUNTIF(NisanDevamlılığı[19],\"Mzl.\")","v":0},{"$f":"COUNTIF(NisanDevamlılığı[20],\"Mzs.\")+COUNTIF(NisanDevamlılığı[20],\"Mzl.\")","v":0},{"$f":"COUNTIF(NisanDevamlılığı[21],\"Mzs.\")+COUNTIF(NisanDevamlılığı[21],\"Mzl.\")","v":0},{"$f":"COUNTIF(NisanDevamlılığı[22],\"Mzs.\")+COUNTIF(NisanDevamlılığı[22],\"Mzl.\")","v":0},{"$f":"COUNTIF(NisanDevamlılığı[23],\"Mzs.\")+COUNTIF(NisanDevamlılığı[23],\"Mzl.\")","v":0},{"$f":"COUNTIF(NisanDevamlılığı[24],\"Mzs.\")+COUNTIF(NisanDevamlılığı[24],\"Mzl.\")","v":0},{"$f":"COUNTIF(NisanDevamlılığı[25],\"Mzs.\")+COUNTIF(NisanDevamlılığı[25],\"Mzl.\")","v":0},{"$f":"COUNTIF(NisanDevamlılığı[26],\"Mzs.\")+COUNTIF(NisanDevamlılığı[26],\"Mzl.\")","v":0},{"$f":"COUNTIF(NisanDevamlılığı[27],\"Mzs.\")+COUNTIF(NisanDevamlılığı[27],\"Mzl.\")","v":0},{"$f":"COUNTIF(NisanDevamlılığı[28],\"Mzs.\")+COUNTIF(NisanDevamlılığı[28],\"Mzl.\")","v":0},{"$f":"COUNTIF(NisanDevamlılığı[29],\"Mzs.\")+COUNTIF(NisanDevamlılığı[29],\"Mzl.\")","v":0},null,null,{"$f":"SUBTOTAL(109,NisanDevamlılığı[G])","v":0},{"$f":"SUBTOTAL(109,NisanDevamlılığı[Mzl.])","v":0},{"$f":"SUBTOTAL(109,NisanDevamlılığı[Mzs.])","v":0},{"$f":"SUBTOTAL(109,NisanDevamlılığı[B])","v":0},{"$f":"SUBTOTAL(109,NisanDevamlılığı[Gelmediği Günler])","v":0}]

{"sheet":"Mayıs","index":11,"n_rows":12,"n_cols":39,"rows_kept":12,"merged":[[4,34,4,38]]}
["ÖĞRENCİ KATILIM KAYDI",{"$nulls":36},"Okul Yılı Başlangıcı:",{"$f":"TakvimYılı","v":2012}]
[]
[null,null,{"$f":"RenkAnahtarıMetni","v":"RENK TUŞU "},{"$f":"KOD1","v":"G"},{"$f":"Kod1Metin","v":"Geç"},null,null,{"$f":"KOD2","v":"Mzl."},{"$f":"Kod2Metin","v":"Mazeretli"},null,null,{"$f":"KOD3","v":"Mzs."},{"$f":"Kod3Metin","v":"Mazeretsiz"},null,null,{"$f":"KOD4","v":"B"},{"$f":"Kod4Metin","v":"Burada"},null,null,{"$f":"KOD5","v":"OY"},{"$f":"Kod5Metin","v":"Okul Yok"}]
[]
[null,{"$f":"DATE(TakvimYılı+1,5,1)","v":"2013-05-01"},null,{"$f":"TEXT(WEEKDAY(DATE(TakvimYılı+1,5,1),1),\"ggg\")","v":"Çar"},{"$f":"TEXT(WEEKDAY(DATE(TakvimYılı+1,5,2),1),\"ggg\")","v":"Per"},{"$f":"TEXT(WEEKDAY(DATE(TakvimYılı+1,5,3),1),\"ggg\")","v":"Cum"},{"$f":"TEXT(WEEKDAY(DATE(TakvimYılı+1,5,4),1),\"ggg\")","v":"Cmt"},{"$f":"TEXT(WEEKDAY(DATE(TakvimYılı+1,5,5),1),\"ggg\")","v":"Paz"},{"$f":"TEXT(WEEKDAY(DATE(TakvimYılı+1,5,6),1),\"ggg\")","v":"Pzt"},{"$f":"TEXT(WEEKDAY(DATE(TakvimYılı+1,5,7),1),\"ggg\")","v":"Sal"},{"$f":"TEXT(WEEKDAY(DATE(TakvimYılı+1,5,8),1),\"ggg\")","v":"Çar"},{"$f":"TEXT(WEEKDAY(DATE(TakvimYılı+1,5,9),1),\"ggg\")","v":"Per"},{"$f":"TEXT(WEEKDAY(DATE(TakvimYılı+1,5,10),1),\"ggg\")","v":"Cum"},{"$f":"TEXT(WEEKDAY(DATE(TakvimYılı+1,5,11),1),\"ggg\")","v":"Cmt"},{"$f":"TEXT(WEEKDAY(DATE(TakvimYılı+1,5,12),1),\"ggg\")","v":"Paz"},{"$f":"TEXT(WEEKDAY(DATE(TakvimYılı+1,5,13),1),\"ggg\")","v":"Pzt"},{"$f":"TEXT(WEEKDAY(DATE(TakvimYılı+1,5,14),1),\"ggg\")","v":"Sal"},{"$f":"TEXT(WEEKDAY(DATE(TakvimYılı+1,5,15),1),\"ggg\")","v":"Çar"},{"$f":"TEXT(WEEKDAY(DATE(TakvimYılı+1,5,16),1),\"ggg\")","v":"Per"},{"$f":"TEXT(WEEKDAY(DATE(TakvimYılı+1,5,17),1),\"ggg\")","v":"Cum"},{"$f":"TEXT(WEEKDAY(DATE(TakvimYılı+1,5,18),1),\"ggg\")","v":"Cmt"},{"$f":"TEXT(WEEKDAY(DATE(TakvimYılı+1,5,19),1),\"ggg\")","v":"Paz"},{"$f":"TEXT(WEEKDAY(DATE(TakvimYılı+1,5,20),1),\"ggg\")","v":"Pzt"},{"$f":"TEXT(WEEKDAY(DATE(TakvimYılı+1,5,21),1),\"ggg\")","v":"Sal"},{"$f":"TEXT(WEEKDAY(DATE(TakvimYılı+1,5,22),1),\"ggg\")","v":"Çar"},{"$f":"TEXT(WEEKDAY(DATE(TakvimYılı+1,5,23),1),\"ggg\")","v":"Per"},{"$f":"TEXT(WEEKDAY(DATE(TakvimYılı+1,5,24),1),\"ggg\")","v":"Cum"},{"$f":"TEXT(WEEKDAY(DATE(TakvimYılı+1,5,25),1),\"ggg\")","v":"Cmt"},{"$f":"TEXT(WEEKDAY(DATE(TakvimYılı+1,5,26),1),\"ggg\")","v":"Paz"},{"$f":"TEXT(WEEKDAY(DATE(TakvimYılı+1,5,27),1),\"ggg\")","v":"Pzt"},{"$f":"TEXT(WEEKDAY(DATE(TakvimYılı+1,5,28),1),\"ggg\")","v":"Sal"},{"$f":"TEXT(WEEKDAY(DATE(TakvimYılı+1,5,29),1),\"ggg\")","v":"Çar"},{"$f":"TEXT(WEEKDAY(DATE(TakvimYılı+1,5,30),1),\"ggg\")","v":"Per"},{"$f":"TEXT(WEEKDAY(DATE(TakvimYılı+1,5,31),1),\"ggg\")","v":"Cum"},"Toplam"]
[null,"Öğrenci No","Öğrenci Adı","1","2","3","4","5","6","7","8","9","10","11","12","13","14","15","16","17","18","19","20","21","22","23","24","25","26","27","28","29","30","31","G","Mzl.","Mzs.","B","Gelmediği Günler"]
[null,null,{"$f":"IFERROR(VLOOKUP(MayısDevamlılığı[[#This Row],[Öğrenci No]],ÖğrenciListesi[],18,FALSE),\"\")","v":""},{"$nulls":31},{"$f":"COUNTIF(MayısDevamlılığı[[#This Row],[1]:[31]],KOD1)","v":0},{"$f":"COUNTIF(MayısDevamlılığı[[#This Row],[1]:[31]],KOD2)","v":0},{"$f":"COUNTIF(MayısDevamlılığı[[#This Row],[1]:[31]],KOD3)","v":0},{"$f":"COUNTIF(MayısDevamlılığı[[#This Row],[1]:[31]],KOD4)","v":0},{"$f":"SUM(MayısDevamlılığı[[#This Row],[Mzl.]:[Mzs.]])","v":0}]
[null,null,{"$f":"IFERROR(VLOOKUP(MayısDevamlılığı[[#This Row],[Öğrenci No]],ÖğrenciListesi[],18,FALSE),\"\")","v":""},{"$nulls":31},{"$f":"COUNTIF(MayısDevamlılığı[[#This Row],[1]:[31]],KOD1)","v":0},{"$f":"COUNTIF(MayısDevamlılığı[[#This Row],[1]:[31]],KOD2)","v":0},{"$f":"COUNTIF(MayısDevamlılığı[[#This Row],[1]:[31]],KOD3)","v":0},{"$f":"COUNTIF(MayısDevamlılığı[[#This Row],[1]:[31]],KOD4)","v":0},{"$f":"SUM(MayısDevamlılığı[[#This Row],[Mzl.]:[Mzs.]])","v":0}]
[null,null,{"$f":"IFERROR(VLOOKUP(MayısDevamlılığı[[#This Row],[Öğrenci No]],ÖğrenciListesi[],18,FALSE),\"\")","v":""},{"$nulls":31},{"$f":"COUNTIF(MayısDevamlılığı[[#This Row],[1]:[31]],KOD1)","v":0},{"$f":"COUNTIF(MayısDevamlılığı[[#This Row],[1]:[31]],KOD2)","v":0},{"$f":"COUNTIF(MayısDevamlılığı[[#This Row],[1]:[31]],KOD3)","v":0},{"$f":"COUNTIF(MayısDevamlılığı[[#This Row],[1]:[31]],KOD4)","v":0},{"$f":"SUM(MayısDevamlılığı[[#This Row],[Mzl.]:[Mzs.]])","v":0}]
[null,null,{"$f":"IFERROR(VLOOKUP(MayısDevamlılığı[[#This Row],[Öğrenci No]],ÖğrenciListesi[],18,FALSE),\"\")","v":""},{"$nulls":31},{"$f":"COUNTIF(MayısDevamlılığı[[#This Row],[1]:[31]],KOD1)","v":0},{"$f":"COUNTIF(MayısDevamlılığı[[#This Row],[1]:[31]],KOD2)","v":0},{"$f":"COUNTIF(MayısDevamlılığı[[#This Row],[1]:[31]],KOD3)","v":0},{"$f":"COUNTIF(MayısDevamlılığı[[#This Row],[1]:[31]],KOD4)","v":0},{"$f":"SUM(MayısDevamlılığı[[#This Row],[Mzl.]:[Mzs.]])","v":0}]
[null,null,{"$f":"IFERROR(VLOOKUP(MayısDevamlılığı[[#This Row],[Öğrenci No]],ÖğrenciListesi[],18,FALSE),\"\")","v":""},{"$nulls":31},{"$f":"COUNTIF(MayısDevamlılığı[[#This Row],[1]:[31]],KOD1)","v":0},{"$f":"COUNTIF(MayısDevamlılığı[[#This Row],[1]:[31]],KOD2)","v":0},{"$f":"COUNTIF(MayısDevamlılığı[[#This Row],[1]:[31]],KOD3)","v":0},{"$f":"COUNTIF(MayısDevamlılığı[[#This Row],[1]:[31]],KOD4)","v":0},{"$f":"SUM(MayısDevamlılığı[[#This Row],[Mzl.]:[Mzs.]])","v":0}]
[null,null,"Toplam gelmediği gün",{"$f":"COUNTIF(MayısDevamlılığı[1],\"Mzs.\")+COUNTIF(MayısDevamlılığı[1],\"Mzl.\")","v":0},{"$f":"COUNTIF(MayısDevamlılığı[2],\"Mzs.\")+COUNTIF(MayısDevamlılığı[2],\"Mzl.\")","v":0},{"$f":"COUNTIF(MayısDevamlılığı[3],\"Mzs.\")+COUNTIF(MayısDevamlılığı[3],\"Mzl.\")","v":0},{"$f":"COUNTIF(MayısDevamlılığı[4],\"Mzs.\")+COUNTIF(MayısDevamlılığı[4],\"Mzl.\")","v":0},{"$f":"COUNTIF(MayısDevamlılığı[5],\"Mzs.\")+COUNTIF(MayısDevamlılığı[5],\"Mzl.\")","v":0},{"$f":"COUNTIF(MayısDevamlılığı[6],\"Mzs.\")+COUNTIF(MayısDevamlılığı[6],\"Mzl.\")","v":0},{"$f":"COUNTIF(MayısDevamlılığı[7],\"Mzs.\")+COUNTIF(MayısDevamlılığı[7],\"Mzl.\")","v":0},{"$f":"COUNTIF(MayısDevamlılığı[8],\"Mzs.\")+COUNTIF(MayısDevamlılığı[8],\"Mzl.\")","v":0},{"$f":"COUNTIF(MayısDevamlılığı[9],\"Mzs.\")+COUNTIF(MayısDevamlılığı[9],\"Mzl.\")","v":0},{"$f":"COUNTIF(MayısDevamlılığı[10],\"Mzs.\")+COUNTIF(MayısDevamlılığı[10],\"Mzl.\")","v":0},{"$f":"COUNTIF(MayısDevamlılığı[11],\"Mzs.\")+COUNTIF(MayısDevamlılığı[11],\"Mzl.\")","v":0},{"$f":"COUNTIF(MayısDevamlılığı[12],\"Mzs.\")+COUNTIF(MayısDevamlılığı[12],\"Mzl.\")","v":0},{"$f":"COUNTIF(MayısDevamlılığı[13],\"Mzs.\")+COUNTIF(MayısDevamlılığı[13],\"Mzl.\")","v":0},{"$f":"COUNTIF(MayısDevamlılığı[14],\"Mzs.\")+COUNTIF(MayısDevamlılığı[14],\"Mzl.\")","v":0},{"$f":"COUNTIF(MayısDevamlılığı[15],\"Mzs.\")+COUNTIF(MayısDevamlılığı[15],\"Mzl.\")","v":0},{"$f":"COUNTIF(MayısDevamlılığı[16],\"Mzs.\")+COUNTIF(MayısDevamlılığı[16],\"Mzl.\")","v":0},{"$f":"COUNTIF(MayısDevamlılığı[17],\"Mzs.\")+COUNTIF(MayısDevamlılığı[17],\"Mzl.\")","v":0},{"$f":"COUNTIF(MayısDevamlılığı[18],\"Mzs.\")+COUNTIF(MayısDevamlılığı[18],\"Mzl.\")","v":0},{"$f":"COUNTIF(MayısDevamlılığı[19],\"Mzs.\")+COUNTIF(MayısDevamlılığı[19],\"Mzl.\")","v":0},{"$f":"COUNTIF(MayısDevamlılığı[20],\"Mzs.\")+COUNTIF(MayısDevamlılığı[20],\"Mzl.\")","v":0},{"$f":"COUNTIF(MayısDevamlılığı[21],\"Mzs.\")+COUNTIF(MayısDevamlılığı[21],\"Mzl.\")","v":0},{"$f":"COUNTIF(MayısDevamlılığı[22],\"Mzs.\")+COUNTIF(MayısDevamlılığı[22],\"Mzl.\")","v":0},{"$f":"COUNTIF(MayısDevamlılığı[23],\"Mzs.\")+COUNTIF(MayısDevamlılığı[23],\"Mzl.\")","v":0},{"$f":"COUNTIF(MayısDevamlılığı[24],\"Mzs.\")+COUNTIF(MayısDevamlılığı[24],\"Mzl.\")","v":0},{"$f":"COUNTIF(MayısDevamlılığı[25],\"Mzs.\")+COUNTIF(MayısDevamlılığı[25],\"Mzl.\")","v":0},{"$f":"COUNTIF(MayısDevamlılığı[26],\"Mzs.\")+COUNTIF(MayısDevamlılığı[26],\"Mzl.\")","v":0},{"$f":"COUNTIF(MayısDevamlılığı[27],\"Mzs.\")+COUNTIF(MayısDevamlılığı[27],\"Mzl.\")","v":0},{"$f":"COUNTIF(MayısDevamlılığı[28],\"Mzs.\")+COUNTIF(MayısDevamlılığı[28],\"Mzl.\")","v":0},{"$f":"COUNTIF(MayısDevamlılığı[29],\"Mzs.\")+COUNTIF(MayısDevamlılığı[29],\"Mzl.\")","v":0},null,null,{"$f":"SUBTOTAL(109,MayısDevamlılığı[G])","v":0},{"$f":"SUBTOTAL(109,MayısDevamlılığı[Mzl.])","v":0},{"$f":"SUBTOTAL(109,MayısDevamlılığı[Mzs.])","v":0},{"$f":"SUBTOTAL(109,MayısDevamlılığı[B])","v":0},{"$f":"SUBTOTAL(109,MayısDevamlılığı[Gelmediği Günler])","v":0}]

{"sheet":"Haziran","index":12,"n_rows":12,"n_cols":39,"rows_kept":12,"merged":[[4,34,4,38]]}
["ÖĞRENCİ KATILIM KAYDI",{"$nulls":36},"Okul Yılı Başlangıcı:",{"$f":"TakvimYılı","v":2012}]
[]
[null,null,{"$f":"RenkAnahtarıMetni","v":"RENK TUŞU "},{"$f":"KOD1","v":"G"},{"$f":"Kod1Metin","v":"Geç"},null,null,{"$f":"KOD2","v":"Mzl."},{"$f":"Kod2Metin","v":"Mazeretli"},null,null,{"$f":"KOD3","v":"Mzs."},{"$f":"Kod3Metin","v":"Mazeretsiz"},null,null,{"$f":"KOD4","v":"B"},{"$f":"Kod4Metin","v":"Burada"},null,null,{"$f":"KOD5","v":"OY"},{"$f":"Kod5Metin","v":"Okul Yok"}]
[]
[null,{"$f":"DATE(TakvimYılı+1,6,1)","v":"2013-06-01"},null,{"$f":"TEXT(WEEKDAY(DATE(TakvimYılı+1,6,1),1),\"ggg\")","v":"Cmt"},{"$f":"TEXT(WEEKDAY(DATE(TakvimYılı+1,6,2),1),\"ggg\")","v":"Paz"},{"$f":"TEXT(WEEKDAY(DATE(TakvimYılı+1,6,3),1),\"ggg\")","v":"Pzt"},{"$f":"TEXT(WEEKDAY(DATE(TakvimYılı+1,6,4),1),\"ggg\")","v":"Sal"},{"$f":"TEXT(WEEKDAY(DATE(TakvimYılı+1,6,5),1),\"ggg\")","v":"Çar"},{"$f":"TEXT(WEEKDAY(DATE(TakvimYılı+1,6,6),1),\"ggg\")","v":"Per"},{"$f":"TEXT(WEEKDAY(DATE(TakvimYılı+1,6,7),1),\"ggg\")","v":"Cum"},{"$f":"TEXT(WEEKDAY(DATE(TakvimYılı+1,6,8),1),\"ggg\")","v":"Cmt"},{"$f":"TEXT(WEEKDAY(DATE(TakvimYılı+1,6,9),1),\"ggg\")","v":"Paz"},{"$f":"TEXT(WEEKDAY(DATE(TakvimYılı+1,6,10),1),\"ggg\")","v":"Pzt"},{"$f":"TEXT(WEEKDAY(DATE(TakvimYılı+1,6,11),1),\"ggg\")","v":"Sal"},{"$f":"TEXT(WEEKDAY(DATE(TakvimYılı+1,6,12),1),\"ggg\")","v":"Çar"},{"$f":"TEXT(WEEKDAY(DATE(TakvimYılı+1,6,13),1),\"ggg\")","v":"Per"},{"$f":"TEXT(WEEKDAY(DATE(TakvimYılı+1,6,14),1),\"ggg\")","v":"Cum"},{"$f":"TEXT(WEEKDAY(DATE(TakvimYılı+1,6,15),1),\"ggg\")","v":"Cmt"},{"$f":"TEXT(WEEKDAY(DATE(TakvimYılı+1,6,16),1),\"ggg\")","v":"Paz"},{"$f":"TEXT(WEEKDAY(DATE(TakvimYılı+1,6,17),1),\"ggg\")","v":"Pzt"},{"$f":"TEXT(WEEKDAY(DATE(TakvimYılı+1,6,18),1),\"ggg\")","v":"Sal"},{"$f":"TEXT(WEEKDAY(DATE(TakvimYılı+1,6,19),1),\"ggg\")","v":"Çar"},{"$f":"TEXT(WEEKDAY(DATE(TakvimYılı+1,6,20),1),\"ggg\")","v":"Per"},{"$f":"TEXT(WEEKDAY(DATE(TakvimYılı+1,6,21),1),\"ggg\")","v":"Cum"},{"$f":"TEXT(WEEKDAY(DATE(TakvimYılı+1,6,22),1),\"ggg\")","v":"Cmt"},{"$f":"TEXT(WEEKDAY(DATE(TakvimYılı+1,6,23),1),\"ggg\")","v":"Paz"},{"$f":"TEXT(WEEKDAY(DATE(TakvimYılı+1,6,24),1),\"ggg\")","v":"Pzt"},{"$f":"TEXT(WEEKDAY(DATE(TakvimYılı+1,6,25),1),\"ggg\")","v":"Sal"},{"$f":"TEXT(WEEKDAY(DATE(TakvimYılı+1,6,26),1),\"ggg\")","v":"Çar"},{"$f":"TEXT(WEEKDAY(DATE(TakvimYılı+1,6,27),1),\"ggg\")","v":"Per"},{"$f":"TEXT(WEEKDAY(DATE(TakvimYılı+1,6,28),1),\"ggg\")","v":"Cum"},{"$f":"TEXT(WEEKDAY(DATE(TakvimYılı+1,6,29),1),\"ggg\")","v":"Cmt"},{"$f":"TEXT(WEEKDAY(DATE(TakvimYılı+1,6,30),1),\"ggg\")","v":"Paz"},null,"Toplam"]
[null,"Öğrenci No","Öğrenci Adı","1","2","3","4","5","6","7","8","9","10","11","12","13","14","15","16","17","18","19","20","21","22","23","24","25","26","27","28","29","30"," ","G","Mzl.","Mzs.","B","Gelmediği Günler"]
[null,null,{"$f":"IFERROR(VLOOKUP(HaziranDevamlılığı[[#This Row],[Öğrenci No]],ÖğrenciListesi[],18,FALSE),\"\")","v":""},{"$nulls":31},{"$f":"COUNTIF(HaziranDevamlılığı[[#This Row],[1]:[ ]],KOD1)","v":0},{"$f":"COUNTIF(HaziranDevamlılığı[[#This Row],[1]:[ ]],KOD2)","v":0},{"$f":"COUNTIF(HaziranDevamlılığı[[#This Row],[1]:[ ]],KOD3)","v":0},{"$f":"COUNTIF(HaziranDevamlılığı[[#This Row],[1]:[ ]],KOD4)","v":0},{"$f":"SUM(HaziranDevamlılığı[[#This Row],[Mzl.]:[Mzs.]])","v":0}]
[null,null,{"$f":"IFERROR(VLOOKUP(HaziranDevamlılığı[[#This Row],[Öğrenci No]],ÖğrenciListesi[],18,FALSE),\"\")","v":""},{"$nulls":31},{"$f":"COUNTIF(HaziranDevamlılığı[[#This Row],[1]:[ ]],KOD1)","v":0},{"$f":"COUNTIF(HaziranDevamlılığı[[#This Row],[1]:[ ]],KOD2)","v":0},{"$f":"COUNTIF(HaziranDevamlılığı[[#This Row],[1]:[ ]],KOD3)","v":0},{"$f":"COUNTIF(HaziranDevamlılığı[[#This Row],[1]:[ ]],KOD4)","v":0},{"$f":"SUM(HaziranDevamlılığı[[#This Row],[Mzl.]:[Mzs.]])","v":0}]
[null,null,{"$f":"IFERROR(VLOOKUP(HaziranDevamlılığı[[#This Row],[Öğrenci No]],ÖğrenciListesi[],18,FALSE),\"\")","v":""},{"$nulls":31},{"$f":"COUNTIF(HaziranDevamlılığı[[#This Row],[1]:[ ]],KOD1)","v":0},{"$f":"COUNTIF(HaziranDevamlılığı[[#This Row],[1]:[ ]],KOD2)","v":0},{"$f":"COUNTIF(HaziranDevamlılığı[[#This Row],[1]:[ ]],KOD3)","v":0},{"$f":"COUNTIF(HaziranDevamlılığı[[#This Row],[1]:[ ]],KOD4)","v":0},{"$f":"SUM(HaziranDevamlılığı[[#This Row],[Mzl.]:[Mzs.]])","v":0}]
[null,null,{"$f":"IFERROR(VLOOKUP(HaziranDevamlılığı[[#This Row],[Öğrenci No]],ÖğrenciListesi[],18,FALSE),\"\")","v":""},{"$nulls":31},{"$f":"COUNTIF(HaziranDevamlılığı[[#This Row],[1]:[ ]],KOD1)","v":0},{"$f":"COUNTIF(HaziranDevamlılığı[[#This Row],[1]:[ ]],KOD2)","v":0},{"$f":"COUNTIF(HaziranDevamlılığı[[#This Row],[1]:[ ]],KOD3)","v":0},{"$f":"COUNTIF(HaziranDevamlılığı[[#This Row],[1]:[ ]],KOD4)","v":0},{"$f":"SUM(HaziranDevamlılığı[[#This Row],[Mzl.]:[Mzs.]])","v":0}]
[null,null,{"$f":"IFERROR(VLOOKUP(HaziranDevamlılığı[[#This Row],[Öğrenci No]],ÖğrenciListesi[],18,FALSE),\"\")","v":""},{"$nulls":31},{"$f":"COUNTIF(HaziranDevamlılığı[[#This Row],[1]:[ ]],KOD1)","v":0},{"$f":"COUNTIF(HaziranDevamlılığı[[#This Row],[1]:[ ]],KOD2)","v":0},{"$f":"COUNTIF(HaziranDevamlılığı[[#This Row],[1]:[ ]],KOD3)","v":0},{"$f":"COUNTIF(HaziranDevamlılığı[[#This Row],[1]:[ ]],KOD4)","v":0},{"$f":"SUM(HaziranDevamlılığı[[#This Row],[Mzl.]:[Mzs.]])","v":0}]
[null,null,"Toplam gelmediği gün",{"$f":"COUNTIF(HaziranDevamlılığı[1],\"Mzs.\")+COUNTIF(HaziranDevamlılığı[1],\"Mzl.\")","v":0},{"$f":"COUNTIF(HaziranDevamlılığı[2],\"Mzs.\")+COUNTIF(HaziranDevamlılığı[2],\"Mzl.\")","v":0},{"$f":"COUNTIF(HaziranDevamlılığı[3],\"Mzs.\")+COUNTIF(HaziranDevamlılığı[3],\"Mzl.\")","v":0},{"$f":"COUNTIF(HaziranDevamlılığı[4],\"Mzs.\")+COUNTIF(HaziranDevamlılığı[4],\"Mzl.\")","v":0},{"$f":"COUNTIF(HaziranDevamlılığı[5],\"Mzs.\")+COUNTIF(HaziranDevamlılığı[5],\"Mzl.\")","v":0},{"$f":"COUNTIF(HaziranDevamlılığı[6],\"Mzs.\")+COUNTIF(HaziranDevamlılığı[6],\"Mzl.\")","v":0},{"$f":"COUNTIF(HaziranDevamlılığı[7],\"Mzs.\")+COUNTIF(HaziranDevamlılığı[7],\"Mzl.\")","v":0},{"$f":"COUNTIF(HaziranDevamlılığı[8],\"Mzs.\")+COUNTIF(HaziranDevamlılığı[8],\"Mzl.\")","v":0},{"$f":"COUNTIF(HaziranDevamlılığı[9],\"Mzs.\")+COUNTIF(HaziranDevamlılığı[9],\"Mzl.\")","v":0},{"$f":"COUNTIF(HaziranDevamlılığı[10],\"Mzs.\")+COUNTIF(HaziranDevamlılığı[10],\"Mzl.\")","v":0},{"$f":"COUNTIF(HaziranDevamlılığı[11],\"Mzs.\")+COUNTIF(HaziranDevamlılığı[11],\"Mzl.\")","v":0},{"$f":"COUNTIF(HaziranDevamlılığı[12],\"Mzs.\")+COUNTIF(HaziranDevamlılığı[12],\"Mzl.\")","v":0},{"$f":"COUNTIF(HaziranDevamlılığı[13],\"Mzs.\")+COUNTIF(HaziranDevamlılığı[13],\"Mzl.\")","v":0},{"$f":"COUNTIF(HaziranDevamlılığı[14],\"Mzs.\")+COUNTIF(HaziranDevamlılığı[14],\"Mzl.\")","v":0},{"$f":"COUNTIF(HaziranDevamlılığı[15],\"Mzs.\")+COUNTIF(HaziranDevamlılığı[15],\"Mzl.\")","v":0},{"$f":"COUNTIF(HaziranDevamlılığı[16],\"Mzs.\")+COUNTIF(HaziranDevamlılığı[16],\"Mzl.\")","v":0},{"$f":"COUNTIF(HaziranDevamlılığı[17],\"Mzs.\")+COUNTIF(HaziranDevamlılığı[17],\"Mzl.\")","v":0},{"$f":"COUNTIF(HaziranDevamlılığı[18],\"Mzs.\")+COUNTIF(HaziranDevamlılığı[18],\"Mzl.\")","v":0},{"$f":"COUNTIF(HaziranDevamlılığı[19],\"Mzs.\")+COUNTIF(HaziranDevamlılığı[19],\"Mzl.\")","v":0},{"$f":"COUNTIF(HaziranDevamlılığı[20],\"Mzs.\")+COUNTIF(HaziranDevamlılığı[20],\"Mzl.\")","v":0},{"$f":"COUNTIF(HaziranDevamlılığı[21],\"Mzs.\")+COUNTIF(HaziranDevamlılığı[21],\"Mzl.\")","v":0},{"$f":"COUNTIF(HaziranDevamlılığı[22],\"Mzs.\")+COUNTIF(HaziranDevamlılığı[22],\"Mzl.\")","v":0},{"$f":"COUNTIF(HaziranDevamlılığı[23],\"Mzs.\")+COUNTIF(HaziranDevamlılığı[23],\"Mzl.\")","v":0},{"$f":"COUNTIF(HaziranDevamlılığı[24],\"Mzs.\")+COUNTIF(HaziranDevamlılığı[24],\"Mzl.\")","v":0},{"$f":"COUNTIF(HaziranDevamlılığı[25],\"Mzs.\")+COUNTIF(HaziranDevamlılığı[25],\"Mzl.\")","v":0},{"$f":"COUNTIF(HaziranDevamlılığı[26],\"Mzs.\")+COUNTIF(HaziranDevamlılığı[26],\"Mzl.\")","v":0},{"$f":"COUNTIF(HaziranDevamlılığı[27],\"Mzs.\")+COUNTIF(HaziranDevamlılığı[27],\"Mzl.\")","v":0},{"$f":"COUNTIF(HaziranDevamlılığı[28],\"Mzs.\")+COUNTIF(HaziranDevamlılığı[28],\"Mzl.\")","v":0},{"$f":"COUNTIF(HaziranDevamlılığı[29],\"Mzs.\")+COUNTIF(HaziranDevamlılığı[29],\"Mzl.\")","v":0},null,null,{"$f":"SUBTOTAL(109,HaziranDevamlılığı[G])","v":0},{"$f":"SUBTOTAL(109,HaziranDevamlılığı[Mzl.])","v":0},{"$f":"SUBTOTAL(109,HaziranDevamlılığı[Mzs.])","v":0},{"$f":"SUBTOTAL(109,HaziranDevamlılığı[B])","v":0},{"$f":"SUBTOTAL(109,HaziranDevamlılığı[Gelmediği Günler])","v":0}]

{"sheet":"Temmuz ","index":13,"n_rows":12,"n_cols":39,"rows_kept":12,"merged":[[4,34,4,38]]}
["ÖĞRENCİ KATILIM KAYDI",{"$nulls":36},"Okul Yılı Başlangıcı:",{"$f":"TakvimYılı","v":2012}]
[]
[null,null,{"$f":"RenkAnahtarıMetni","v":"RENK TUŞU "},{"$f":"KOD1","v":"G"},{"$f":"Kod1Metin","v":"Geç"},null,null,{"$f":"KOD2","v":"Mzl."},{"$f":"Kod2Metin","v":"Mazeretli"},null,null,{"$f":"KOD3","v":"Mzs."},{"$f":"Kod3Metin","v":"Mazeretsiz"},null,null,{"$f":"KOD4","v":"B"},{"$f":"Kod4Metin","v":"Burada"},null,null,{"$f":"KOD5","v":"OY"},{"$f":"Kod5Metin","v":"Okul Yok"}]
[]
[null,{"$f":"DATE(TakvimYılı+1,7,1)","v":"2013-07-01"},null,{"$f":"TEXT(WEEKDAY(DATE(TakvimYılı+1,7,1),1),\"ggg\")","v":"Pzt"},{"$f":"TEXT(WEEKDAY(DATE(TakvimYılı+1,7,2),1),\"ggg\")","v":"Sal"},{"$f":"TEXT(WEEKDAY(DATE(TakvimYılı+1,7,3),1),\"ggg\")","v":"Çar"},{"$f":"TEXT(WEEKDAY(DATE(TakvimYılı+1,7,4),1),\"ggg\")","v":"Per"},{"$f":"TEXT(WEEKDAY(DATE(TakvimYılı+1,7,5),1),\"ggg\")","v":"Cum"},{"$f":"TEXT(WEEKDAY(DATE(TakvimYılı+1,7,6),1),\"ggg\")","v":"Cmt"},{"$f":"TEXT(WEEKDAY(DATE(TakvimYılı+1,7,7),1),\"ggg\")","v":"Paz"},{"$f":"TEXT(WEEKDAY(DATE(TakvimYılı+1,7,8),1),\"ggg\")","v":"Pzt"},{"$f":"TEXT(WEEKDAY(DATE(TakvimYılı+1,7,9),1),\"ggg\")","v":"Sal"},{"$f":"TEXT(WEEKDAY(DATE(TakvimYılı+1,7,10),1),\"ggg\")","v":"Çar"},{"$f":"TEXT(WEEKDAY(DATE(TakvimYılı+1,7,11),1),\"ggg\")","v":"Per"},{"$f":"TEXT(WEEKDAY(DATE(TakvimYılı+1,7,12),1),\"ggg\")","v":"Cum"},{"$f":"TEXT(WEEKDAY(DATE(TakvimYılı+1,7,13),1),\"ggg\")","v":"Cmt"},{"$f":"TEXT(WEEKDAY(DATE(TakvimYılı+1,7,14),1),\"ggg\")","v":"Paz"},{"$f":"TEXT(WEEKDAY(DATE(TakvimYılı+1,7,15),1),\"ggg\")","v":"Pzt"},{"$f":"TEXT(WEEKDAY(DATE(TakvimYılı+1,7,16),1),\"ggg\")","v":"Sal"},{"$f":"TEXT(WEEKDAY(DATE(TakvimYılı+1,7,17),1),\"ggg\")","v":"Çar"},{"$f":"TEXT(WEEKDAY(DATE(TakvimYılı+1,7,18),1),\"ggg\")","v":"Per"},{"$f":"TEXT(WEEKDAY(DATE(TakvimYılı+1,7,19),1),\"ggg\")","v":"Cum"},{"$f":"TEXT(WEEKDAY(DATE(TakvimYılı+1,7,20),1),\"ggg\")","v":"Cmt"},{"$f":"TEXT(WEEKDAY(DATE(TakvimYılı+1,7,21),1),\"ggg\")","v":"Paz"},{"$f":"TEXT(WEEKDAY(DATE(TakvimYılı+1,7,22),1),\"ggg\")","v":"Pzt"},{"$f":"TEXT(WEEKDAY(DATE(TakvimYılı+1,7,23),1),\"ggg\")","v":"Sal"},{"$f":"TEXT(WEEKDAY(DATE(TakvimYılı+1,7,24),1),\"ggg\")","v":"Çar"},{"$f":"TEXT(WEEKDAY(DATE(TakvimYılı+1,7,25),1),\"ggg\")","v":"Per"},{"$f":"TEXT(WEEKDAY(DATE(TakvimYılı+1,7,26),1),\"ggg\")","v":"Cum"},{"$f":"TEXT(WEEKDAY(DATE(TakvimYılı+1,7,27),1),\"ggg\")","v":"Cmt"},{"$f":"TEXT(WEEKDAY(DATE(TakvimYılı+1,7,28),1),\"ggg\")","v":"Paz"},{"$f":"TEXT(WEEKDAY(DATE(TakvimYılı+1,7,29),1),\"ggg\")","v":"Pzt"},{"$f":"TEXT(WEEKDAY(DATE(TakvimYılı+1,7,30),1),\"ggg\")","v":"Sal"},{"$f":"TEXT(WEEKDAY(DATE(TakvimYılı+1,7,31),1),\"ggg\")","v":"Çar"},"Toplam"]
[null,"Öğrenci No","Öğrenci Adı","1","2","3","4","5","6","7","8","9","10","11","12","13","14","15","16","17","18","19","20","21","22","23","24","25","26","27","28","29","30","31","G","Mzl.","Mzs.","B","Gelmediği Günler"]
[null,null,{"$f":"IFERROR(VLOOKUP(TemmuzDevamlılığı[[#This Row],[Öğrenci No]],ÖğrenciListesi[],18,FALSE),\"\")","v":""},{"$nulls":31},{"$f":"COUNTIF(TemmuzDevamlılığı[[#This Row],[1]:[31]],KOD1)","v":0},{"$f":"COUNTIF(TemmuzDevamlılığı[[#This Row],[1]:[31]],KOD2)","v":0},{"$f":"COUNTIF(TemmuzDevamlılığı[[#This Row],[1]:[31]],KOD3)","v":0},{"$f":"COUNTIF(TemmuzDevamlılığı[[#This Row],[1]:[31]],KOD4)","v":0},{"$f":"SUM(TemmuzDevamlılığı[[#This Row],[Mzl.]:[Mzs.]])","v":0}]
[null,null,{"$f":"IFERROR(VLOOKUP(TemmuzDevamlılığı[[#This Row],[Öğrenci No]],ÖğrenciListesi[],18,FALSE),\"\")","v":""},{"$nulls":31},{"$f":"COUNTIF(TemmuzDevamlılığı[[#This Row],[1]:[31]],KOD1)","v":0},{"$f":"COUNTIF(TemmuzDevamlılığı[[#This Row],[1]:[31]],KOD2)","v":0},{"$f":"COUNTIF(TemmuzDevamlılığı[[#This Row],[1]:[31]],KOD3)","v":0},{"$f":"COUNTIF(TemmuzDevamlılığı[[#This Row],[1]:[31]],KOD4)","v":0},{"$f":"SUM(TemmuzDevamlılığı[[#This Row],[Mzl.]:[Mzs.]])","v":0}]
[null,null,{"$f":"IFERROR(VLOOKUP(TemmuzDevamlılığı[[#This Row],[Öğrenci No]],ÖğrenciListesi[],18,FALSE),\"\")","v":""},{"$nulls":31},{"$f":"COUNTIF(TemmuzDevamlılığı[[#This Row],[1]:[31]],KOD1)","v":0},{"$f":"COUNTIF(TemmuzDevamlılığı[[#This Row],[1]:[31]],KOD2)","v":0},{"$f":"COUNTIF(TemmuzDevamlılığı[[#This Row],[1]:[31]],KOD3)","v":0},{"$f":"COUNTIF(TemmuzDevamlılığı[[#This Row],[1]:[31]],KOD4)","v":0},{"$f":"SUM(TemmuzDevamlılığı[[#This Row],[Mzl.]:[Mzs.]])","v":0}]
[null,null,{"$f":"IFERROR(VLOOKUP(TemmuzDevamlılığı[[#This Row],[Öğrenci No]],ÖğrenciListesi[],18,FALSE),\"\")","v":""},{"$nulls":31},{"$f":"COUNTIF(TemmuzDevamlılığı[[#This Row],[1]:[31]],KOD1)","v":0},{"$f":"COUNTIF(TemmuzDevamlılığı[[#This Row],[1]:[31]],KOD2)","v":0},{"$f":"COUNTIF(TemmuzDevamlılığı[[#This Row],[1]:[31]],KOD3)","v":0},{"$f":"COUNTIF(TemmuzDevamlılığı[[#This Row],[1]:[31]],KOD4)","v":0},{"$f":"SUM(TemmuzDevamlılığı[[#This Row],[Mzl.]:[Mzs.]])","v":0}]
[null,null,{"$f":"IFERROR(VLOOKUP(TemmuzDevamlılığı[[#This Row],[Öğrenci No]],ÖğrenciListesi[],18,FALSE),\"\")","v":""},{"$nulls":31},{"$f":"COUNTIF(TemmuzDevamlılığı[[#This Row],[1]:[31]],KOD1)","v":0},{"$f":"COUNTIF(TemmuzDevamlılığı[[#This Row],[1]:[31]],KOD2)","v":0},{"$f":"COUNTIF(TemmuzDevamlılığı[[#This Row],[1]:[31]],KOD3)","v":0},{"$f":"COUNTIF(TemmuzDevamlılığı[[#This Row],[1]:[31]],KOD4)","v":0},{"$f":"SUM(TemmuzDevamlılığı[[#This Row],[Mzl.]:[Mzs.]])","v":0}]
[null,null,"Toplam gelmediği gün",{"$f":"COUNTIF(TemmuzDevamlılığı[1],\"Mzs.\")+COUNTIF(TemmuzDevamlılığı[1],\"Mzl.\")","v":0},{"$f":"COUNTIF(TemmuzDevamlılığı[2],\"Mzs.\")+COUNTIF(TemmuzDevamlılığı[2],\"Mzl.\")","v":0},{"$f":"COUNTIF(TemmuzDevamlılığı[3],\"Mzs.\")+COUNTIF(TemmuzDevamlılığı[3],\"Mzl.\")","v":0},{"$f":"COUNTIF(TemmuzDevamlılığı[4],\"Mzs.\")+COUNTIF(TemmuzDevamlılığı[4],\"Mzl.\")","v":0},{"$f":"COUNTIF(TemmuzDevamlılığı[5],\"Mzs.\")+COUNTIF(TemmuzDevamlılığı[5],\"Mzl.\")","v":0},{"$f":"COUNTIF(TemmuzDevamlılığı[6],\"Mzs.\")+COUNTIF(TemmuzDevamlılığı[6],\"Mzl.\")","v":0},{"$f":"COUNTIF(TemmuzDevamlılığı[7],\"Mzs.\")+COUNTIF(TemmuzDevamlılığı[7],\"Mzl.\")","v":0},{"$f":"COUNTIF(TemmuzDevamlılığı[8],\"Mzs.\")+COUNTIF(TemmuzDevamlılığı[8],\"Mzl.\")","v":0},{"$f":"COUNTIF(TemmuzDevamlılığı[9],\"Mzs.\")+COUNTIF(TemmuzDevamlılığı[9],\"Mzl.\")","v":0},{"$f":"COUNTIF(TemmuzDevamlılığı[10],\"Mzs.\")+COUNTIF(TemmuzDevamlılığı[10],\"Mzl.\")","v":0},{"$f":"COUNTIF(TemmuzDevamlılığı[11],\"Mzs.\")+COUNTIF(TemmuzDevamlılığı[11],\"Mzl.\")","v":0},{"$f":"COUNTIF(TemmuzDevamlılığı[12],\"Mzs.\")+COUNTIF(TemmuzDevamlılığı[12],\"Mzl.\")","v":0},{"$f":"COUNTIF(TemmuzDevamlılığı[13],\"Mzs.\")+COUNTIF(TemmuzDevamlılığı[13],\"Mzl.\")","v":0},{"$f":"COUNTIF(TemmuzDevamlılığı[14],\"Mzs.\")+COUNTIF(TemmuzDevamlılığı[14],\"Mzl.\")","v":0},{"$f":"COUNTIF(TemmuzDevamlılığı[15],\"Mzs.\")+COUNTIF(TemmuzDevamlılığı[15],\"Mzl.\")","v":0},{"$f":"COUNTIF(TemmuzDevamlılığı[16],\"Mzs.\")+COUNTIF(TemmuzDevamlılığı[16],\"Mzl.\")","v":0},{"$f":"COUNTIF(TemmuzDevamlılığı[17],\"Mzs.\")+COUNTIF(TemmuzDevamlılığı[17],\"Mzl.\")","v":0},{"$f":"COUNTIF(TemmuzDevamlılığı[18],\"Mzs.\")+COUNTIF(TemmuzDevamlılığı[18],\"Mzl.\")","v":0},{"$f":"COUNTIF(TemmuzDevamlılığı[19],\"Mzs.\")+COUNTIF(TemmuzDevamlılığı[19],\"Mzl.\")","v":0},{"$f":"COUNTIF(TemmuzDevamlılığı[20],\"Mzs.\")+COUNTIF(TemmuzDevamlılığı[20],\"Mzl.\")","v":0},{"$f":"COUNTIF(TemmuzDevamlılığı[21],\"Mzs.\")+COUNTIF(TemmuzDevamlılığı[21],\"Mzl.\")","v":0},{"$f":"COUNTIF(TemmuzDevamlılığı[22],\"Mzs.\")+COUNTIF(TemmuzDevamlılığı[22],\"Mzl.\")","v":0},{"$f":"COUNTIF(TemmuzDevamlılığı[23],\"Mzs.\")+COUNTIF(TemmuzDevamlılığı[23],\"Mzl.\")","v":0},{"$f":"COUNTIF(TemmuzDevamlılığı[24],\"Mzs.\")+COUNTIF(TemmuzDevamlılığı[24],\"Mzl.\")","v":0},{"$f":"COUNTIF(TemmuzDevamlılığı[25],\"Mzs.\")+COUNTIF(TemmuzDevamlılığı[25],\"Mzl.\")","v":0},{"$f":"COUNTIF(TemmuzDevamlılığı[26],\"Mzs.\")+COUNTIF(TemmuzDevamlılığı[26],\"Mzl.\")","v":0},{"$f":"COUNTIF(TemmuzDevamlılığı[27],\"Mzs.\")+COUNTIF(TemmuzDevamlılığı[27],\"Mzl.\")","v":0},{"$f":"COUNTIF(TemmuzDevamlılığı[28],\"Mzs.\")+COUNTIF(TemmuzDevamlılığı[28],\"Mzl.\")","v":0},{"$f":"COUNTIF(TemmuzDevamlılığı[29],\"Mzs.\")+COUNTIF(TemmuzDevamlılığı[29],\"Mzl.\")","v":0},null,null,{"$f":"SUBTOTAL(109,TemmuzDevamlılığı[G])","v":0},{"$f":"SUBTOTAL(109,TemmuzDevamlılığı[Mzl.])","v":0},{"$f":"SUBTOTAL(109,TemmuzDevamlılığı[Mzs.])","v":0},{"$f":"SUBTOTAL(109,TemmuzDevamlılığı[B])","v":0},{"$f":"SUBTOTAL(109,TemmuzDevamlılığı[Gelmediği Günler])","v":0}]

{"sheet":"Öğrenci Katılım Raporu","index":14,"n_rows":40,"n_cols":37,"rows_kept":40,"merged":[[2,3,2,14],[2,15,2,17],[2,18,2,21],[2,22,2,29],[2,30,2,31],[2,32,2,35],[3,1,3,2],[3,3,3,14],[3,15,3,17],[3,18,3,21],[3,22,3,29],[3,30,3,31],[3,32,3,35],[4,1,4,9],[4,10,4,21],[4,22,4,29],[4,30,4,36],[5,1,5,9],[5,10,5,21],[5,22,5,29],[5,30,5,36],[6,1,6,9],[6,10,6,21],[6,22,6,29],[6,30,6,36],[7,1,7,9],[7,10,7,21],[7,22,7,29],[7,30,7,36],[8,1,8,9],[8,10,8,21],[8,22,8,29],[8,30,8,36],[9,1,9,9],[9,10,9,21],[9,22,9,29],[9,30,9,36],[13,1,14,32],[13,33,13,36],[15,1,16,1],[15,33,16,33],[15,34,16,34],[15,35,16,35],[15,36,16,36],[17,1,18,1],[17,33,18,33],[17,34,18,34],[17,35,18,35],[17,36,18,36],[19,1,20,1],[19,33,20,33],[19,34,20,34],[19,35,20,35],[19,36,20,36],[21,1,22,1],[21,33,22,33],[21,34,22,34],[21,35,22,35],[21,36,22,36],[23,1,24,1],[23,33,24,33],[23,34,24,34],[23,35,24,35],[23,36,24,36],[25,1,26,1],[25,33,26,33],[25,34,26,34],[25,35,26,35],[25,36,26,36],[27,1,28,1],[27,33,28,33],[27,34,28,34],[27,35,28,35],[27,36,28,36],[29,1,30,1],[29,33,30,33],[29,34,30,34],[29,35,30,35],[29,36,30,36],[31,1,32,1],[31,33,32,33],[31,34,32,34],[31,35,32,35],[31,36,32,36],[33,1,34,1],[33,33,34,33],[33,34,34,34],[33,35,34,35],[33,36,34,36],[35,1,36,1],[35,33,36,33],[35,34,36,34],[35,35,36,35],[35,36,36,36],[37,1,38,1],[37,33,38,33],[37,34,38,34],[37,35,38,35],[37,36,38,36],[39,30,39,32]]}
[{"$f":"\"Derse Katılım Kayıtları: \"","v":"Derse Katılım Kayıtları: "},{"$nulls":7},{"$f":"D4","v":"Ali Yılmaz"}]
[]
[null,"Öğrenci No",null,"Öğrenci Adı",{"$nulls":11},"Cinsiyet",null,null,"Doğum Tarihi",{"$nulls":3},"Okul",{"$nulls":7},"Not",null,"Öğretmen",{"$nulls":3},"Sınıf"]
[null,"Ö001",null,{"$f":"IFERROR(VLOOKUP(ÖğrenciArama,ÖğrenciListesi[],18,FALSE),\"\")","v":"Ali Yılmaz"},{"$nulls":11},{"$f":"IFERROR(VLOOKUP(ÖğrenciArama,ÖğrenciListesi[],4,FALSE),\"\")","v":"E"},null,null,{"$f":"IFERROR(VLOOKUP(ÖğrenciArama,ÖğrenciListesi[],5,FALSE),\"\")","v":"1997-03-28"},{"$nulls":3},"Güzel Sanatlar Okulu ",{"$nulls":7},7,null,"Levent Ateş",{"$nulls":3},123]
[null,"Ebeveyn ya da Veli 1'in Adı",{"$nulls":8},"Yakınlık Durumu",{"$nulls":11},"İş Telefonu",{"$nulls":7},"Ev Telefonu"]
[null,{"$f":"IFERROR(VLOOKUP(ÖğrenciArama,ÖğrenciListesi[],6,FALSE),\"\")","v":"Melek"},{"$nulls":8},{"$f":"IFERROR(VLOOKUP(ÖğrenciArama,ÖğrenciListesi[],7,FALSE),\"\")","v":"Yılmaz"},{"$nulls":11},{"$f":"IFERROR(VLOOKUP(ÖğrenciArama,ÖğrenciListesi[],8,FALSE),\"\")","v":1235550134},{"$nulls":7},{"$f":"IFERROR(VLOOKUP(ÖğrenciArama,ÖğrenciListesi[],9,FALSE),\"\")","v":2345550134}]
[null,"Ebeveyn ya da Veli 2'nin Adı",{"$nulls":8},"Yakınlık Durumu",{"$nulls":11},"İş Telefonu",{"$nulls":7},"Ev Telefonu"]
[null,{"$f":"IFERROR(VLOOKUP(ÖğrenciArama,ÖğrenciListesi[],10,FALSE),\"\")","v":"Mehmet Yılmaz"},{"$nulls":8},{"$f":"IFERROR(VLOOKUP(ÖğrenciArama,ÖğrenciListesi[],11,FALSE),\"\")","v":"Babası"},{"$nulls":11},{"$f":"IFERROR(VLOOKUP(ÖğrenciArama,ÖğrenciListesi[],12,FALSE),\"\")","v":1235550134},{"$nulls":7},{"$f":"IFERROR(VLOOKUP(ÖğrenciArama,ÖğrenciListesi[],13,FALSE),\"\")","v":2345550134}]
[null,"Acil Durumda Aranacak Kişi",{"$nulls":8},"Yakınlık Durumu",{"$nulls":11},"İş Telefonu",{"$nulls":7},"Ev Telefonu"]
[null,{"$f":"IFERROR(VLOOKUP(ÖğrenciArama,ÖğrenciListesi[],14,FALSE),\"\")","v":"Rıfat Koç"},{"$nulls":8},{"$f":"IFERROR(VLOOKUP(ÖğrenciArama,ÖğrenciListesi[],15,FALSE),\"\")","v":"Dedesi"},{"$nulls":11},{"$f":"IFERROR(VLOOKUP(ÖğrenciArama,ÖğrenciListesi[],16,FALSE),\"\")","v":7895550189},{"$nulls":7},{"$f":"IFERROR(VLOOKUP(ÖğrenciArama,ÖğrenciListesi[],17,FALSE),\"\")","v":7895550134}]
[]
[null,{"$f":"Ağustos!C3","v":"RENK TUŞU "},{"$f":"Ağustos!D3","v":"G"},{"$f":"Ağustos!E3","v":"Geç"},null,null,{"$f":"Ağustos!H3","v":"Mzl."},{"$f":"Ağustos!I3","v":"Mazeretli"},null,null,{"$f":"Ağustos!L3","v":"Mzs."},{"$f":"Ağustos!M3","v":"Mazeretsiz"},{"$nulls":3},{"$f":"Ağustos!P3","v":"B"},{"$f":"Ağustos!Q3","v":"Burada"},null,null,{"$f":"Ağustos!T3","v":"OY"},{"$f":"Ağustos!U3","v":"Okul Yok"}]
[]
[null,"Katılım",{"$nulls":31},"Toplam Katılım"]
[{"$nulls":33},"G","Mzl.","Mzs.","B"]
[null,"Ağustos",1,2,3,4,5,6,7,8,9,10,11,12,13,14,15,16,17,18,19,20,21,22,23,24,25,26,27,28,29,30,31,{"$f":"COUNTIF($D17:$AH17,KOD1)","v":0},{"$f":"COUNTIF($D17:$AH17,KOD2)","v":0},{"$f":"COUNTIF($D17:$AH17,KOD3)","v":0},{"$f":"COUNTIF($D17:$AH17,KOD4)","v":0}]
[null,null,{"$f":"IFERROR(VLOOKUP(ÖğrenciArama,AğustosDevamlılığı[],3,FALSE),\"\")","v":"B"},{"$f":"IFERROR(VLOOKUP(ÖğrenciArama,AğustosDevamlılığı[],4,FALSE),\"\")","v":"B"},{"$f":"IFERROR(VLOOKUP(ÖğrenciArama,AğustosDevamlılığı[],5,FALSE),\"\")","v":"G"},{"$f":"IFERROR(VLOOKUP(ÖğrenciArama,AğustosDevamlılığı[],6,FALSE),\"\")","v":"G"},{"$f":"IFERROR(VLOOKUP(ÖğrenciArama,AğustosDevamlılığı[],7,FALSE),\"\")","v":"B"},{"$f":"IFERROR(VLOOKUP(ÖğrenciArama,AğustosDevamlılığı[],8,FALSE),\"\")","v":"OY"},{"$f":"IFERROR(VLOOKUP(ÖğrenciArama,AğustosDevamlılığı[],9,FALSE),\"\")","v":"OY"},{"$f":"IFERROR(VLOOKUP(ÖğrenciArama,AğustosDevamlılığı[],10,FALSE),\"\")","v":"B"},{"$f":"IFERROR(VLOOKUP(ÖğrenciArama,AğustosDevamlılığı[],11,FALSE),\"\")","v":"B"},{"$f":"IFERROR(VLOOKUP(ÖğrenciArama,AğustosDevamlılığı[],12,FALSE),\"\")","v":"Mzl."},{"$f":"IFERROR(VLOOKUP(ÖğrenciArama,AğustosDevamlılığı[],13,FALSE),\"\")","v":"B"},{"$f":"IFERROR(VLOOKUP(ÖğrenciArama,AğustosDevamlılığı[],14,FALSE),\"\")","v":"B"},{"$f":"IFERROR(VLOOKUP(ÖğrenciArama,AğustosDevamlılığı[],15,FALSE),\"\")","v":"OY"},{"$f":"IFERROR(VLOOKUP(ÖğrenciArama,AğustosDevamlılığı[],16,FALSE),\"\")","v":"OY"},{"$f":"IFERROR(VLOOKUP(ÖğrenciArama,AğustosDevamlılığı[],17,FALSE),\"\")","v":"B"},{"$f":"IFERROR(VLOOKUP(ÖğrenciArama,AğustosDevamlılığı[],18,FALSE),\"\")","v":"B"},{"$f":"IFERROR(VLOOKUP(ÖğrenciArama,AğustosDevamlılığı[],19,FALSE),\"\")","v":"B"},{"$f":"IFERROR(VLOOKUP(ÖğrenciArama,AğustosDevamlılığı[],20,FALSE),\"\")","v":"B"},{"$f":"IFERROR(VLOOKUP(ÖğrenciArama,AğustosDevamlılığı[],21,FALSE),\"\")","v":"B"},{"$f":"IFERROR(VLOOKUP(ÖğrenciArama,AğustosDevamlılığı[],22,FALSE),\"\")","v":"OY"},{"$f":"IFERROR(VLOOKUP(ÖğrenciArama,AğustosDevamlılığı[],23,FALSE),\"\")","v":"OY"},{"$f":"IFERROR(VLOOKUP(ÖğrenciArama,AğustosDevamlılığı[],24,FALSE),\"\")","v":"B"},{"$f":"IFERROR(VLOOKUP(ÖğrenciArama,AğustosDevamlılığı[],25,FALSE),\"\")","v":"B"},{"$f":"IFERROR(VLOOKUP(ÖğrenciArama,AğustosDevamlılığı[],26,FALSE),\"\")","v":"B"},{"$f":"IFERROR(VLOOKUP(ÖğrenciArama,AğustosDevamlılığı[],27,FALSE),\"\")","v":"B"},{"$f":"IFERROR(VLOOKUP(ÖğrenciArama,AğustosDevamlılığı[],28,FALSE),\"\")","v":"B"},{"$f":"IFERROR(VLOOKUP(ÖğrenciArama,AğustosDevamlılığı[],29,FALSE),\"\")","v":"OY"},{"$f":"IFERROR(VLOOKUP(ÖğrenciArama,AğustosDevamlılığı[],30,FALSE),\"\")","v":"OY"},{"$f":"IFERROR(VLOOKUP(ÖğrenciArama,AğustosDevamlılığı[],31,FALSE),\"\")","v":"B"},{"$f":"IFERROR(VLOOKUP(ÖğrenciArama,AğustosDevamlılığı[],32,FALSE),\"\")","v":"B"},{"$f":"IFERROR(VLOOKUP(ÖğrenciArama,AğustosDevamlılığı[],33,FALSE),\"\")","v":"B"}]
[null,"Eylül",1,2,3,4,5,6,7,8,9,10,11,12,13,14,15,16,17,18,19,20,21,22,23,24,25,26,27,28,29,30,null,{"$f":"COUNTIF($D19:$AH19,KOD1)","v":0},{"$f":"COUNTIF($D19:$AH19,KOD2)","v":0},{"$f":"COUNTIF($D19:$AH19,KOD3)","v":0},{"$f":"COUNTIF($D19:$AH19,KOD4)","v":0}]
[null,null,{"$f":"IFERROR(VLOOKUP(ÖğrenciArama,EylülDevamlılığı[],3,FALSE),\"\")","v":""},{"$f":"IFERROR(VLOOKUP(ÖğrenciArama,EylülDevamlılığı[],4,FALSE),\"\")","v":""},{"$f":"IFERROR(VLOOKUP(ÖğrenciArama,EylülDevamlılığı[],5,FALSE),\"\")","v":""},{"$f":"IFERROR(VLOOKUP(ÖğrenciArama,EylülDevamlılığı[],6,FALSE),\"\")","v":""},{"$f":"IFERROR(VLOOKUP(ÖğrenciArama,EylülDevamlılığı[],7,FALSE),\"\")","v":""},{"$f":"IFERROR(VLOOKUP(ÖğrenciArama,EylülDevamlılığı[],8,FALSE),\"\")","v":""},{"$f":"IFERROR(VLOOKUP(ÖğrenciArama,EylülDevamlılığı[],9,FALSE),\"\")","v":""},{"$f":"IFERROR(VLOOKUP(ÖğrenciArama,EylülDevamlılığı[],10,FALSE),\"\")","v":""},{"$f":"IFERROR(VLOOKUP(ÖğrenciArama,EylülDevamlılığı[],11,FALSE),\"\")","v":""},{"$f":"IFERROR(VLOOKUP(ÖğrenciArama,EylülDevamlılığı[],12,FALSE),\"\")","v":""},{"$f":"IFERROR(VLOOKUP(ÖğrenciArama,EylülDevamlılığı[],13,FALSE),\"\")","v":""},{"$f":"IFERROR(VLOOKUP(ÖğrenciArama,EylülDevamlılığı[],14,FALSE),\"\")","v":""},{"$f":"IFERROR(VLOOKUP(ÖğrenciArama,EylülDevamlılığı[],15,FALSE),\"\")","v":""},{"$f":"IFERROR(VLOOKUP(ÖğrenciArama,EylülDevamlılığı[],16,FALSE),\"\")","v":""},{"$f":"IFERROR(VLOOKUP(ÖğrenciArama,EylülDevamlılığı[],17,FALSE),\"\")","v":""},{"$f":"IFERROR(VLOOKUP(ÖğrenciArama,EylülDevamlılığı[],18,FALSE),\"\")","v":""},{"$f":"IFERROR(VLOOKUP(ÖğrenciArama,EylülDevamlılığı[],19,FALSE),\"\")","v":""},{"$f":"IFERROR(VLOOKUP(ÖğrenciArama,EylülDevamlılığı[],20,FALSE),\"\")","v":""},{"$f":"IFERROR(VLOOKUP(ÖğrenciArama,EylülDevamlılığı[],21,FALSE),\"\")","v":""},{"$f":"IFERROR(VLOOKUP(ÖğrenciArama,EylülDevamlılığı[],22,FALSE),\"\")","v":""},{"$f":"IFERROR(VLOOKUP(ÖğrenciArama,EylülDevamlılığı[],23,FALSE),\"\")","v":""},{"$f":"IFERROR(VLOOKUP(ÖğrenciArama,EylülDevamlılığı[],24,FALSE),\"\")","v":""},{"$f":"IFERROR(VLOOKUP(ÖğrenciArama,EylülDevamlılığı[],25,FALSE),\"\")","v":""},{"$f":"IFERROR(VLOOKUP(ÖğrenciArama,EylülDevamlılığı[],26,FALSE),\"\")","v":""},{"$f":"IFERROR(VLOOKUP(ÖğrenciArama,EylülDevamlılığı[],27,FALSE),\"\")","v":""},{"$f":"IFERROR(VLOOKUP(ÖğrenciArama,EylülDevamlılığı[],28,FALSE),\"\")","v":""},{"$f":"IFERROR(VLOOKUP(ÖğrenciArama,EylülDevamlılığı[],29,FALSE),\"\")","v":""},{"$f":"IFERROR(VLOOKUP(ÖğrenciArama,EylülDevamlılığı[],30,FALSE),\"\")","v":""},{"$f":"IFERROR(VLOOKUP(ÖğrenciArama,EylülDevamlılığı[],31,FALSE),\"\")","v":""},{"$f":"IFERROR(VLOOKUP(ÖğrenciArama,EylülDevamlılığı[],32,FALSE),\"\")","v":""}]
[null,"Ekim",1,2,3,4,5,6,7,8,9,10,11,12,13,14,15,16,17,18,19,20,21,22,23,24,25,26,27,28,29,30,31,{"$f":"COUNTIF($D21:$AH21,KOD1)","v":0},{"$f":"COUNTIF($D21:$AH21,KOD2)","v":0},{"$f":"COUNTIF($D21:$AH21,KOD3)","v":0},{"$f":"COUNTIF($D21:$AH21,KOD4)","v":0}]
[null,null,{"$f":"IFERROR(VLOOKUP(ÖğrenciArama,EkimDevamlılığı[],3,FALSE),\"\")","v":""},{"$f":"IFERROR(VLOOKUP(ÖğrenciArama,EkimDevamlılığı[],4,FALSE),\"\")","v":""},{"$f":"IFERROR(VLOOKUP(ÖğrenciArama,EkimDevamlılığı[],5,FALSE),\"\")","v":""},{"$f":"IFERROR(VLOOKUP(ÖğrenciArama,EkimDevamlılığı[],6,FALSE),\"\")","v":""},{"$f":"IFERROR(VLOOKUP(ÖğrenciArama,EkimDevamlılığı[],7,FALSE),\"\")","v":""},{"$f":"IFERROR(VLOOKUP(ÖğrenciArama,EkimDevamlılığı[],8,FALSE),\"\")","v":""},{"$f":"IFERROR(VLOOKUP(ÖğrenciArama,EkimDevamlılığı[],9,FALSE),\"\")","v":""},{"$f":"IFERROR(VLOOKUP(ÖğrenciArama,EkimDevamlılığı[],10,FALSE),\"\")","v":""},{"$f":"IFERROR(VLOOKUP(ÖğrenciArama,EkimDevamlılığı[],11,FALSE),\"\")","v":""},{"$f":"IFERROR(VLOOKUP(ÖğrenciArama,EkimDevamlılığı[],12,FALSE),\"\")","v":""},{"$f":"IFERROR(VLOOKUP(ÖğrenciArama,EkimDevamlılığı[],13,FALSE),\"\")","v":""},{"$f":"IFERROR(VLOOKUP(ÖğrenciArama,EkimDevamlılığı[],14,FALSE),\"\")","v":""},{"$f":"IFERROR(VLOOKUP(ÖğrenciArama,EkimDevamlılığı[],15,FALSE),\"\")","v":""},{"$f":"IFERROR(VLOOKUP(ÖğrenciArama,EkimDevamlılığı[],16,FALSE),\"\")","v":""},{"$f":"IFERROR(VLOOKUP(ÖğrenciArama,EkimDevamlılığı[],17,FALSE),\"\")","v":""},{"$f":"IFERROR(VLOOKUP(ÖğrenciArama,EkimDevamlılığı[],18,FALSE),\"\")","v":""},{"$f":"IFERROR(VLOOKUP(ÖğrenciArama,EkimDevamlılığı[],19,FALSE),\"\")","v":""},{"$f":"IFERROR(VLOOKUP(ÖğrenciArama,EkimDevamlılığı[],20,FALSE),\"\")","v":""},{"$f":"IFERROR(VLOOKUP(ÖğrenciArama,EkimDevamlılığı[],21,FALSE),\"\")","v":""},{"$f":"IFERROR(VLOOKUP(ÖğrenciArama,EkimDevamlılığı[],22,FALSE),\"\")","v":""},{"$f":"IFERROR(VLOOKUP(ÖğrenciArama,EkimDevamlılığı[],23,FALSE),\"\")","v":""},{"$f":"IFERROR(VLOOKUP(ÖğrenciArama,EkimDevamlılığı[],24,FALSE),\"\")","v":""},{"$f":"IFERROR(VLOOKUP(ÖğrenciArama,EkimDevamlılığı[],25,FALSE),\"\")","v":""},{"$f":"IFERROR(VLOOKUP(ÖğrenciArama,EkimDevamlılığı[],26,FALSE),\"\")","v":""},{"$f":"IFERROR(VLOOKUP(ÖğrenciArama,EkimDevamlılığı[],27,FALSE),\"\")","v":""},{"$f":"IFERROR(VLOOKUP(ÖğrenciArama,EkimDevamlılığı[],28,FALSE),\"\")","v":""},{"$f":"IFERROR(VLOOKUP(ÖğrenciArama,EkimDevamlılığı[],29,FALSE),\"\")","v":""},{"$f":"IFERROR(VLOOKUP(ÖğrenciArama,EkimDevamlılığı[],30,FALSE),\"\")","v":""},{"$f":"IFERROR(VLOOKUP(ÖğrenciArama,EkimDevamlılığı[],31,FALSE),\"\")","v":""},{"$f":"IFERROR(VLOOKUP(ÖğrenciArama,EkimDevamlılığı[],32,FALSE),\"\")","v":""},{"$f":"IFERROR(VLOOKUP(ÖğrenciArama,EkimDevamlılığı[],33,FALSE),\"\")","v":""}]
[null,"Kasım",1,2,3,4,5,6,7,8,9,10,11,12,13,14,15,16,17,18,19,20,21,22,23,24,25,26,27,28,29,30,null,{"$f":"COUNTIF($D23:$AH23,KOD1)","v":0},{"$f":"COUNTIF($D23:$AH23,KOD2)","v":0},{"$f":"COUNTIF($D23:$AH23,KOD3)","v":0},{"$f":"COUNTIF($D23:$AH23,KOD4)","v":0}]
[null,null,{"$f":"IFERROR(VLOOKUP(ÖğrenciArama,KasımDevamlılığı[],3,FALSE),\"\")","v":""},{"$f":"IFERROR(VLOOKUP(ÖğrenciArama,KasımDevamlılığı[],4,FALSE),\"\")","v":""},{"$f":"IFERROR(VLOOKUP(ÖğrenciArama,KasımDevamlılığı[],5,FALSE),\"\")","v":""},{"$f":"IFERROR(VLOOKUP(ÖğrenciArama,KasımDevamlılığı[],6,FALSE),\"\")","v":""},{"$f":"IFERROR(VLOOKUP(ÖğrenciArama,KasımDevamlılığı[],7,FALSE),\"\")","v":""},{"$f":"IFERROR(VLOOKUP(ÖğrenciArama,KasımDevamlılığı[],8,FALSE),\"\")","v":""},{"$f":"IFERROR(VLOOKUP(ÖğrenciArama,KasımDevamlılığı[],9,FALSE),\"\")","v":""},{"$f":"IFERROR(VLOOKUP(ÖğrenciArama,KasımDevamlılığı[],10,FALSE),\"\")","v":""},{"$f":"IFERROR(VLOOKUP(ÖğrenciArama,KasımDevamlılığı[],11,FALSE),\"\")","v":""},{"$f":"IFERROR(VLOOKUP(ÖğrenciArama,KasımDevamlılığı[],12,FALSE),\"\")","v":""},{"$f":"IFERROR(VLOOKUP(ÖğrenciArama,KasımDevamlılığı[],13,FALSE),\"\")","v":""},{"$f":"IFERROR(VLOOKUP(ÖğrenciArama,KasımDevamlılığı[],14,FALSE),\"\")","v":""},{"$f":"IFERROR(VLOOKUP(ÖğrenciArama,KasımDevamlılığı[],15,FALSE),\"\")","v":""},{"$f":"IFERROR(VLOOKUP(ÖğrenciArama,KasımDevamlılığı[],16,FALSE),\"\")","v":""},{"$f":"IFERROR(VLOOKUP(ÖğrenciArama,KasımDevamlılığı[],17,FALSE),\"\")","v":""},{"$f":"IFERROR(VLOOKUP(ÖğrenciArama,KasımDevamlılığı[],18,FALSE),\"\")","v":""},{"$f":"IFERROR(VLOOKUP(ÖğrenciArama,KasımDevamlılığı[],19,FALSE),\"\")","v":""},{"$f":"IFERROR(VLOOKUP(ÖğrenciArama,KasımDevamlılığı[],20,FALSE),\"\")","v":""},{"$f":"IFERROR(VLOOKUP(ÖğrenciArama,KasımDevamlılığı[],21,FALSE),\"\")","v":""},{"$f":"IFERROR(VLOOKUP(ÖğrenciArama,KasımDevamlılığı[],22,FALSE),\"\")","v":""},{"$f":"IFERROR(VLOOKUP(ÖğrenciArama,KasımDevamlılığı[],23,FALSE),\"\")","v":""},{"$f":"IFERROR(VLOOKUP(ÖğrenciArama,KasımDevamlılığı[],24,FALSE),\"\")","v":""},{"$f":"IFERROR(VLOOKUP(ÖğrenciArama,KasımDevamlılığı[],25,FALSE),\"\")","v":""},{"$f":"IFERROR(VLOOKUP(ÖğrenciArama,KasımDevamlılığı[],26,FALSE),\"\")","v":""},{"$f":"IFERROR(VLOOKUP(ÖğrenciArama,KasımDevamlılığı[],27,FALSE),\"\")","v":""},{"$f":"IFERROR(VLOOKUP(ÖğrenciArama,KasımDevamlılığı[],28,FALSE),\"\")","v":""},{"$f":"IFERROR(VLOOKUP(ÖğrenciArama,KasımDevamlılığı[],29,FALSE),\"\")","v":""},{"$f":"IFERROR(VLOOKUP(ÖğrenciArama,KasımDevamlılığı[],30,FALSE),\"\")","v":""},{"$f":"IFERROR(VLOOKUP(ÖğrenciArama,KasımDevamlılığı[],31,FALSE),\"\")","v":""},{"$f":"IFERROR(VLOOKUP(ÖğrenciArama,KasımDevamlılığı[],32,FALSE),\"\")","v":""}]
[null,"Aralık",1,2,3,4,5,6,7,8,9,10,11,12,13,14,15,16,17,18,19,20,21,22,23,24,25,26,27,28,29,30,31,{"$f":"COUNTIF($D25:$AH25,KOD1)","v":0},{"$f":"COUNTIF($D25:$AH25,KOD2)","v":0},{"$f":"COUNTIF($D25:$AH25,KOD3)","v":0},{"$f":"COUNTIF($D25:$AH25,KOD4)","v":0}]
[null,null,{"$f":"IFERROR(VLOOKUP(ÖğrenciArama,AralıkDevamlılığı[],3,FALSE),\"\")","v":""},{"$f":"IFERROR(VLOOKUP(ÖğrenciArama,AralıkDevamlılığı[],4,FALSE),\"\")","v":""},{"$f":"IFERROR(VLOOKUP(ÖğrenciArama,AralıkDevamlılığı[],5,FALSE),\"\")","v":""},{"$f":"IFERROR(VLOOKUP(ÖğrenciArama,AralıkDevamlılığı[],6,FALSE),\"\")","v":""},{"$f":"IFERROR(VLOOKUP(ÖğrenciArama,AralıkDevamlılığı[],7,FALSE),\"\")","v":""},{"$f":"IFERROR(VLOOKUP(ÖğrenciArama,AralıkDevamlılığı[],8,FALSE),\"\")","v":""},{"$f":"IFERROR(VLOOKUP(ÖğrenciArama,AralıkDevamlılığı[],9,FALSE),\"\")","v":""},{"$f":"IFERROR(VLOOKUP(ÖğrenciArama,AralıkDevamlılığı[],10,FALSE),\"\")","v":""},{"$f":"IFERROR(VLOOKUP(ÖğrenciArama,AralıkDevamlılığı[],11,FALSE),\"\")","v":""},{"$f":"IFERROR(VLOOKUP(ÖğrenciArama,AralıkDevamlılığı[],12,FALSE),\"\")","v":""},{"$f":"IFERROR(VLOOKUP(ÖğrenciArama,AralıkDevamlılığı[],13,FALSE),\"\")","v":""},{"$f":"IFERROR(VLOOKUP(ÖğrenciArama,AralıkDevamlılığı[],14,FALSE),\"\")","v":""},{"$f":"IFERROR(VLOOKUP(ÖğrenciArama,AralıkDevamlılığı[],15,FALSE),\"\")","v":""},{"$f":"IFERROR(VLOOKUP(ÖğrenciArama,AralıkDevamlılığı[],16,FALSE),\"\")","v":""},{"$f":"IFERROR(VLOOKUP(ÖğrenciArama,AralıkDevamlılığı[],17,FALSE),\"\")","v":""},{"$f":"IFERROR(VLOOKUP(ÖğrenciArama,AralıkDevamlılığı[],18,FALSE),\"\")","v":""},{"$f":"IFERROR(VLOOKUP(ÖğrenciArama,AralıkDevamlılığı[],19,FALSE),\"\")","v":""},{"$f":"IFERROR(VLOOKUP(ÖğrenciArama,AralıkDevamlılığı[],20,FALSE),\"\")","v":""},{"$f":"IFERROR(VLOOKUP(ÖğrenciArama,AralıkDevamlılığı[],21,FALSE),\"\")","v":""},{"$f":"IFERROR(VLOOKUP(ÖğrenciArama,AralıkDevamlılığı[],22,FALSE),\"\")","v":""},{"$f":"IFERROR(VLOOKUP(ÖğrenciArama,AralıkDevamlılığı[],23,FALSE),\"\")","v":""},{"$f":"IFERROR(VLOOKUP(ÖğrenciArama,AralıkDevamlılığı[],24,FALSE),\"\")","v":""},{"$f":"IFERROR(VLOOKUP(ÖğrenciArama,AralıkDevamlılığı[],25,FALSE),\"\")","v":""},{"$f":"IFERROR(VLOOKUP(ÖğrenciArama,AralıkDevamlılığı[],26,FALSE),\"\")","v":""},{"$f":"IFERROR(VLOOKUP(ÖğrenciArama,AralıkDevamlılığı[],27,FALSE),\"\")","v":""},{"$f":"IFERROR(VLOOKUP(ÖğrenciArama,AralıkDevamlılığı[],28,FALSE),\"\")","v":""},{"$f":"IFERROR(VLOOKUP(ÖğrenciArama,AralıkDevamlılığı[],29,FALSE),\"\")","v":""},{"$f":"IFERROR(VLOOKUP(ÖğrenciArama,AralıkDevamlılığı[],30,FALSE),\"\")","v":""},{"$f":"IFERROR(VLOOKUP(ÖğrenciArama,AralıkDevamlılığı[],31,FALSE),\"\")","v":""},{"$f":"IFERROR(VLOOKUP(ÖğrenciArama,AralıkDevamlılığı[],32,FALSE),\"\")","v":""},{"$f":"IFERROR(VLOOKUP(ÖğrenciArama,AralıkDevamlılığı[],33,FALSE),\"\")","v":""}]
[null,"Ocak",1,2,3,4,5,6,7,8,9,10,11,12,13,14,15,16,17,18,19,20,21,22,23,24,25,26,27,28,29,30,31,{"$f":"COUNTIF($D27:$AH27,KOD1)","v":0},{"$f":"COUNTIF($D27:$AH27,KOD2)","v":0},{"$f":"COUNTIF($D27:$AH27,KOD3)","v":0},{"$f":"COUNTIF($D27:$AH27,KOD4)","v":0}]
[null,null,{"$f":"IFERROR(VLOOKUP(ÖğrenciArama,OcakDevamlılığı[],3,FALSE),\"\")","v":""},{"$f":"IFERROR(VLOOKUP(ÖğrenciArama,OcakDevamlılığı[],4,FALSE),\"\")","v":""},{"$f":"IFERROR(VLOOKUP(ÖğrenciArama,OcakDevamlılığı[],5,FALSE),\"\")","v":""},{"$f":"IFERROR(VLOOKUP(ÖğrenciArama,OcakDevamlılığı[],6,FALSE),\"\")","v":""},{"$f":"IFERROR(VLOOKUP(ÖğrenciArama,OcakDevamlılığı[],7,FALSE),\"\")","v":""},{"$f":"IFERROR(VLOOKUP(ÖğrenciArama,OcakDevamlılığı[],8,FALSE),\"\")","v":""},{"$f":"IFERROR(VLOOKUP(ÖğrenciArama,OcakDevamlılığı[],9,FALSE),\"\")","v":""},{"$f":"IFERROR(VLOOKUP(ÖğrenciArama,OcakDevamlılığı[],10,FALSE),\"\")","v":""},{"$f":"IFERROR(VLOOKUP(ÖğrenciArama,OcakDevamlılığı[],11,FALSE),\"\")","v":""},{"$f":"IFERROR(VLOOKUP(ÖğrenciArama,OcakDevamlılığı[],12,FALSE),\"\")","v":""},{"$f":"IFERROR(VLOOKUP(ÖğrenciArama,OcakDevamlılığı[],13,FALSE),\"\")","v":""},{"$f":"IFERROR(VLOOKUP(ÖğrenciArama,OcakDevamlılığı[],14,FALSE),\"\")","v":""},{"$f":"IFERROR(VLOOKUP(ÖğrenciArama,OcakDevamlılığı[],15,FALSE),\"\")","v":""},{"$f":"IFERROR(VLOOKUP(ÖğrenciArama,OcakDevamlılığı[],16,FALSE),\"\")","v":""},{"$f":"IFERROR(VLOOKUP(ÖğrenciArama,OcakDevamlılığı[],17,FALSE),\"\")","v":""},{"$f":"IFERROR(VLOOKUP(ÖğrenciArama,OcakDevamlılığı[],18,FALSE),\"\")","v":""},{"$f":"IFERROR(VLOOKUP(ÖğrenciArama,OcakDevamlılığı[],19,FALSE),\"\")","v":""},{"$f":"IFERROR(VLOOKUP(ÖğrenciArama,OcakDevamlılığı[],20,FALSE),\"\")","v":""},{"$f":"IFERROR(VLOOKUP(ÖğrenciArama,OcakDevamlılığı[],21,FALSE),\"\")","v":""},{"$f":"IFERROR(VLOOKUP(ÖğrenciArama,OcakDevamlılığı[],22,FALSE),\"\")","v":""},{"$f":"IFERROR(VLOOKUP(ÖğrenciArama,OcakDevamlılığı[],23,FALSE),\"\")","v":""},{"$f":"IFERROR(VLOOKUP(ÖğrenciArama,OcakDevamlılığı[],24,FALSE),\"\")","v":""},{"$f":"IFERROR(VLOOKUP(ÖğrenciArama,OcakDevamlılığı[],25,FALSE),\"\")","v":""},{"$f":"IFERROR(VLOOKUP(ÖğrenciArama,OcakDevamlılığı[],26,FALSE),\"\")","v":""},{"$f":"IFERROR(VLOOKUP(ÖğrenciArama,OcakDevamlılığı[],27,FALSE),\"\")","v":""},{"$f":"IFERROR(VLOOKUP(ÖğrenciArama,OcakDevamlılığı[],28,FALSE),\"\")","v":""},{"$f":"IFERROR(VLOOKUP(ÖğrenciArama,OcakDevamlılığı[],29,FALSE),\"\")","v":""},{"$f":"IFERROR(VLOOKUP(ÖğrenciArama,OcakDevamlılığı[],30,FALSE),\"\")","v":""},{"$f":"IFERROR(VLOOKUP(ÖğrenciArama,OcakDevamlılığı[],31,FALSE),\"\")","v":""},{"$f":"IFERROR(VLOOKUP(ÖğrenciArama,OcakDevamlılığı[],32,FALSE),\"\")","v":""},{"$f":"IFERROR(VLOOKUP(ÖğrenciArama,OcakDevamlılığı[],33,FALSE),\"\")","v":""}]
[null,"Şubat",1,2,3,4,5,6,7,8,9,10,11,12,13,14,15,16,17,18,19,20,21,22,23,24,25,26,27,28,29,null,null,{"$f":"COUNTIF($D29:$AH29,KOD1)","v":0},{"$f":"COUNTIF($D29:$AH29,KOD2)","v":0},{"$f":"COUNTIF($D29:$AH29,KOD3)","v":0},{"$f":"COUNTIF($D29:$AH29,KOD4)","v":0}]
[null,null,{"$f":"IFERROR(VLOOKUP(ÖğrenciArama,ŞubatDevamlılığı[],3,FALSE),\"\")","v":""},{"$f":"IFERROR(VLOOKUP(ÖğrenciArama,ŞubatDevamlılığı[],4,FALSE),\"\")","v":""},{"$f":"IFERROR(VLOOKUP(ÖğrenciArama,ŞubatDevamlılığı[],5,FALSE),\"\")","v":""},{"$f":"IFERROR(VLOOKUP(ÖğrenciArama,ŞubatDevamlılığı[],6,FALSE),\"\")","v":""},{"$f":"IFERROR(VLOOKUP(ÖğrenciArama,ŞubatDevamlılığı[],7,FALSE),\"\")","v":""},{"$f":"IFERROR(VLOOKUP(ÖğrenciArama,ŞubatDevamlılığı[],8,FALSE),\"\")","v":""},{"$f":"IFERROR(VLOOKUP(ÖğrenciArama,ŞubatDevamlılığı[],9,FALSE),\"\")","v":""},{"$f":"IFERROR(VLOOKUP(ÖğrenciArama,ŞubatDevamlılığı[],10,FALSE),\"\")","v":""},{"$f":"IFERROR(VLOOKUP(ÖğrenciArama,ŞubatDevamlılığı[],11,FALSE),\"\")","v":""},{"$f":"IFERROR(VLOOKUP(ÖğrenciArama,ŞubatDevamlılığı[],12,FALSE),\"\")","v":""},{"$f":"IFERROR(VLOOKUP(ÖğrenciArama,ŞubatDevamlılığı[],13,FALSE),\"\")","v":""},{"$f":"IFERROR(VLOOKUP(ÖğrenciArama,ŞubatDevamlılığı[],14,FALSE),\"\")","v":""},{"$f":"IFERROR(VLOOKUP(ÖğrenciArama,ŞubatDevamlılığı[],15,FALSE),\"\")","v":""},{"$f":"IFERROR(VLOOKUP(ÖğrenciArama,ŞubatDevamlılığı[],16,FALSE),\"\")","v":""},{"$f":"IFERROR(VLOOKUP(ÖğrenciArama,ŞubatDevamlılığı[],17,FALSE),\"\")","v":""},{"$f":"IFERROR(VLOOKUP(ÖğrenciArama,ŞubatDevamlılığı[],18,FALSE),\"\")","v":""},{"$f":"IFERROR(VLOOKUP(ÖğrenciArama,ŞubatDevamlılığı[],19,FALSE),\"\")","v":""},{"$f":"IFERROR(VLOOKUP(ÖğrenciArama,ŞubatDevamlılığı[],20,FALSE),\"\")","v":""},{"$f":"IFERROR(VLOOKUP(ÖğrenciArama,ŞubatDevamlılığı[],21,FALSE),\"\")","v":""},{"$f":"IFERROR(VLOOKUP(ÖğrenciArama,ŞubatDevamlılığı[],22,FALSE),\"\")","v":""},{"$f":"IFERROR(VLOOKUP(ÖğrenciArama,ŞubatDevamlılığı[],23,FALSE),\"\")","v":""},{"$f":"IFERROR(VLOOKUP(ÖğrenciArama,ŞubatDevamlılığı[],24,FALSE),\"\")","v":""},{"$f":"IFERROR(VLOOKUP(ÖğrenciArama,ŞubatDevamlılığı[],25,FALSE),\"\")","v":""},{"$f":"IFERROR(VLOOKUP(ÖğrenciArama,ŞubatDevamlılığı[],26,FALSE),\"\")","v":""},{"$f":"IFERROR(VLOOKUP(ÖğrenciArama,ŞubatDevamlılığı[],27,FALSE),\"\")","v":""},{"$f":"IFERROR(VLOOKUP(ÖğrenciArama,ŞubatDevamlılığı[],28,FALSE),\"\")","v":""},{"$f":"IFERROR(VLOOKUP(ÖğrenciArama,ŞubatDevamlılığı[],29,FALSE),\"\")","v":""},{"$f":"IFERROR(VLOOKUP(ÖğrenciArama,ŞubatDevamlılığı[],30,FALSE),\"\")","v":""},{"$f":"IFERROR(VLOOKUP(ÖğrenciArama,ŞubatDevamlılığı[],31,FALSE),\"\")","v":""}]
[null,"Mart",1,2,3,4,5,6,7,8,9,10,11,12,13,14,15,16,17,18,19,20,21,22,23,24,25,26,27,28,29,30,31,{"$f":"COUNTIF($D31:$AH31,KOD1)","v":0},{"$f":"COUNTIF($D31:$AH31,KOD2)","v":0},{"$f":"COUNTIF($D31:$AH31,KOD3)","v":0},{"$f":"COUNTIF($D31:$AH31,KOD4)","v":0}]
[null,null,{"$f":"IFERROR(VLOOKUP(ÖğrenciArama,MartDevamlılığı[],3,FALSE),\"\")","v":""},{"$f":"IFERROR(VLOOKUP(ÖğrenciArama,MartDevamlılığı[],4,FALSE),\"\")","v":""},{"$f":"IFERROR(VLOOKUP(ÖğrenciArama,MartDevamlılığı[],5,FALSE),\"\")","v":""},{"$f":"IFERROR(VLOOKUP(ÖğrenciArama,MartDevamlılığı[],6,FALSE),\"\")","v":""},{"$f":"IFERROR(VLOOKUP(ÖğrenciArama,MartDevamlılığı[],7,FALSE),\"\")","v":""},{"$f":"IFERROR(VLOOKUP(ÖğrenciArama,MartDevamlılığı[],8,FALSE),\"\")","v":""},{"$f":"IFERROR(VLOOKUP(ÖğrenciArama,MartDevamlılığı[],9,FALSE),\"\")","v":""},{"$f":"IFERROR(VLOOKUP(ÖğrenciArama,MartDevamlılığı[],10,FALSE),\"\")","v":""},{"$f":"IFERROR(VLOOKUP(ÖğrenciArama,MartDevamlılığı[],11,FALSE),\"\")","v":""},{"$f":"IFERROR(VLOOKUP(ÖğrenciArama,MartDevamlılığı[],12,FALSE),\"\")","v":""},{"$f":"IFERROR(VLOOKUP(ÖğrenciArama,MartDevamlılığı[],13,FALSE),\"\")","v":""},{"$f":"IFERROR(VLOOKUP(ÖğrenciArama,MartDevamlılığı[],14,FALSE),\"\")","v":""},{"$f":"IFERROR(VLOOKUP(ÖğrenciArama,MartDevamlılığı[],15,FALSE),\"\")","v":""},{"$f":"IFERROR(VLOOKUP(ÖğrenciArama,MartDevamlılığı[],16,FALSE),\"\")","v":""},{"$f":"IFERROR(VLOOKUP(ÖğrenciArama,MartDevamlılığı[],17,FALSE),\"\")","v":""},{"$f":"IFERROR(VLOOKUP(ÖğrenciArama,MartDevamlılığı[],18,FALSE),\"\")","v":""},{"$f":"IFERROR(VLOOKUP(ÖğrenciArama,MartDevamlılığı[],19,FALSE),\"\")","v":""},{"$f":"IFERROR(VLOOKUP(ÖğrenciArama,MartDevamlılığı[],20,FALSE),\"\")","v":""},{"$f":"IFERROR(VLOOKUP(ÖğrenciArama,MartDevamlılığı[],21,FALSE),\"\")","v":""},{"$f":"IFERROR(VLOOKUP(ÖğrenciArama,MartDevamlılığı[],22,FALSE),\"\")","v":""},{"$f":"IFERROR(VLOOKUP(ÖğrenciArama,MartDevamlılığı[],23,FALSE),\"\")","v":""},{"$f":"IFERROR(VLOOKUP(ÖğrenciArama,MartDevamlılığı[],24,FALSE),\"\")","v":""},{"$f":"IFERROR(VLOOKUP(ÖğrenciArama,MartDevamlılığı[],25,FALSE),\"\")","v":""},{"$f":"IFERROR(VLOOKUP(ÖğrenciArama,MartDevamlılığı[],26,FALSE),\"\")","v":""},{"$f":"IFERROR(VLOOKUP(ÖğrenciArama,MartDevamlılığı[],27,FALSE),\"\")","v":""},{"$f":"IFERROR(VLOOKUP(ÖğrenciArama,MartDevamlılığı[],28,FALSE),\"\")","v":""},{"$f":"IFERROR(VLOOKUP(ÖğrenciArama,MartDevamlılığı[],29,FALSE),\"\")","v":""},{"$f":"IFERROR(VLOOKUP(ÖğrenciArama,MartDevamlılığı[],30,FALSE),\"\")","v":""},{"$f":"IFERROR(VLOOKUP(ÖğrenciArama,MartDevamlılığı[],31,FALSE),\"\")","v":""},{"$f":"IFERROR(VLOOKUP(ÖğrenciArama,MartDevamlılığı[],32,FALSE),\"\")","v":""},{"$f":"IFERROR(VLOOKUP(ÖğrenciArama,MartDevamlılığı[],33,FALSE),\"\")","v":""}]
[null,"Nisan",1,2,3,4,5,6,7,8,9,10,11,12,13,14,15,16,17,18,19,20,21,22,23,24,25,26,27,28,29,30,null,{"$f":"COUNTIF($D33:$AH33,KOD1)","v":0},{"$f":"COUNTIF($D33:$AH33,KOD2)","v":0},{"$f":"COUNTIF($D33:$AH33,KOD3)","v":0},{"$f":"COUNTIF($D33:$AH33,KOD4)","v":0}]
[null,null,{"$f":"IFERROR(VLOOKUP(ÖğrenciArama,NisanDevamlılığı[],3,FALSE),\"\")","v":""},{"$f":"IFERROR(VLOOKUP(ÖğrenciArama,NisanDevamlılığı[],4,FALSE),\"\")","v":""},{"$f":"IFERROR(VLOOKUP(ÖğrenciArama,NisanDevamlılığı[],5,FALSE),\"\")","v":""},{"$f":"IFERROR(VLOOKUP(ÖğrenciArama,NisanDevamlılığı[],6,FALSE),\"\")","v":""},{"$f":"IFERROR(VLOOKUP(ÖğrenciArama,NisanDevamlılığı[],7,FALSE),\"\")","v":""},{"$f":"IFERROR(VLOOKUP(ÖğrenciArama,NisanDevamlılığı[],8,FALSE),\"\")","v":""},{"$f":"IFERROR(VLOOKUP(ÖğrenciArama,NisanDevamlılığı[],9,FALSE),\"\")","v":""},{"$f":"IFERROR(VLOOKUP(ÖğrenciArama,NisanDevamlılığı[],10,FALSE),\"\")","v":""},{"$f":"IFERROR(VLOOKUP(ÖğrenciArama,NisanDevamlılığı[],11,FALSE),\"\")","v":""},{"$f":"IFERROR(VLOOKUP(ÖğrenciArama,NisanDevamlılığı[],12,FALSE),\"\")","v":""},{"$f":"IFERROR(VLOOKUP(ÖğrenciArama,NisanDevamlılığı[],13,FALSE),\"\")","v":""},{"$f":"IFERROR(VLOOKUP(ÖğrenciArama,NisanDevamlılığı[],14,FALSE),\"\")","v":""},{"$f":"IFERROR(VLOOKUP(ÖğrenciArama,NisanDevamlılığı[],15,FALSE),\"\")","v":""},{"$f":"IFERROR(VLOOKUP(ÖğrenciArama,NisanDevamlılığı[],16,FALSE),\"\")","v":""},{"$f":"IFERROR(VLOOKUP(ÖğrenciArama,NisanDevamlılığı[],17,FALSE),\"\")","v":""},{"$f":"IFERROR(VLOOKUP(ÖğrenciArama,NisanDevamlılığı[],18,FALSE),\"\")","v":""},{"$f":"IFERROR(VLOOKUP(ÖğrenciArama,NisanDevamlılığı[],19,FALSE),\"\")","v":""},{"$f":"IFERROR(VLOOKUP(ÖğrenciArama,NisanDevamlılığı[],20,FALSE),\"\")","v":""},{"$f":"IFERROR(VLOOKUP(ÖğrenciArama,NisanDevamlılığı[],21,FALSE),\"\")","v":""},{"$f":"IFERROR(VLOOKUP(ÖğrenciArama,NisanDevamlılığı[],22,FALSE),\"\")","v":""},{"$f":"IFERROR(VLOOKUP(ÖğrenciArama,NisanDevamlılığı[],23,FALSE),\"\")","v":""},{"$f":"IFERROR(VLOOKUP(ÖğrenciArama,NisanDevamlılığı[],24,FALSE),\"\")","v":""},{"$f":"IFERROR(VLOOKUP(ÖğrenciArama,NisanDevamlılığı[],25,FALSE),\"\")","v":""},{"$f":"IFERROR(VLOOKUP(ÖğrenciArama,NisanDevamlılığı[],26,FALSE),\"\")","v":""},{"$f":"IFERROR(VLOOKUP(ÖğrenciArama,NisanDevamlılığı[],27,FALSE),\"\")","v":""},{"$f":"IFERROR(VLOOKUP(ÖğrenciArama,NisanDevamlılığı[],28,FALSE),\"\")","v":""},{"$f":"IFERROR(VLOOKUP(ÖğrenciArama,NisanDevamlılığı[],29,FALSE),\"\")","v":""},{"$f":"IFERROR(VLOOKUP(ÖğrenciArama,NisanDevamlılığı[],30,FALSE),\"\")","v":""},{"$f":"IFERROR(VLOOKUP(ÖğrenciArama,NisanDevamlılığı[],31,FALSE),\"\")","v":""},{"$f":"IFERROR(VLOOKUP(ÖğrenciArama,NisanDevamlılığı[],32,FALSE),\"\")","v":""}]
[null,"Mayıs",1,2,3,4,5,6,7,8,9,10,11,12,13,14,15,16,17,18,19,20,21,22,23,24,25,26,27,28,29,30,31,{"$f":"COUNTIF($D35:$AH35,KOD1)","v":0},{"$f":"COUNTIF($D35:$AH35,KOD2)","v":0},{"$f":"COUNTIF($D35:$AH35,KOD3)","v":0},{"$f":"COUNTIF($D35:$AH35,KOD4)","v":0}]
[null,null,{"$f":"IFERROR(VLOOKUP(ÖğrenciArama,MayısDevamlılığı[],3,FALSE),\"\")","v":""},{"$f":"IFERROR(VLOOKUP(ÖğrenciArama,MayısDevamlılığı[],4,FALSE),\"\")","v":""},{"$f":"IFERROR(VLOOKUP(ÖğrenciArama,MayısDevamlılığı[],5,FALSE),\"\")","v":""},{"$f":"IFERROR(VLOOKUP(ÖğrenciArama,MayısDevamlılığı[],6,FALSE),\"\")","v":""},{"$f":"IFERROR(VLOOKUP(ÖğrenciArama,MayısDevamlılığı[],7,FALSE),\"\")","v":""},{"$f":"IFERROR(VLOOKUP(ÖğrenciArama,MayısDevamlılığı[],8,FALSE),\"\")","v":""},{"$f":"IFERROR(VLOOKUP(ÖğrenciArama,MayısDevamlılığı[],9,FALSE),\"\")","v":""},{"$f":"IFERROR(VLOOKUP(ÖğrenciArama,MayısDevamlılığı[],10,FALSE),\"\")","v":""},{"$f":"IFERROR(VLOOKUP(ÖğrenciArama,MayısDevamlılığı[],11,FALSE),\"\")","v":""},{"$f":"IFERROR(VLOOKUP(ÖğrenciArama,MayısDevamlılığı[],12,FALSE),\"\")","v":""},{"$f":"IFERROR(VLOOKUP(ÖğrenciArama,MayısDevamlılığı[],13,FALSE),\"\")","v":""},{"$f":"IFERROR(VLOOKUP(ÖğrenciArama,MayısDevamlılığı[],14,FALSE),\"\")","v":""},{"$f":"IFERROR(VLOOKUP(ÖğrenciArama,MayısDevamlılığı[],15,FALSE),\"\")","v":""},{"$f":"IFERROR(VLOOKUP(ÖğrenciArama,MayısDevamlılığı[],16,FALSE),\"\")","v":""},{"$f":"IFERROR(VLOOKUP(ÖğrenciArama,MayısDevamlılığı[],17,FALSE),\"\")","v":""},{"$f":"IFERROR(VLOOKUP(ÖğrenciArama,MayısDevamlılığı[],18,FALSE),\"\")","v":""},{"$f":"IFERROR(VLOOKUP(ÖğrenciArama,MayısDevamlılığı[],19,FALSE),\"\")","v":""},{"$f":"IFERROR(VLOOKUP(ÖğrenciArama,MayısDevamlılığı[],20,FALSE),\"\")","v":""},{"$f":"IFERROR(VLOOKUP(ÖğrenciArama,MayısDevamlılığı[],21,FALSE),\"\")","v":""},{"$f":"IFERROR(VLOOKUP(ÖğrenciArama,MayısDevamlılığı[],22,FALSE),\"\")","v":""},{"$f":"IFERROR(VLOOKUP(ÖğrenciArama,MayısDevamlılığı[],23,FALSE),\"\")","v":""},{"$f":"IFERROR(VLOOKUP(ÖğrenciArama,MayısDevamlılığı[],24,FALSE),\"\")","v":""},{"$f":"IFERROR(VLOOKUP(ÖğrenciArama,MayısDevamlılığı[],25,FALSE),\"\")","v":""},{"$f":"IFERROR(VLOOKUP(ÖğrenciArama,MayısDevamlılığı[],26,FALSE),\"\")","v":""},{"$f":"IFERROR(VLOOKUP(ÖğrenciArama,MayısDevamlılığı[],27,FALSE),\"\")","v":""},{"$f":"IFERROR(VLOOKUP(ÖğrenciArama,MayısDevamlılığı[],28,FALSE),\"\")","v":""},{"$f":"IFERROR(VLOOKUP(ÖğrenciArama,MayısDevamlılığı[],29,FALSE),\"\")","v":""},{"$f":"IFERROR(VLOOKUP(ÖğrenciArama,MayısDevamlılığı[],30,FALSE),\"\")","v":""},{"$f":"IFERROR(VLOOKUP(ÖğrenciArama,MayısDevamlılığı[],31,FALSE),\"\")","v":""},{"$f":"IFERROR(VLOOKUP(ÖğrenciArama,MayısDevamlılığı[],32,FALSE),\"\")","v":""},{"$f":"IFERROR(VLOOKUP(ÖğrenciArama,MayısDevamlılığı[],33,FALSE),\"\")","v":""}]
[null,"Haziran",1,2,3,4,5,6,7,8,9,10,11,12,13,14,15,16,17,18,19,20,21,22,23,24,25,26,27,28,29,30,null,{"$f":"COUNTIF($D37:$AH37,KOD1)","v":0},{"$f":"COUNTIF($D37:$AH37,KOD2)","v":0},{"$f":"COUNTIF($D37:$AH37,KOD3)","v":0},{"$f":"COUNTIF($D37:$AH37,KOD4)","v":0}]
[null,null,{"$f":"IFERROR(VLOOKUP(ÖğrenciArama,HaziranDevamlılığı[],3,FALSE),\"\")","v":""},{"$f":"IFERROR(VLOOKUP(ÖğrenciArama,HaziranDevamlılığı[],4,FALSE),\"\")","v":""},{"$f":"IFERROR(VLOOKUP(ÖğrenciArama,HaziranDevamlılığı[],5,FALSE),\"\")","v":""},{"$f":"IFERROR(VLOOKUP(ÖğrenciArama,HaziranDevamlılığı[],6,FALSE),\"\")","v":""},{"$f":"IFERROR(VLOOKUP(ÖğrenciArama,HaziranDevamlılığı[],7,FALSE),\"\")","v":""},{"$f":"IFERROR(VLOOKUP(ÖğrenciArama,HaziranDevamlılığı[],8,FALSE),\"\")","v":""},{"$f":"IFERROR(VLOOKUP(ÖğrenciArama,HaziranDevamlılığı[],9,FALSE),\"\")","v":""},{"$f":"IFERROR(VLOOKUP(ÖğrenciArama,HaziranDevamlılığı[],10,FALSE),\"\")","v":""},{"$f":"IFERROR(VLOOKUP(ÖğrenciArama,HaziranDevamlılığı[],11,FALSE),\"\")","v":""},{"$f":"IFERROR(VLOOKUP(ÖğrenciArama,HaziranDevamlılığı[],12,FALSE),\"\")","v":""},{"$f":"IFERROR(VLOOKUP(ÖğrenciArama,HaziranDevamlılığı[],13,FALSE),\"\")","v":""},{"$f":"IFERROR(VLOOKUP(ÖğrenciArama,HaziranDevamlılığı[],14,FALSE),\"\")","v":""},{"$f":"IFERROR(VLOOKUP(ÖğrenciArama,HaziranDevamlılığı[],15,FALSE),\"\")","v":""},{"$f":"IFERROR(VLOOKUP(ÖğrenciArama,HaziranDevamlılığı[],16,FALSE),\"\")","v":""},{"$f":"IFERROR(VLOOKUP(ÖğrenciArama,HaziranDevamlılığı[],17,FALSE),\"\")","v":""},{"$f":"IFERROR(VLOOKUP(ÖğrenciArama,HaziranDevamlılığı[],18,FALSE),\"\")","v":""},{"$f":"IFERROR(VLOOKUP(ÖğrenciArama,HaziranDevamlılığı[],19,FALSE),\"\")","v":""},{"$f":"IFERROR(VLOOKUP(ÖğrenciArama,HaziranDevamlılığı[],20,FALSE),\"\")","v":""},{"$f":"IFERROR(VLOOKUP(ÖğrenciArama,HaziranDevamlılığı[],21,FALSE),\"\")","v":""},{"$f":"IFERROR(VLOOKUP(ÖğrenciArama,HaziranDevamlılığı[],22,FALSE),\"\")","v":""},{"$f":"IFERROR(VLOOKUP(ÖğrenciArama,HaziranDevamlılığı[],23,FALSE),\"\")","v":""},{"$f":"IFERROR(VLOOKUP(ÖğrenciArama,HaziranDevamlılığı[],24,FALSE),\"\")","v":""},{"$f":"IFERROR(VLOOKUP(ÖğrenciArama,HaziranDevamlılığı[],25,FALSE),\"\")","v":""},{"$f":"IFERROR(VLOOKUP(ÖğrenciArama,HaziranDevamlılığı[],26,FALSE),\"\")","v":""},{"$f":"IFERROR(VLOOKUP(ÖğrenciArama,HaziranDevamlılığı[],27,FALSE),\"\")","v":""},{"$f":"IFERROR(VLOOKUP(ÖğrenciArama,HaziranDevamlılığı[],28,FALSE),\"\")","v":""},{"$f":"IFERROR(VLOOKUP(ÖğrenciArama,HaziranDevamlılığı[],29,FALSE),\"\")","v":""},{"$f":"IFERROR(VLOOKUP(ÖğrenciArama,HaziranDevamlılığı[],30,FALSE),\"\")","v":""},{"$f":"IFERROR(VLOOKUP(ÖğrenciArama,HaziranDevamlılığı[],31,FALSE),\"\")","v":""},{"$f":"IFERROR(VLOOKUP(ÖğrenciArama,HaziranDevamlılığı[],32,FALSE),\"\")","v":""}]
[null,"Temmuz",1,2,3,4,5,6,7,8,9,10,11,12,13,14,15,16,17,18,19,20,21,22,23,24,25,26,27,28,29,30,31,{"$f":"COUNTIF($D39:$AH39,KOD1)","v":0},{"$f":"COUNTIF($D39:$AH39,KOD2)","v":0},{"$f":"COUNTIF($D39:$AH39,KOD3)","v":0},{"$f":"COUNTIF($D39:$AH39,KOD4)","v":0}]
[null,null,{"$f":"IFERROR(VLOOKUP(ÖğrenciArama,TemmuzDevamlılığı[],3,FALSE),\"\")","v":""},{"$f":"IFERROR(VLOOKUP(ÖğrenciArama,TemmuzDevamlılığı[],4,FALSE),\"\")","v":""},{"$f":"IFERROR(VLOOKUP(ÖğrenciArama,TemmuzDevamlılığı[],5,FALSE),\"\")","v":""},{"$f":"IFERROR(VLOOKUP(ÖğrenciArama,TemmuzDevamlılığı[],6,FALSE),\"\")","v":""},{"$f":"IFERROR(VLOOKUP(ÖğrenciArama,TemmuzDevamlılığı[],7,FALSE),\"\")","v":""},{"$f":"IFERROR(VLOOKUP(ÖğrenciArama,TemmuzDevamlılığı[],8,FALSE),\"\")","v":""},{"$f":"IFERROR(VLOOKUP(ÖğrenciArama,TemmuzDevamlılığı[],9,FALSE),\"\")","v":""},{"$f":"IFERROR(VLOOKUP(ÖğrenciArama,TemmuzDevamlılığı[],10,FALSE),\"\")","v":""},{"$f":"IFERROR(VLOOKUP(ÖğrenciArama,TemmuzDevamlılığı[],11,FALSE),\"\")","v":""},{"$f":"IFERROR(VLOOKUP(ÖğrenciArama,TemmuzDevamlılığı[],12,FALSE),\"\")","v":""},{"$f":"IFERROR(VLOOKUP(ÖğrenciArama,TemmuzDevamlılığı[],13,FALSE),\"\")","v":""},{"$f":"IFERROR(VLOOKUP(ÖğrenciArama,TemmuzDevamlılığı[],14,FALSE),\"\")","v":""},{"$f":"IFERROR(VLOOKUP(ÖğrenciArama,TemmuzDevamlılığı[],15,FALSE),\"\")","v":""},{"$f":"IFERROR(VLOOKUP(ÖğrenciArama,TemmuzDevamlılığı[],16,FALSE),\"\")","v":""},{"$f":"IFERROR(VLOOKUP(ÖğrenciArama,TemmuzDevamlılığı[],17,FALSE),\"\")","v":""},{"$f":"IFERROR(VLOOKUP(ÖğrenciArama,TemmuzDevamlılığı[],18,FALSE),\"\")","v":""},{"$f":"IFERROR(VLOOKUP(ÖğrenciArama,TemmuzDevamlılığı[],19,FALSE),\"\")","v":""},{"$f":"IFERROR(VLOOKUP(ÖğrenciArama,TemmuzDevamlılığı[],20,FALSE),\"\")","v":""},{"$f":"IFERROR(VLOOKUP(ÖğrenciArama,TemmuzDevamlılığı[],21,FALSE),\"\")","v":""},{"$f":"IFERROR(VLOOKUP(ÖğrenciArama,TemmuzDevamlılığı[],22,FALSE),\"\")","v":""},{"$f":"IFERROR(VLOOKUP(ÖğrenciArama,TemmuzDevamlılığı[],23,FALSE),\"\")","v":""},{"$f":"IFERROR(VLOOKUP(ÖğrenciArama,TemmuzDevamlılığı[],24,FALSE),\"\")","v":""},{"$f":"IFERROR(VLOOKUP(ÖğrenciArama,TemmuzDevamlılığı[],25,FALSE),\"\")","v":""},{"$f":"IFERROR(VLOOKUP(ÖğrenciArama,TemmuzDevamlılığı[],26,FALSE),\"\")","v":""},{"$f":"IFERROR(VLOOKUP(ÖğrenciArama,TemmuzDevamlılığı[],27,FALSE),\"\")","v":""},{"$f":"IFERROR(VLOOKUP(ÖğrenciArama,TemmuzDevamlılığı[],28,FALSE),\"\")","v":""},{"$f":"IFERROR(VLOOKUP(ÖğrenciArama,TemmuzDevamlılığı[],29,FALSE),\"\")","v":""},{"$f":"IFERROR(VLOOKUP(ÖğrenciArama,TemmuzDevamlılığı[],30,FALSE),\"\")","v":""},{"$f":"IFERROR(VLOOKUP(ÖğrenciArama,TemmuzDevamlılığı[],31,FALSE),\"\")","v":""},{"$f":"IFERROR(VLOOKUP(ÖğrenciArama,TemmuzDevamlılığı[],32,FALSE),\"\")","v":""},{"$f":"IFERROR(VLOOKUP(ÖğrenciArama,TemmuzDevamlılığı[],33,FALSE),\"\")","v":""}]
[{"$nulls":30},"Toplam",null,null,{"$f":"SUM(AH16:AH39)","v":0},{"$f":"SUM(AI16:AI39)","v":0},{"$f":"SUM(AJ16:AJ39)","v":0},{"$f":"SUM(AK16:AK39)","v":0}]